PublisherLabel,PublisherURI,"Body name","Body","Service area","Service division","Responsible unit","Expenses type","Date","Transaction","Amount","Supplier name"
"Bracknell Forest Council","http://opendatacommunities.org/id/unitary-authority/bracknell-forest","Bracknell Forest Council","00MA","Adults (18-64)","Long term Support - Residential","MH Adults 18-64 Long Term Support - Residential","Contracted Services",03/10/2019 00:00:00,"30364189",5008.4,"2 CARE"
"Bracknell Forest Council","http://opendatacommunities.org/id/unitary-authority/bracknell-forest","Bracknell Forest Council","00MA","Adults (18-64)","Long term Support - Residential","MH Adults 18-64 Long Term Support - Residential","Contracted Services",31/10/2019 00:00:00,"30365674",5008.4,"2 CARE"
"Bracknell Forest Council","http://opendatacommunities.org/id/unitary-authority/bracknell-forest","Bracknell Forest Council","00MA","Adults (18-64)","Long term Support - Residential","MH Adults 18-64 Long Term Support - Residential","Contracted Services",28/11/2019 00:00:00,"30367269",5008.4,"2 CARE"
"Bracknell Forest Council","http://opendatacommunities.org/id/unitary-authority/bracknell-forest","Bracknell Forest Council","00MA","Sexual Health Services","Contraception","GP LARC Payments","Contracted Services",17/10/2019 00:00:00,"6691747",704,"242 Wrexham Road Surgery"
"Bracknell Forest Council","http://opendatacommunities.org/id/unitary-authority/bracknell-forest","Bracknell Forest Council","00MA","Cemeteries, Crematoria & Mortuary Services","Cemeteries & Crematorium","Easthampstead Park Cemetery & Crematorium","Contracted Services",06/11/2019 00:00:00,"6692865",532.39,"2468 GROUP"
"Bracknell Forest Council","http://opendatacommunities.org/id/unitary-authority/bracknell-forest","Bracknell Forest Council","00MA","Parking Services","Off Street Parking","The Avenue Car Park","Banking Charges",30/09/2019 00:00:00,"6691009",4229.76,"3C PAYMENT UK LTD"
"Bracknell Forest Council","http://opendatacommunities.org/id/unitary-authority/bracknell-forest","Bracknell Forest Council","00MA","","","SANGS Facilitation","Construction - Other Direct Expenses",04/10/2019 00:00:00,"6691089",7500,"3D WOOD"
"Bracknell Forest Council","http://opendatacommunities.org/id/unitary-authority/bracknell-forest","Bracknell Forest Council","00MA","","","A322 Downshire Way Greening Works Programme","Other Direct Expenses",04/10/2019 00:00:00,"6690709",9300,"3D WOOD"
"Bracknell Forest Council","http://opendatacommunities.org/id/unitary-authority/bracknell-forest","Bracknell Forest Council","00MA","Older People (65+)","Long term Support - Community:Homecare","PS Older People 65+ Long Term Support - Community:Homecare","Contracted Services",17/10/2019 00:00:00,"30364912",1103.76,"A&T CARING SERVICES"
"Bracknell Forest Council","http://opendatacommunities.org/id/unitary-authority/bracknell-forest","Bracknell Forest Council","00MA","Older People (65+)","Long Term Support - Community:Supported Living","MC Older People 65+ Long Term Support - Community:Supported Living","Contracted Services",17/10/2019 00:00:00,"30364912",3840,"A&T CARING SERVICES"
"Bracknell Forest Council","http://opendatacommunities.org/id/unitary-authority/bracknell-forest","Bracknell Forest Council","00MA","Older People (65+)","Long term Support - Community:Homecare","PS Older People 65+ Long Term Support - Community:Homecare","Contracted Services",17/10/2019 00:00:00,"30364912",735.84,"A&T CARING SERVICES"
"Bracknell Forest Council","http://opendatacommunities.org/id/unitary-authority/bracknell-forest","Bracknell Forest Council","00MA","Older People (65+)","Long term Support - Community:Homecare","PS Older People 65+ Long Term Support - Community:Homecare","Contracted Services",17/10/2019 00:00:00,"30364912",438,"A&T CARING SERVICES"
"Bracknell Forest Council","http://opendatacommunities.org/id/unitary-authority/bracknell-forest","Bracknell Forest Council","00MA","Older People (65+)","Long term Support - Community:Homecare","PS Older People 65+ Long Term Support - Community:Homecare","Contracted Services",24/10/2019 00:00:00,"30365383",363.54,"A&T CARING SERVICES"
"Bracknell Forest Council","http://opendatacommunities.org/id/unitary-authority/bracknell-forest","Bracknell Forest Council","00MA","Older People (65+)","Long term Support - Community:Homecare","PS Older People 65+ Long Term Support - Community:Homecare","Contracted Services",24/10/2019 00:00:00,"30365383",477.42,"A&T CARING SERVICES"
"Bracknell Forest Council","http://opendatacommunities.org/id/unitary-authority/bracknell-forest","Bracknell Forest Council","00MA","Older People (65+)","Long term Support - Community:Homecare","MC Older People 65+ Long Term Support - Community:Homecare","Contracted Services",24/10/2019 00:00:00,"30365383",1208.88,"A&T CARING SERVICES"
"Bracknell Forest Council","http://opendatacommunities.org/id/unitary-authority/bracknell-forest","Bracknell Forest Council","00MA","Older People (65+)","Long term Support - Community:Homecare","MC Older People 65+ Long Term Support - Community:Homecare","Contracted Services",24/10/2019 00:00:00,"30365383",1228.59,"A&T CARING SERVICES"
"Bracknell Forest Council","http://opendatacommunities.org/id/unitary-authority/bracknell-forest","Bracknell Forest Council","00MA","Older People (65+)","Long term Support - Community:Homecare","MC Older People 65+ Long Term Support - Community:Homecare","Contracted Services",24/10/2019 00:00:00,"30365383",600.06,"A&T CARING SERVICES"
"Bracknell Forest Council","http://opendatacommunities.org/id/unitary-authority/bracknell-forest","Bracknell Forest Council","00MA","Older People (65+)","Long term Support - Community:Homecare","MC Older People 65+ Long Term Support - Community:Homecare","Contracted Services",24/10/2019 00:00:00,"30365383",560.64,"A&T CARING SERVICES"
"Bracknell Forest Council","http://opendatacommunities.org/id/unitary-authority/bracknell-forest","Bracknell Forest Council","00MA","Older People (65+)","Long term Support - Community:Homecare","MC Older People 65+ Long Term Support - Community:Homecare","Contracted Services",24/10/2019 00:00:00,"30365383",613.2,"A&T CARING SERVICES"
"Bracknell Forest Council","http://opendatacommunities.org/id/unitary-authority/bracknell-forest","Bracknell Forest Council","00MA","Older People (65+)","Long term Support - Community:Homecare","PS Older People 65+ Long Term Support - Community:Homecare","Contracted Services",14/11/2019 00:00:00,"30366591",981.12,"A&T CARING SERVICES"
"Bracknell Forest Council","http://opendatacommunities.org/id/unitary-authority/bracknell-forest","Bracknell Forest Council","00MA","Older People (65+)","Long term Support - Community:Homecare","PS Older People 65+ Long Term Support - Community:Homecare","Contracted Services",14/11/2019 00:00:00,"30366591",1095,"A&T CARING SERVICES"
"Bracknell Forest Council","http://opendatacommunities.org/id/unitary-authority/bracknell-forest","Bracknell Forest Council","00MA","Older People (65+)","Long term Support - Community:Homecare","PS Older People 65+ Long Term Support - Community:Homecare","Contracted Services",14/11/2019 00:00:00,"30366591",735.84,"A&T CARING SERVICES"
"Bracknell Forest Council","http://opendatacommunities.org/id/unitary-authority/bracknell-forest","Bracknell Forest Council","00MA","Older People (65+)","Long Term Support - Community:Supported Living","MC Older People 65+ Long Term Support - Community:Supported Living","Contracted Services",14/11/2019 00:00:00,"30366591",3840,"A&T CARING SERVICES"
"Bracknell Forest Council","http://opendatacommunities.org/id/unitary-authority/bracknell-forest","Bracknell Forest Council","00MA","Commissioning & Service Delivery","Commissioning & Service Delivery","Grants & Donations","Contracted Services",21/10/2019 00:00:00,"6691286",3208,"ACTION FOR PEOPLE"
"Bracknell Forest Council","http://opendatacommunities.org/id/unitary-authority/bracknell-forest","Bracknell Forest Council","00MA","Older People (65+)","Long term Support - Community:Homecare","MC Older People 65+ Long Term Support - Community:Homecare","Contracted Services",14/11/2019 00:00:00,"30366591",516.84,"A&T CARING SERVICES"
"Bracknell Forest Council","http://opendatacommunities.org/id/unitary-authority/bracknell-forest","Bracknell Forest Council","00MA","Older People (65+)","Long term Support - Community:Homecare","PS Older People 65+ Long Term Support - Community:Homecare","Contracted Services",21/11/2019 00:00:00,"30366942",446.76,"A&T CARING SERVICES"
"Bracknell Forest Council","http://opendatacommunities.org/id/unitary-authority/bracknell-forest","Bracknell Forest Council","00MA","Transport Planning, Policy & Strategy","Transport Policy, Planning & Strategy","Rechargeable Street Works","Contracted Services",29/11/2019 00:00:00,"6693944",839.8,"AAI - ALEXANDER ADVERTISING(INT)LTD"
"Bracknell Forest Council","http://opendatacommunities.org/id/unitary-authority/bracknell-forest","Bracknell Forest Council","00MA","Culture and Heritage","Heritage Museums & Galleries","The Look Out","Equipment - R&M",08/10/2019 00:00:00,"6690865",646,"ABA (CONSTRUCTION) LTD T/A ARD PLAYGROUNDS"
"Bracknell Forest Council","http://opendatacommunities.org/id/unitary-authority/bracknell-forest","Bracknell Forest Council","00MA","Adults (18-64)","Long Term Support - Nursing","MC Adults 18-64 Long Term Support - Nursing","Contracted Services",03/10/2019 00:00:00,"30364189",3648.94,"ABBEYFIELD LODGE NURSING HOME"
"Bracknell Forest Council","http://opendatacommunities.org/id/unitary-authority/bracknell-forest","Bracknell Forest Council","00MA","Adults (18-64)","Long term Support - Residential","LD Adults 18-64 Long Term Support - Residential","Contracted Services",03/10/2019 00:00:00,"30364189",3039.04,"ABBEYFIELD LODGE NURSING HOME"
"Bracknell Forest Council","http://opendatacommunities.org/id/unitary-authority/bracknell-forest","Bracknell Forest Council","00MA","Adults (18-64)","Long Term Support - Nursing","Mental Health Support - Other Care & Support","Contracted Services",03/10/2019 00:00:00,"30364189",-4628.02,"ABBEYFIELD LODGE NURSING HOME"
"Bracknell Forest Council","http://opendatacommunities.org/id/unitary-authority/bracknell-forest","Bracknell Forest Council","00MA","Adults (18-64)","Long term Support - Residential","LD Adults 18-64 Long Term Support - Residential","Contracted Services",31/10/2019 00:00:00,"30365674",3039.04,"ABBEYFIELD LODGE NURSING HOME"
"Bracknell Forest Council","http://opendatacommunities.org/id/unitary-authority/bracknell-forest","Bracknell Forest Council","00MA","Adults (18-64)","Long term Support - Residential","LD Adults 18-64 Long Term Support - Residential","Contracted Services",28/11/2019 00:00:00,"30367269",3039.04,"ABBEYFIELD LODGE NURSING HOME"
"Bracknell Forest Council","http://opendatacommunities.org/id/unitary-authority/bracknell-forest","Bracknell Forest Council","00MA","Older People (65+)","Long term Support - Residential","MC Older People 65+ Long Term Support - Residential","Contracted Services",03/10/2019 00:00:00,"30364189",2525.28,"ABERMILL CARE CENTRE"
"Bracknell Forest Council","http://opendatacommunities.org/id/unitary-authority/bracknell-forest","Bracknell Forest Council","00MA","Older People (65+)","Long term Support - Residential","MC Older People 65+ Long Term Support - Residential","Contracted Services",31/10/2019 00:00:00,"30365674",2525.28,"ABERMILL CARE CENTRE"
"Bracknell Forest Council","http://opendatacommunities.org/id/unitary-authority/bracknell-forest","Bracknell Forest Council","00MA","Older People (65+)","Long term Support - Residential","MC Older People 65+ Long Term Support - Residential","Contracted Services",28/11/2019 00:00:00,"30367269",2525.28,"ABERMILL CARE CENTRE"
"Bracknell Forest Council","http://opendatacommunities.org/id/unitary-authority/bracknell-forest","Bracknell Forest Council","00MA","Adults (18-64)","Long Term Support - Nursing","Mental Health Support - Other Care & Support","Contracted Services",03/10/2019 00:00:00,"30364189",3031.6,"ACCOMPLISH / GROVE CARE HOME - TRACSCARE"
"Bracknell Forest Council","http://opendatacommunities.org/id/unitary-authority/bracknell-forest","Bracknell Forest Council","00MA","Adults (18-64)","Long Term Support - Nursing","Mental Health Support - Other Care & Support","Contracted Services",31/10/2019 00:00:00,"30365674",3031.6,"ACCOMPLISH / GROVE CARE HOME - TRACSCARE"
"Bracknell Forest Council","http://opendatacommunities.org/id/unitary-authority/bracknell-forest","Bracknell Forest Council","00MA","Adults (18-64)","Long Term Support - Nursing","Mental Health Support - Other Care & Support","Contracted Services",28/11/2019 00:00:00,"30367269",3031.6,"ACCOMPLISH / GROVE CARE HOME - TRACSCARE"
"Bracknell Forest Council","http://opendatacommunities.org/id/unitary-authority/bracknell-forest","Bracknell Forest Council","00MA","Adults (18-64)","Long term Support - Residential","MH Adults 18-64 Long Term Support - Residential","Contracted Services",03/10/2019 00:00:00,"30364189",5287.48,"ACCOMPLISH GROUP T/A PATHWAY HOUSE"
"Bracknell Forest Council","http://opendatacommunities.org/id/unitary-authority/bracknell-forest","Bracknell Forest Council","00MA","Adults (18-64)","Long term Support - Residential","MH Adults 18-64 Long Term Support - Residential","Contracted Services",31/10/2019 00:00:00,"30365674",5287.48,"ACCOMPLISH GROUP T/A PATHWAY HOUSE"
"Bracknell Forest Council","http://opendatacommunities.org/id/unitary-authority/bracknell-forest","Bracknell Forest Council","00MA","Adults (18-64)","Long term Support - Residential","MH Adults 18-64 Long Term Support - Residential","Contracted Services",28/11/2019 00:00:00,"30367269",5287.48,"ACCOMPLISH GROUP T/A PATHWAY HOUSE"
"Bracknell Forest Council","http://opendatacommunities.org/id/unitary-authority/bracknell-forest","Bracknell Forest Council","00MA","Democratic Representation & Management COF","Democratic Representation & Management - COF","School Appeals","Training Costs",02/12/2019 00:00:00,"6693812",1635.8,"ACE EDUCATION TRAINING LLP"
"Bracknell Forest Council","http://opendatacommunities.org/id/unitary-authority/bracknell-forest","Bracknell Forest Council","00MA","Family Support Services","Short breaks for disabled children","CSS Respite & Childminding","Contracted Services",22/03/2019 00:00:00,"6690474",1639.5,"ACHIEVING FOR CHILDREN"
"Bracknell Forest Council","http://opendatacommunities.org/id/unitary-authority/bracknell-forest","Bracknell Forest Council","00MA","Commissioning & Service Delivery","Commissioning & Service Delivery","Grants & Donations","Contracted Services",20/11/2019 00:00:00,"6693305",3745,"ACTION FOR PEOPLE"
"Bracknell Forest Council","http://opendatacommunities.org/id/unitary-authority/bracknell-forest","Bracknell Forest Council","00MA","Recreation, Sports and Leisure","Community Centres","Community Centres Support","Legal Fees",22/08/2019 00:00:00,"6690568",3003,"ADDLESHAW GODDARD LLP"
"Bracknell Forest Council","http://opendatacommunities.org/id/unitary-authority/bracknell-forest","Bracknell Forest Council","00MA","Central Support Services - COF","Construction and Property","Depot Facilities","Security Systems",01/09/2017 00:00:00,"6693610",504.46,"ADT FIRE AND SECURITY"
"Bracknell Forest Council","http://opendatacommunities.org/id/unitary-authority/bracknell-forest","Bracknell Forest Council","00MA","Central Support Services - COF","Construction and Property","Depot Facilities","Security Systems",01/09/2017 00:00:00,"6693613",815.69,"ADT FIRE AND SECURITY"
"Bracknell Forest Council","http://opendatacommunities.org/id/unitary-authority/bracknell-forest","Bracknell Forest Council","00MA","Central Support Services - COF","Construction and Property","Depot Facilities","Security Systems",01/09/2017 00:00:00,"6693611",1423.34,"ADT FIRE AND SECURITY"
"Bracknell Forest Council","http://opendatacommunities.org/id/unitary-authority/bracknell-forest","Bracknell Forest Council","00MA","Adults (18-64)","Long Term Support - Community:Supported Living","LD Adults 18-64 Long Term Support - Community:Supported Living","Other Support to Clients",04/11/2019 00:00:00,"6692354",3864.38,"ADVANCE HOUSING AND SUPPORT LTD"
"Bracknell Forest Council","http://opendatacommunities.org/id/unitary-authority/bracknell-forest","Bracknell Forest Council","00MA","Services for Young People","Targeted services for young people","NEET Reduction Funding","Voluntary Sector Service Providers",12/11/2019 00:00:00,"6693413",2600,"ADVIZA PARTNERSHIP"
"Bracknell Forest Council","http://opendatacommunities.org/id/unitary-authority/bracknell-forest","Bracknell Forest Council","00MA","Social Care Activities","Social Care Activities","Mental Capacity Act & IMCA Service","Other Support to Clients",30/10/2019 00:00:00,"6692479",1000,"AEB SOCIAL CARE LTD"
"Bracknell Forest Council","http://opendatacommunities.org/id/unitary-authority/bracknell-forest","Bracknell Forest Council","00MA","Waste Disposal","Disposal of Waste","London Road Tip","Water & Sewerage",02/08/2019 00:00:00,"6691351",576.02,"AFFINITY WATER"
"Bracknell Forest Council","http://opendatacommunities.org/id/unitary-authority/bracknell-forest","Bracknell Forest Council","00MA","Waste Disposal","Disposal of Waste","London Road Tip","Water & Sewerage",02/08/2019 00:00:00,"6691383",576.02,"AFFINITY WATER"
"Bracknell Forest Council","http://opendatacommunities.org/id/unitary-authority/bracknell-forest","Bracknell Forest Council","00MA","Adults (18-64)","Long Term Support - Community:Supported Living","MC Adults 18-64 Long Term Support - Community:Supported Living","Contracted Services",17/10/2019 00:00:00,"30364912",360,"AGE CONCERN BRACKNELL FOREST"
"Bracknell Forest Council","http://opendatacommunities.org/id/unitary-authority/bracknell-forest","Bracknell Forest Council","00MA","Older People (65+)","Long Term Support - Community:Supported Living","MC Older People 65+ Long Term Support - Community:Supported Living","Contracted Services",17/10/2019 00:00:00,"30364912",720,"AGE CONCERN BRACKNELL FOREST"
"Bracknell Forest Council","http://opendatacommunities.org/id/unitary-authority/bracknell-forest","Bracknell Forest Council","00MA","Older People (65+)","Long Term Support - Community:Supported Living","MC Older People 65+ Long Term Support - Community:Supported Living","Contracted Services",17/10/2019 00:00:00,"30364912",540,"AGE CONCERN BRACKNELL FOREST"
"Bracknell Forest Council","http://opendatacommunities.org/id/unitary-authority/bracknell-forest","Bracknell Forest Council","00MA","Adults (18-64)","Long Term Support - Community:Supported Living","MC Adults 18-64 Long Term Support - Community:Supported Living","Contracted Services",07/11/2019 00:00:00,"30366223",360,"AGE CONCERN BRACKNELL FOREST"
"Bracknell Forest Council","http://opendatacommunities.org/id/unitary-authority/bracknell-forest","Bracknell Forest Council","00MA","Older People (65+)","Long Term Support - Community:Supported Living","MC Older People 65+ Long Term Support - Community:Supported Living","Contracted Services",07/11/2019 00:00:00,"30366223",720,"AGE CONCERN BRACKNELL FOREST"
"Bracknell Forest Council","http://opendatacommunities.org/id/unitary-authority/bracknell-forest","Bracknell Forest Council","00MA","Older People (65+)","Long Term Support - Community:Supported Living","MC Older People 65+ Long Term Support - Community:Supported Living","Contracted Services",07/11/2019 00:00:00,"30366223",540,"AGE CONCERN BRACKNELL FOREST"
"Bracknell Forest Council","http://opendatacommunities.org/id/unitary-authority/bracknell-forest","Bracknell Forest Council","00MA","Assistive Equipment & Technology","Assistive Equipment & Technology","Assistive Equipment and Technology","Contracted Services",30/06/2019 00:00:00,"6691247",5652,"AGE UK BERKSHIRE"
"Bracknell Forest Council","http://opendatacommunities.org/id/unitary-authority/bracknell-forest","Bracknell Forest Council","00MA","Older People (65+)","Long Term Support - Nursing","MC Older People 65+ Long Term Support - Nursing","Contracted Services",03/10/2019 00:00:00,"30364189",2438.68,"AILSA LODGE CARE HOME"
"Bracknell Forest Council","http://opendatacommunities.org/id/unitary-authority/bracknell-forest","Bracknell Forest Council","00MA","Older People (65+)","Long Term Support - Nursing","MC Older People 65+ Long Term Support - Nursing","Contracted Services",31/10/2019 00:00:00,"30365674",2438.68,"AILSA LODGE CARE HOME"
"Bracknell Forest Council","http://opendatacommunities.org/id/unitary-authority/bracknell-forest","Bracknell Forest Council","00MA","Older People (65+)","Long Term Support - Nursing","MC Older People 65+ Long Term Support - Nursing","Contracted Services",28/11/2019 00:00:00,"30367269",2438.68,"AILSA LODGE CARE HOME"
"Bracknell Forest Council","http://opendatacommunities.org/id/unitary-authority/bracknell-forest","Bracknell Forest Council","00MA","Substance Misuse","Drug misuse in adults","Drug Testing Costs","Other Fees for Bought-in Services",30/09/2019 00:00:00,"6690637",568.5,"ALERE TOXICOLOGY PLC"
"Bracknell Forest Council","http://opendatacommunities.org/id/unitary-authority/bracknell-forest","Bracknell Forest Council","00MA","Central Support Services - COF","Finance","Insurance Premiums Holding Account","Bad Debt Provision",21/03/2019 00:00:00,"6693594",2266.14,"ALLIANZ INSURANCE PLC"
"Bracknell Forest Council","http://opendatacommunities.org/id/unitary-authority/bracknell-forest","Bracknell Forest Council","00MA","Central Support Services - COF","Finance","Insurance Premiums Holding Account","Bad Debt Provision",21/03/2019 00:00:00,"6693594",11088.31,"ALLIANZ INSURANCE PLC"
"Bracknell Forest Council","http://opendatacommunities.org/id/unitary-authority/bracknell-forest","Bracknell Forest Council","00MA","Central Support Services - COF","Finance","Insurance Premiums Holding Account","Bad Debt Provision",13/08/2019 00:00:00,"6693595",-827.38,"ALLIANZ INSURANCE PLC"
"Bracknell Forest Council","http://opendatacommunities.org/id/unitary-authority/bracknell-forest","Bracknell Forest Council","00MA","Older People (65+)","Long Term Support - Community:Other Long Term Care","PS Long Term Support - Community: Other Long Term Care Blue Badges","Contracted Services",18/11/2019 00:00:00,"6693299",529.64,"ALLIED PUBLICITY SERVICES (MANCHESTER) LIMITED"
"Bracknell Forest Council","http://opendatacommunities.org/id/unitary-authority/bracknell-forest","Bracknell Forest Council","00MA","Commissioning & Service Delivery","Commissioning & Service Delivery","Adult Social Care Pre-paid Cards","Other Support to Clients",17/07/2019 00:00:00,"6693541",558.9,"ALLPAY *don't use"
"Bracknell Forest Council","http://opendatacommunities.org/id/unitary-authority/bracknell-forest","Bracknell Forest Council","00MA","Commissioning & Service Delivery","Commissioning & Service Delivery","Adult Social Care Pre-paid Cards","Other Support to Clients",17/07/2019 00:00:00,"6693542",654.95,"ALLPAY *don't use"
"Bracknell Forest Council","http://opendatacommunities.org/id/unitary-authority/bracknell-forest","Bracknell Forest Council","00MA","Commissioning & Service Delivery","Commissioning & Service Delivery","Receivership and Appointee Clients","Other Support to Clients",31/10/2019 00:00:00,"6693159",558.1,"ALLPAY LTD **3150"
"Bracknell Forest Council","http://opendatacommunities.org/id/unitary-authority/bracknell-forest","Bracknell Forest Council","00MA","Commissioning & Service Delivery","Commissioning & Service Delivery","Adult Social Care Pre-paid Cards","Other Support to Clients",17/07/2019 00:00:00,"6693538",558.9,"ALLPAY LTD **3150"
"Bracknell Forest Council","http://opendatacommunities.org/id/unitary-authority/bracknell-forest","Bracknell Forest Council","00MA","Commissioning & Service Delivery","Commissioning & Service Delivery","Adult Social Care Pre-paid Cards","Other Support to Clients",17/07/2019 00:00:00,"6693539",654.95,"ALLPAY LTD **3150"
"Bracknell Forest Council","http://opendatacommunities.org/id/unitary-authority/bracknell-forest","Bracknell Forest Council","00MA","Commissioning & Service Delivery","Commissioning & Service Delivery","Adult Social Care Pre-paid Cards","Other Support to Clients",30/06/2019 00:00:00,"6693568",797.82,"ALLPAY LTD **3150"
"Bracknell Forest Council","http://opendatacommunities.org/id/unitary-authority/bracknell-forest","Bracknell Forest Council","00MA","Commissioning & Service Delivery","Commissioning & Service Delivery","Receivership and Appointee Clients","Other Support to Clients",31/07/2019 00:00:00,"6693158",1059,"ALLPAY LTD **3150"
"Bracknell Forest Council","http://opendatacommunities.org/id/unitary-authority/bracknell-forest","Bracknell Forest Council","00MA","Commissioning & Service Delivery","Commissioning & Service Delivery","Adult Social Care Pre-paid Cards","Other Support to Clients",31/07/2019 00:00:00,"6693567",1108.38,"ALLPAY LTD **3150"
"Bracknell Forest Council","http://opendatacommunities.org/id/unitary-authority/bracknell-forest","Bracknell Forest Council","00MA","Commissioning & Service Delivery","Commissioning & Service Delivery","Financial Assessments","Other Support to Clients",30/09/2019 00:00:00,"6690923",1291.53,"ALLPAY LTD **3150"
"Bracknell Forest Council","http://opendatacommunities.org/id/unitary-authority/bracknell-forest","Bracknell Forest Council","00MA","Commissioning & Service Delivery","Commissioning & Service Delivery","Financial Assessments","Other Support to Clients",31/10/2019 00:00:00,"6692329",1750.32,"ALLPAY LTD **3150"
"Bracknell Forest Council","http://opendatacommunities.org/id/unitary-authority/bracknell-forest","Bracknell Forest Council","00MA","Central Support Services - COF","Fleet","Transport Services","Diesel",30/09/2019 00:00:00,"6690649",1047.69,"ALLSTAR BUSINESS SOLUTIONS LTD"
"Bracknell Forest Council","http://opendatacommunities.org/id/unitary-authority/bracknell-forest","Bracknell Forest Council","00MA","Central Support Services - COF","Fleet","Transport Services","Diesel",31/10/2019 00:00:00,"6692276",1465.83,"ALLSTAR BUSINESS SOLUTIONS LTD"
"Bracknell Forest Council","http://opendatacommunities.org/id/unitary-authority/bracknell-forest","Bracknell Forest Council","00MA","Open Spaces","Community Parks & Open Spaces","Tree Service","Contracted Services",07/10/2019 00:00:00,"6691757",625,"ALPINE TREE SURGEONS LTD"
"Bracknell Forest Council","http://opendatacommunities.org/id/unitary-authority/bracknell-forest","Bracknell Forest Council","00MA","Cemeteries, Crematoria & Mortuary Services","Cemeteries & Crematorium","Easthampstead Park Cemetery & Crematorium","R&M - Reactive",09/10/2019 00:00:00,"6691332",1500,"AMBANJA PICTURES"
"Bracknell Forest Council","http://opendatacommunities.org/id/unitary-authority/bracknell-forest","Bracknell Forest Council","00MA","Central Support Services - COF","Construction and Property","Time Square Office","Other Fees for Bought-in Services",22/08/2019 00:00:00,"6691483",500,"AMBLEGLOW LTD"
"Bracknell Forest Council","http://opendatacommunities.org/id/unitary-authority/bracknell-forest","Bracknell Forest Council","00MA","Other Education and Community Budget","Service strategy and other education functions","Education Psychology Service","Recruitment Expenses",20/11/2019 00:00:00,"6693794",1460,"AMBLEGLOW LTD"
"Bracknell Forest Council","http://opendatacommunities.org/id/unitary-authority/bracknell-forest","Bracknell Forest Council","00MA","Central Support Services - COF","Legal","Legal Services","Staff Advertising",06/11/2019 00:00:00,"6692922",3455,"AMBLEGLOW LTD"
"Bracknell Forest Council","http://opendatacommunities.org/id/unitary-authority/bracknell-forest","Bracknell Forest Council","00MA","Children Looked After","Residential care","Children's Home Placements","Contracted Services",01/11/2019 00:00:00,"6692850",15000,"AMEGREEN CHILDRENS SERVICES"
"Bracknell Forest Council","http://opendatacommunities.org/id/unitary-authority/bracknell-forest","Bracknell Forest Council","00MA","Children Looked After","Residential care","Children's Home Placements","Contracted Services",01/10/2019 00:00:00,"6691181",15500,"AMEGREEN CHILDRENS SERVICES"
"Bracknell Forest Council","http://opendatacommunities.org/id/unitary-authority/bracknell-forest","Bracknell Forest Council","00MA","Children Looked After","Residential care","Children's Home Placements","Contracted Services",01/10/2019 00:00:00,"6691182",15500,"AMEGREEN CHILDRENS SERVICES"
"Bracknell Forest Council","http://opendatacommunities.org/id/unitary-authority/bracknell-forest","Bracknell Forest Council","00MA","Cemeteries, Crematoria & Mortuary Services","Cemeteries & Crematorium","Cemetery & Crematorium Landscaping","Materials",23/10/2019 00:00:00,"6691698",928,"AMETHYST HORTICULTURE LIMITED"
"Bracknell Forest Council","http://opendatacommunities.org/id/unitary-authority/bracknell-forest","Bracknell Forest Council","00MA","Special Schools","Delegated Secondary Schools Budgets","Garth Hill - Secondary","R&M - Reactive",22/10/2019 00:00:00,"6692260",557.3,"ANCHOR PIPEWORK LIMITED"
"Bracknell Forest Council","http://opendatacommunities.org/id/unitary-authority/bracknell-forest","Bracknell Forest Council","00MA","Special Schools","Delegated Secondary Schools Budgets","Garth Hill - Secondary","R&M - Reactive",22/10/2019 00:00:00,"6692255",780.43,"ANCHOR PIPEWORK LIMITED"
"Bracknell Forest Council","http://opendatacommunities.org/id/unitary-authority/bracknell-forest","Bracknell Forest Council","00MA","Substance Misuse","Drug misuse in adults","SM DAAT Administration Costs","Training Costs",25/10/2019 00:00:00,"6691913",646.35,"ANTONIO  D'AGOSTINO - TD CONSULTANCY"
"Bracknell Forest Council","http://opendatacommunities.org/id/unitary-authority/bracknell-forest","Bracknell Forest Council","00MA","Other Welfare Services","Other Welfare Services","Forestcare - Lifeline (Community Alarms)","Equipment - Rental",02/12/2019 00:00:00,"6693817",2700,"ANYWHERE CARE LIMITED"
"Bracknell Forest Council","http://opendatacommunities.org/id/unitary-authority/bracknell-forest","Bracknell Forest Council","00MA","Other Welfare Services","Other Welfare Services","Forestcare - Lifeline (Community Alarms)","Equipment - Rental",31/10/2019 00:00:00,"6693504",5970,"ANYWHERE CARE LIMITED"
"Bracknell Forest Council","http://opendatacommunities.org/id/unitary-authority/bracknell-forest","Bracknell Forest Council","00MA","","","Braccan Walk Youth Centre","Construction - Other Direct Expenses",21/10/2019 00:00:00,"6691888",725,"APEC ENVIRONMENTAL LTD"
"Bracknell Forest Council","http://opendatacommunities.org/id/unitary-authority/bracknell-forest","Bracknell Forest Council","00MA","Children Looked After","Leaving care support services","Care Leavers Support","Other Support to Clients",06/10/2019 00:00:00,"6690995",551.59,"ARGOS BUSINESS"
"Bracknell Forest Council","http://opendatacommunities.org/id/unitary-authority/bracknell-forest","Bracknell Forest Council","00MA","Children Looked After","Leaving care support services","Care Leavers Support","Other Support to Clients",20/10/2019 00:00:00,"6691878",609.93,"ARGOS BUSINESS"
"Bracknell Forest Council","http://opendatacommunities.org/id/unitary-authority/bracknell-forest","Bracknell Forest Council","00MA","Open Spaces","Community Parks & Open Spaces","Tree Service","Contracted Services",14/10/2019 00:00:00,"6691534",1280,"ARTEMIS TREE SERVICES"
"Bracknell Forest Council","http://opendatacommunities.org/id/unitary-authority/bracknell-forest","Bracknell Forest Council","00MA","Open Spaces","Community Parks & Open Spaces","Urban Parks  - Maintenance","R&M - Planned",10/10/2019 00:00:00,"6691518",2560,"ARTEMIS TREE SERVICES"
"Bracknell Forest Council","http://opendatacommunities.org/id/unitary-authority/bracknell-forest","Bracknell Forest Council","00MA","Older People (65+)","Long Term Support - Nursing","MC Older People 65+ Long Term Support - Nursing","Contracted Services",03/10/2019 00:00:00,"30364189",4543.88,"ASCOT RESIDENTIAL HOMES LTD"
"Bracknell Forest Council","http://opendatacommunities.org/id/unitary-authority/bracknell-forest","Bracknell Forest Council","00MA","Older People (65+)","Long Term Support - Nursing","MC Older People 65+ Long Term Support - Nursing","Contracted Services",03/10/2019 00:00:00,"30364189",4800,"ASCOT RESIDENTIAL HOMES LTD"
"Bracknell Forest Council","http://opendatacommunities.org/id/unitary-authority/bracknell-forest","Bracknell Forest Council","00MA","Older People (65+)","Long Term Support - Nursing","PS Older People 65+ Long Term Support - Nursing","Contracted Services",03/10/2019 00:00:00,"30364189",5170.84,"ASCOT RESIDENTIAL HOMES LTD"
"Bracknell Forest Council","http://opendatacommunities.org/id/unitary-authority/bracknell-forest","Bracknell Forest Council","00MA","Older People (65+)","Long Term Support - Nursing","PS Older People 65+ Long Term Support - Nursing","Contracted Services",03/10/2019 00:00:00,"30364189",1826.29,"ASCOT RESIDENTIAL HOMES LTD"
"Bracknell Forest Council","http://opendatacommunities.org/id/unitary-authority/bracknell-forest","Bracknell Forest Council","00MA","Older People (65+)","Long Term Support - Nursing","PS Older People 65+ Long Term Support - Nursing","Contracted Services",31/10/2019 00:00:00,"30365674",5170.84,"ASCOT RESIDENTIAL HOMES LTD"
"Bracknell Forest Council","http://opendatacommunities.org/id/unitary-authority/bracknell-forest","Bracknell Forest Council","00MA","Older People (65+)","Long Term Support - Nursing","MC Older People 65+ Long Term Support - Nursing","Contracted Services",31/10/2019 00:00:00,"30365674",4543.88,"ASCOT RESIDENTIAL HOMES LTD"
"Bracknell Forest Council","http://opendatacommunities.org/id/unitary-authority/bracknell-forest","Bracknell Forest Council","00MA","Older People (65+)","Long Term Support - Nursing","MC Older People 65+ Long Term Support - Nursing","Contracted Services",31/10/2019 00:00:00,"30365674",4800,"ASCOT RESIDENTIAL HOMES LTD"
"Bracknell Forest Council","http://opendatacommunities.org/id/unitary-authority/bracknell-forest","Bracknell Forest Council","00MA","Older People (65+)","Long Term Support - Nursing","PS Older People 65+ Long Term Support - Nursing","Contracted Services",28/11/2019 00:00:00,"30367269",5170.84,"ASCOT RESIDENTIAL HOMES LTD"
"Bracknell Forest Council","http://opendatacommunities.org/id/unitary-authority/bracknell-forest","Bracknell Forest Council","00MA","Older People (65+)","Long Term Support - Nursing","MC Older People 65+ Long Term Support - Nursing","Contracted Services",28/11/2019 00:00:00,"30367269",4800,"ASCOT RESIDENTIAL HOMES LTD"
"Bracknell Forest Council","http://opendatacommunities.org/id/unitary-authority/bracknell-forest","Bracknell Forest Council","00MA","Older People (65+)","Long Term Support - Nursing","MC Older People 65+ Long Term Support - Nursing","Contracted Services",28/11/2019 00:00:00,"30367269",4543.88,"ASCOT RESIDENTIAL HOMES LTD"
"Bracknell Forest Council","http://opendatacommunities.org/id/unitary-authority/bracknell-forest","Bracknell Forest Council","00MA","Older People (65+)","Long term Support - Residential","PS Older People 65+ Long Term Support - Residential","Contracted Services",03/10/2019 00:00:00,"30364189",2579.64,"ASHGROVE CARE HOME"
"Bracknell Forest Council","http://opendatacommunities.org/id/unitary-authority/bracknell-forest","Bracknell Forest Council","00MA","Older People (65+)","Long term Support - Residential","PS Older People 65+ Long Term Support - Residential","Contracted Services",31/10/2019 00:00:00,"30365674",2579.64,"ASHGROVE CARE HOME"
"Bracknell Forest Council","http://opendatacommunities.org/id/unitary-authority/bracknell-forest","Bracknell Forest Council","00MA","Older People (65+)","Long term Support - Residential","PS Older People 65+ Long Term Support - Residential","Contracted Services",28/11/2019 00:00:00,"30367269",2579.64,"ASHGROVE CARE HOME"
"Bracknell Forest Council","http://opendatacommunities.org/id/unitary-authority/bracknell-forest","Bracknell Forest Council","00MA","Libraries","Stock Ordering, Cataloguing & Distribution","Library Book Fund","Audio/Visual materials",14/10/2019 00:00:00,"6691516",507,"ASKEWS & HOLTS LIBRARY SERVICE"
"Bracknell Forest Council","http://opendatacommunities.org/id/unitary-authority/bracknell-forest","Bracknell Forest Council","00MA","Libraries","Stock Ordering, Cataloguing & Distribution","Library Book Fund","Audio/Visual materials",28/10/2019 00:00:00,"6692273",513.45,"ASKEWS & HOLTS LIBRARY SERVICE"
"Bracknell Forest Council","http://opendatacommunities.org/id/unitary-authority/bracknell-forest","Bracknell Forest Council","00MA","Libraries","Stock Ordering, Cataloguing & Distribution","Library Book Fund","Audio/Visual materials",28/10/2019 00:00:00,"6692273",528.51,"ASKEWS & HOLTS LIBRARY SERVICE"
"Bracknell Forest Council","http://opendatacommunities.org/id/unitary-authority/bracknell-forest","Bracknell Forest Council","00MA","Libraries","Stock Ordering, Cataloguing & Distribution","Library Book Fund","Audio/Visual materials",13/10/2019 00:00:00,"6691563",688.92,"ASKEWS & HOLTS LIBRARY SERVICE"
"Bracknell Forest Council","http://opendatacommunities.org/id/unitary-authority/bracknell-forest","Bracknell Forest Council","00MA","Libraries","Stock Ordering, Cataloguing & Distribution","Library Book Fund","Audio/Visual materials",21/10/2019 00:00:00,"6691943",746.02,"ASKEWS & HOLTS LIBRARY SERVICE"
"Bracknell Forest Council","http://opendatacommunities.org/id/unitary-authority/bracknell-forest","Bracknell Forest Council","00MA","Libraries","Stock Ordering, Cataloguing & Distribution","Library Book Fund","Audio/Visual materials",11/11/2019 00:00:00,"6693421",808.63,"ASKEWS & HOLTS LIBRARY SERVICE"
"Bracknell Forest Council","http://opendatacommunities.org/id/unitary-authority/bracknell-forest","Bracknell Forest Council","00MA","Libraries","Stock Ordering, Cataloguing & Distribution","Library Book Fund","Audio/Visual materials",14/10/2019 00:00:00,"6691516",828.18,"ASKEWS & HOLTS LIBRARY SERVICE"
"Bracknell Forest Council","http://opendatacommunities.org/id/unitary-authority/bracknell-forest","Bracknell Forest Council","00MA","Libraries","Stock Ordering, Cataloguing & Distribution","Library Book Fund","Audio/Visual materials",21/10/2019 00:00:00,"6691943",867.35,"ASKEWS & HOLTS LIBRARY SERVICE"
"Bracknell Forest Council","http://opendatacommunities.org/id/unitary-authority/bracknell-forest","Bracknell Forest Council","00MA","Libraries","Stock Ordering, Cataloguing & Distribution","Library Book Fund","Audio/Visual materials",04/11/2019 00:00:00,"6693111",930.27,"ASKEWS & HOLTS LIBRARY SERVICE"
"Bracknell Forest Council","http://opendatacommunities.org/id/unitary-authority/bracknell-forest","Bracknell Forest Council","00MA","Libraries","Stock Ordering, Cataloguing & Distribution","Library Book Fund","Audio/Visual materials",04/11/2019 00:00:00,"6693111",1043.78,"ASKEWS & HOLTS LIBRARY SERVICE"
"Bracknell Forest Council","http://opendatacommunities.org/id/unitary-authority/bracknell-forest","Bracknell Forest Council","00MA","Libraries","Stock Ordering, Cataloguing & Distribution","Library Book Fund","Audio/Visual materials",14/10/2019 00:00:00,"6691516",1057.13,"ASKEWS & HOLTS LIBRARY SERVICE"
"Bracknell Forest Council","http://opendatacommunities.org/id/unitary-authority/bracknell-forest","Bracknell Forest Council","00MA","Libraries","Stock Ordering, Cataloguing & Distribution","Library Book Fund","Audio/Visual materials",30/09/2019 00:00:00,"6690937",1065.31,"ASKEWS & HOLTS LIBRARY SERVICE"
"Bracknell Forest Council","http://opendatacommunities.org/id/unitary-authority/bracknell-forest","Bracknell Forest Council","00MA","Libraries","Stock Ordering, Cataloguing & Distribution","Library Book Fund","Audio/Visual materials",13/10/2019 00:00:00,"6691563",1172.4,"ASKEWS & HOLTS LIBRARY SERVICE"
"Bracknell Forest Council","http://opendatacommunities.org/id/unitary-authority/bracknell-forest","Bracknell Forest Council","00MA","Libraries","Stock Ordering, Cataloguing & Distribution","Library Book Fund","Audio/Visual materials",21/10/2019 00:00:00,"6691943",1232.45,"ASKEWS & HOLTS LIBRARY SERVICE"
"Bracknell Forest Council","http://opendatacommunities.org/id/unitary-authority/bracknell-forest","Bracknell Forest Council","00MA","Libraries","Stock Ordering, Cataloguing & Distribution","Library Book Fund","Audio/Visual materials",18/11/2019 00:00:00,"6693855",1287.55,"ASKEWS & HOLTS LIBRARY SERVICE"
"Bracknell Forest Council","http://opendatacommunities.org/id/unitary-authority/bracknell-forest","Bracknell Forest Council","00MA","Libraries","Stock Ordering, Cataloguing & Distribution","Library Book Fund","Audio/Visual materials",13/10/2019 00:00:00,"6691563",1637.27,"ASKEWS & HOLTS LIBRARY SERVICE"
"Bracknell Forest Council","http://opendatacommunities.org/id/unitary-authority/bracknell-forest","Bracknell Forest Council","00MA","Sexual Health Services","Contraception","GP LARC Payments","Contracted Services",03/10/2019 00:00:00,"6690775",6567,"ASSURA READING LLP"
"Bracknell Forest Council","http://opendatacommunities.org/id/unitary-authority/bracknell-forest","Bracknell Forest Council","00MA","Adults (18-64)","Long term Support - Residential","PS Adults 18-64 Long Term Support - Residential","Contracted Services",03/10/2019 00:00:00,"30364189",-3488.57,"ASTBURY MANOR CARE HOME"
"Bracknell Forest Council","http://opendatacommunities.org/id/unitary-authority/bracknell-forest","Bracknell Forest Council","00MA","Older People (65+)","Short Term Support Other","PS Older People 65+ Other Short Term support","Contracted Services",03/10/2019 00:00:00,"30364189",740,"ASTBURY MANOR CARE HOME"
"Bracknell Forest Council","http://opendatacommunities.org/id/unitary-authority/bracknell-forest","Bracknell Forest Council","00MA","Older People (65+)","Long term Support - Residential","MC Older People 65+ Long Term Support - Residential","Contracted Services",03/10/2019 00:00:00,"30364189",7885.71,"ASTBURY MANOR CARE HOME"
"Bracknell Forest Council","http://opendatacommunities.org/id/unitary-authority/bracknell-forest","Bracknell Forest Council","00MA","Older People (65+)","Long term Support - Residential","MC Older People 65+ Long Term Support - Residential","Contracted Services",03/10/2019 00:00:00,"30364189",46725.71,"ASTBURY MANOR CARE HOME"
"Bracknell Forest Council","http://opendatacommunities.org/id/unitary-authority/bracknell-forest","Bracknell Forest Council","00MA","Older People (65+)","Long term Support - Residential","PS Older People 65+ Long Term Support - Residential","Contracted Services",03/10/2019 00:00:00,"30364189",2960,"ASTBURY MANOR CARE HOME"
"Bracknell Forest Council","http://opendatacommunities.org/id/unitary-authority/bracknell-forest","Bracknell Forest Council","00MA","Older People (65+)","Long term Support - Residential","PS Older People 65+ Long Term Support - Residential","Contracted Services",03/10/2019 00:00:00,"30364189",13002.86,"ASTBURY MANOR CARE HOME"
"Bracknell Forest Council","http://opendatacommunities.org/id/unitary-authority/bracknell-forest","Bracknell Forest Council","00MA","Adults (18-64)","Long term Support - Residential","MC Adults 18-64 Long Term Support - Residential","Contracted Services",03/10/2019 00:00:00,"30364189",2960,"ASTBURY MANOR CARE HOME"
"Bracknell Forest Council","http://opendatacommunities.org/id/unitary-authority/bracknell-forest","Bracknell Forest Council","00MA","Adults (18-64)","Short Term Support Other","MC Adults 18-64 Other Short Term support","Contracted Services",31/10/2019 00:00:00,"30365674",105.71,"ASTBURY MANOR CARE HOME"
"Bracknell Forest Council","http://opendatacommunities.org/id/unitary-authority/bracknell-forest","Bracknell Forest Council","00MA","Older People (65+)","Long term Support - Residential","PS Older People 65+ Long Term Support - Residential","Contracted Services",31/10/2019 00:00:00,"30365674",2960,"ASTBURY MANOR CARE HOME"
"Bracknell Forest Council","http://opendatacommunities.org/id/unitary-authority/bracknell-forest","Bracknell Forest Council","00MA","Older People (65+)","Long term Support - Residential","PS Older People 65+ Long Term Support - Residential","Contracted Services",31/10/2019 00:00:00,"30365674",13848.57,"ASTBURY MANOR CARE HOME"
"Bracknell Forest Council","http://opendatacommunities.org/id/unitary-authority/bracknell-forest","Bracknell Forest Council","00MA","Older People (65+)","Long term Support - Residential","PS Older People 65+ Long Term Support - Residential","Contracted Services",31/10/2019 00:00:00,"30365674",1480,"ASTBURY MANOR CARE HOME"
"Bracknell Forest Council","http://opendatacommunities.org/id/unitary-authority/bracknell-forest","Bracknell Forest Council","00MA","Older People (65+)","Short Term Support Other","MC Older People 65+ Other Short Term support","Contracted Services",31/10/2019 00:00:00,"30365674",634.29,"ASTBURY MANOR CARE HOME"
"Bracknell Forest Council","http://opendatacommunities.org/id/unitary-authority/bracknell-forest","Bracknell Forest Council","00MA","Adults (18-64)","Long term Support - Residential","MC Adults 18-64 Long Term Support - Residential","Contracted Services",31/10/2019 00:00:00,"30365674",2960,"ASTBURY MANOR CARE HOME"
"Bracknell Forest Council","http://opendatacommunities.org/id/unitary-authority/bracknell-forest","Bracknell Forest Council","00MA","Older People (65+)","Long term Support - Residential","MC Older People 65+ Long Term Support - Residential","Contracted Services",31/10/2019 00:00:00,"30365674",42391.43,"ASTBURY MANOR CARE HOME"
"Bracknell Forest Council","http://opendatacommunities.org/id/unitary-authority/bracknell-forest","Bracknell Forest Council","00MA","Older People (65+)","Long term Support - Residential","MC Older People 65+ Long Term Support - Residential","Contracted Services",31/10/2019 00:00:00,"30365674",4228.57,"ASTBURY MANOR CARE HOME"
"Bracknell Forest Council","http://opendatacommunities.org/id/unitary-authority/bracknell-forest","Bracknell Forest Council","00MA","Older People (65+)","Long term Support - Residential","MC Older People 65+ Long Term Support - Residential","Contracted Services",31/10/2019 00:00:00,"30365674",4600,"ASTBURY MANOR CARE HOME"
"Bracknell Forest Council","http://opendatacommunities.org/id/unitary-authority/bracknell-forest","Bracknell Forest Council","00MA","Older People (65+)","Long term Support - Residential","PS Older People 65+ Long Term Support - Residential","Contracted Services",28/11/2019 00:00:00,"30367269",14800,"ASTBURY MANOR CARE HOME"
"Bracknell Forest Council","http://opendatacommunities.org/id/unitary-authority/bracknell-forest","Bracknell Forest Council","00MA","Older People (65+)","Long term Support - Residential","PS Older People 65+ Long Term Support - Residential","Contracted Services",28/11/2019 00:00:00,"30367269",2960,"ASTBURY MANOR CARE HOME"
"Bracknell Forest Council","http://opendatacommunities.org/id/unitary-authority/bracknell-forest","Bracknell Forest Council","00MA","Adults (18-64)","Long term Support - Community:Homecare","MH Adults 18-64 Long Term Support - Community:Homecare","Contracted Services",21/11/2019 00:00:00,"30366942",1442.91,"COMFORT CARE SERVICES"
"Bracknell Forest Council","http://opendatacommunities.org/id/unitary-authority/bracknell-forest","Bracknell Forest Council","00MA","Adults (18-64)","Long Term Support - Supported Accommodation","LD Adults 18-64 Long Term Support - Supported Accommodation","Contracted Services",21/11/2019 00:00:00,"30366942",2680.15,"COMFORT CARE SERVICES"
"Bracknell Forest Council","http://opendatacommunities.org/id/unitary-authority/bracknell-forest","Bracknell Forest Council","00MA","Adults (18-64)","Long Term Support - Supported Accommodation","MH Adults 18-64 Long Term Support - Supported Accommodation","Contracted Services",28/11/2019 00:00:00,"30367270",2803.8,"COMFORT CARE SERVICES"
"Bracknell Forest Council","http://opendatacommunities.org/id/unitary-authority/bracknell-forest","Bracknell Forest Council","00MA","Services for Young People","Universal services for young people","Coopers Hill Youth Centre","Office Stationery",23/09/2019 00:00:00,"30364483",3.18,"COMMERCIAL LTD"
"Bracknell Forest Council","http://opendatacommunities.org/id/unitary-authority/bracknell-forest","Bracknell Forest Council","00MA","Services for Young People","Universal services for young people","Coopers Hill Youth Centre","Office Stationery",23/09/2019 00:00:00,"30364483",0.45,"COMMERCIAL LTD"
"Bracknell Forest Council","http://opendatacommunities.org/id/unitary-authority/bracknell-forest","Bracknell Forest Council","00MA","Services for Young People","Universal services for young people","Coopers Hill Youth Centre","Office Stationery",23/09/2019 00:00:00,"30364483",6.99,"COMMERCIAL LTD"
"Bracknell Forest Council","http://opendatacommunities.org/id/unitary-authority/bracknell-forest","Bracknell Forest Council","00MA","Adults (18-64)","Long term Support - Residential","MC Adults 18-64 Long Term Support - Residential","Contracted Services",28/11/2019 00:00:00,"30367269",2960,"ASTBURY MANOR CARE HOME"
"Bracknell Forest Council","http://opendatacommunities.org/id/unitary-authority/bracknell-forest","Bracknell Forest Council","00MA","Older People (65+)","Short Term Support Other","MC Older People 65+ Other Short Term support","Contracted Services",28/11/2019 00:00:00,"30367269",2431.43,"ASTBURY MANOR CARE HOME"
"Bracknell Forest Council","http://opendatacommunities.org/id/unitary-authority/bracknell-forest","Bracknell Forest Council","00MA","Older People (65+)","Long term Support - Residential","PS Older People 65+ Long Term Support - Residential","Contracted Services",28/11/2019 00:00:00,"30367269",2960,"ASTBURY MANOR CARE HOME"
"Bracknell Forest Council","http://opendatacommunities.org/id/unitary-authority/bracknell-forest","Bracknell Forest Council","00MA","Older People (65+)","Long term Support - Residential","MC Older People 65+ Long Term Support - Residential","Contracted Services",28/11/2019 00:00:00,"30367269",41440,"ASTBURY MANOR CARE HOME"
"Bracknell Forest Council","http://opendatacommunities.org/id/unitary-authority/bracknell-forest","Bracknell Forest Council","00MA","Older People (65+)","Long term Support - Residential","MC Older People 65+ Long Term Support - Residential","Contracted Services",28/11/2019 00:00:00,"30367269",2960,"ASTBURY MANOR CARE HOME"
"Bracknell Forest Council","http://opendatacommunities.org/id/unitary-authority/bracknell-forest","Bracknell Forest Council","00MA","Older People (65+)","Long term Support - Residential","MC Older People 65+ Long Term Support - Residential","Contracted Services",28/11/2019 00:00:00,"30367269",4600,"ASTBURY MANOR CARE HOME"
"Bracknell Forest Council","http://opendatacommunities.org/id/unitary-authority/bracknell-forest","Bracknell Forest Council","00MA","Holding Accounts not in Budget Book - COF","General Holding Accounts","Repairs and Maintenance","Consultants Fees",25/10/2019 00:00:00,"6692311",975,"ATKINS LTD"
"Bracknell Forest Council","http://opendatacommunities.org/id/unitary-authority/bracknell-forest","Bracknell Forest Council","00MA","Holding Accounts not in Budget Book - COF","General Holding Accounts","Repairs and Maintenance","R&M - Reactive",25/10/2019 00:00:00,"6693453",1174.07,"ATKINS LTD"
"Bracknell Forest Council","http://opendatacommunities.org/id/unitary-authority/bracknell-forest","Bracknell Forest Council","00MA","Homelessness","Accommodation within own Stock","BFC Properties","R&M - Planned",30/08/2019 00:00:00,"6692372",1479.2,"ATKINS LTD"
"Bracknell Forest Council","http://opendatacommunities.org/id/unitary-authority/bracknell-forest","Bracknell Forest Council","00MA","Homelessness","Accommodation within own Stock","BFC Properties","R&M - Planned",30/08/2019 00:00:00,"6692372",1479.2,"ATKINS LTD"
"Bracknell Forest Council","http://opendatacommunities.org/id/unitary-authority/bracknell-forest","Bracknell Forest Council","00MA","Recreation, Sports and Leisure","Outdoor Sports & Recreation Facilities","Horseshoe Lane Country Park","R&M - Reactive",25/10/2019 00:00:00,"6692411",2439.32,"ATKINS LTD"
"Bracknell Forest Council","http://opendatacommunities.org/id/unitary-authority/bracknell-forest","Bracknell Forest Council","00MA","Homelessness","Prevention","Housing Management Operational Costs","Agency",12/11/2019 00:00:00,"6693508",2537.5,"ATKINS LTD"
"Bracknell Forest Council","http://opendatacommunities.org/id/unitary-authority/bracknell-forest","Bracknell Forest Council","00MA","Holding Accounts not in Budget Book - COF","General Holding Accounts","Repairs and Maintenance","R&M - Reactive",27/09/2019 00:00:00,"6692384",2962.1,"ATKINS LTD"
"Bracknell Forest Council","http://opendatacommunities.org/id/unitary-authority/bracknell-forest","Bracknell Forest Council","00MA","Holding Accounts not in Budget Book - COF","General Holding Accounts","Repairs and Maintenance","R&M - Reactive",31/07/2019 00:00:00,"6692409",4334.39,"ATKINS LTD"
"Bracknell Forest Council","http://opendatacommunities.org/id/unitary-authority/bracknell-forest","Bracknell Forest Council","00MA","Structural Maintenance","Bridges","Bridges","Consultants Fees",12/08/2019 00:00:00,"6692931",4554,"ATKINS LTD"
"Bracknell Forest Council","http://opendatacommunities.org/id/unitary-authority/bracknell-forest","Bracknell Forest Council","00MA","Holding Accounts not in Budget Book - COF","General Holding Accounts","Repairs and Maintenance","R&M - Reactive",25/10/2019 00:00:00,"6692417",4960.92,"ATKINS LTD"
"Bracknell Forest Council","http://opendatacommunities.org/id/unitary-authority/bracknell-forest","Bracknell Forest Council","00MA","Homelessness","Prevention","Housing Management Operational Costs","Agency",27/09/2019 00:00:00,"6690851",5906.25,"ATKINS LTD"
"Bracknell Forest Council","http://opendatacommunities.org/id/unitary-authority/bracknell-forest","Bracknell Forest Council","00MA","Structural Maintenance","Bridges","Bridges - Other Roads","Consultants Fees",06/09/2019 00:00:00,"6692997",6565.01,"ATKINS LTD"
"Bracknell Forest Council","http://opendatacommunities.org/id/unitary-authority/bracknell-forest","Bracknell Forest Council","00MA","Structural Maintenance","Bridges","Bridges - Other Roads","Consultants Fees",12/08/2019 00:00:00,"6692931",6693.19,"ATKINS LTD"
"Bracknell Forest Council","http://opendatacommunities.org/id/unitary-authority/bracknell-forest","Bracknell Forest Council","00MA","Holding Accounts not in Budget Book - COF","General Holding Accounts","Repairs and Maintenance","R&M - Reactive",27/09/2019 00:00:00,"6691529",8359.15,"ATKINS LTD"
"Bracknell Forest Council","http://opendatacommunities.org/id/unitary-authority/bracknell-forest","Bracknell Forest Council","00MA","Central Support Services - COF","Construction and Property","Construction & Maintenance","Agency",29/11/2019 00:00:00,"6693966",8800,"ATKINS LTD"
"Bracknell Forest Council","http://opendatacommunities.org/id/unitary-authority/bracknell-forest","Bracknell Forest Council","00MA","Central Support Services - COF","Construction and Property","Construction & Maintenance","Agency",25/10/2019 00:00:00,"6692410",9512.5,"ATKINS LTD"
"Bracknell Forest Council","http://opendatacommunities.org/id/unitary-authority/bracknell-forest","Bracknell Forest Council","00MA","Central Support Services - COF","Construction and Property","Construction & Maintenance","Agency",25/10/2019 00:00:00,"6693040",13747.78,"ATKINS LTD"
"Bracknell Forest Council","http://opendatacommunities.org/id/unitary-authority/bracknell-forest","Bracknell Forest Council","00MA","Structural Maintenance","Bridges","Bridges","Consultants Fees",06/09/2019 00:00:00,"6692997",13891.09,"ATKINS LTD"
"Bracknell Forest Council","http://opendatacommunities.org/id/unitary-authority/bracknell-forest","Bracknell Forest Council","00MA","","","Improvements & Capitalised Repairs (Council Wide)","Consultant Fees",27/09/2019 00:00:00,"6691531",587.09,"ATKINS LTD"
"Bracknell Forest Council","http://opendatacommunities.org/id/unitary-authority/bracknell-forest","Bracknell Forest Council","00MA","","","Improvements & Capitalised Repairs (Council Wide)","Consultant Fees",30/08/2019 00:00:00,"6691532",646.22,"ATKINS LTD"
"Bracknell Forest Council","http://opendatacommunities.org/id/unitary-authority/bracknell-forest","Bracknell Forest Council","00MA","","","Improvements & Capitalised Repairs (Council Wide)","Consultant Fees",27/09/2019 00:00:00,"6691530",566.26,"ATKINS LTD"
"Bracknell Forest Council","http://opendatacommunities.org/id/unitary-authority/bracknell-forest","Bracknell Forest Council","00MA","","","Improvements & Capitalised Repairs (Council Wide)","Consultant Fees",25/10/2019 00:00:00,"6692413",817.51,"ATKINS LTD"
"Bracknell Forest Council","http://opendatacommunities.org/id/unitary-authority/bracknell-forest","Bracknell Forest Council","00MA","","","Improvements & Capitalised Repairs (Council Wide)","Consultant Fees",29/11/2019 00:00:00,"6693973",1591.88,"ATKINS LTD"
"Bracknell Forest Council","http://opendatacommunities.org/id/unitary-authority/bracknell-forest","Bracknell Forest Council","00MA","","","Improvements & Capitalised Repairs (Council Wide)","Consultant Fees",25/10/2019 00:00:00,"6692412",1077.75,"ATKINS LTD"
"Bracknell Forest Council","http://opendatacommunities.org/id/unitary-authority/bracknell-forest","Bracknell Forest Council","00MA","","","Improvements & Capitalised Repairs (Council Wide)","Consultant Fees",25/10/2019 00:00:00,"6693454",587.09,"ATKINS LTD"
"Bracknell Forest Council","http://opendatacommunities.org/id/unitary-authority/bracknell-forest","Bracknell Forest Council","00MA","","","Property Review Feasibility","Consultant Fees",29/11/2019 00:00:00,"6693967",6267.88,"ATKINS LTD"
"Bracknell Forest Council","http://opendatacommunities.org/id/unitary-authority/bracknell-forest","Bracknell Forest Council","00MA","","","Country Park","Construction - Other Direct Expenses",25/10/2019 00:00:00,"6692262",43444.9,"ATKINS LTD"
"Bracknell Forest Council","http://opendatacommunities.org/id/unitary-authority/bracknell-forest","Bracknell Forest Council","00MA","","","Cranborne Primary-MTC","Consultant Fees",28/10/2019 00:00:00,"6692415",4184.12,"ATKINS LTD"
"Bracknell Forest Council","http://opendatacommunities.org/id/unitary-authority/bracknell-forest","Bracknell Forest Council","00MA","","","Cranborne Primary-MTC","Consultant Fees",28/10/2019 00:00:00,"6692414",3435.01,"ATKINS LTD"
"Bracknell Forest Council","http://opendatacommunities.org/id/unitary-authority/bracknell-forest","Bracknell Forest Council","00MA","","","Cranborne Primary-MTC","Consultant Fees",27/09/2019 00:00:00,"6692385",785.04,"ATKINS LTD"
"Bracknell Forest Council","http://opendatacommunities.org/id/unitary-authority/bracknell-forest","Bracknell Forest Council","00MA","","","Fox Hill Primary-MTC","Consultant Fees",25/10/2019 00:00:00,"6692418",1000.93,"ATKINS LTD"
"Bracknell Forest Council","http://opendatacommunities.org/id/unitary-authority/bracknell-forest","Bracknell Forest Council","00MA","","","Harmans Water Primary-MTC","Consultant Fees",27/09/2019 00:00:00,"6691359",8057.72,"ATKINS LTD"
"Bracknell Forest Council","http://opendatacommunities.org/id/unitary-authority/bracknell-forest","Bracknell Forest Council","00MA","","","Sandhurst Secondary-MTC","Consultant Fees",27/09/2019 00:00:00,"6691528",1347.84,"ATKINS LTD"
"Bracknell Forest Council","http://opendatacommunities.org/id/unitary-authority/bracknell-forest","Bracknell Forest Council","00MA","Holding Accounts not in Budget Book - COF","General Holding Accounts","Repairs and Maintenance","Consultants Fees",27/09/2019 00:00:00,"6691503",-815.59,"ATKINS LTD"
"Bracknell Forest Council","http://opendatacommunities.org/id/unitary-authority/bracknell-forest","Bracknell Forest Council","00MA","Social Care Activities","Social Care Activities","Community Network - ASCH&H","Other Support to Clients",12/11/2019 00:00:00,"6693042",2320,"ATR REMOVALS"
"Bracknell Forest Council","http://opendatacommunities.org/id/unitary-authority/bracknell-forest","Bracknell Forest Council","00MA","Social Care Activities","Social Care Activities","Mental Health Support - Other Care & Support","Other Support to Clients",12/11/2019 00:00:00,"6693065",2320,"ATR REMOVALS"
"Bracknell Forest Council","http://opendatacommunities.org/id/unitary-authority/bracknell-forest","Bracknell Forest Council","00MA","Adults (18-64)","Long term Support - Residential","LD Adults 18-64 Long Term Support - Residential","Contracted Services",03/10/2019 00:00:00,"30364189",1967.64,"AUTISM AT KINGWOOD"
"Bracknell Forest Council","http://opendatacommunities.org/id/unitary-authority/bracknell-forest","Bracknell Forest Council","00MA","Adults (18-64)","Long term Support - Residential","LD Adults 18-64 Long Term Support - Residential","Contracted Services",31/10/2019 00:00:00,"30365674",6335.92,"AUTISM AT KINGWOOD"
"Bracknell Forest Council","http://opendatacommunities.org/id/unitary-authority/bracknell-forest","Bracknell Forest Council","00MA","Adults (18-64)","Long term Support - Residential","LD Adults 18-64 Long Term Support - Residential","Contracted Services",28/11/2019 00:00:00,"30367269",6335.92,"AUTISM AT KINGWOOD"
"Bracknell Forest Council","http://opendatacommunities.org/id/unitary-authority/bracknell-forest","Bracknell Forest Council","00MA","Adults (18-64)","Long term Support - Residential","LD Adults 18-64 Long Term Support - Residential","Contracted Services",03/10/2019 00:00:00,"30364189",5355.2,"AUTISM SPECIALISED CARE HOMES LTD"
"Bracknell Forest Council","http://opendatacommunities.org/id/unitary-authority/bracknell-forest","Bracknell Forest Council","00MA","Adults (18-64)","Long term Support - Residential","LD Adults 18-64 Long Term Support - Residential","Contracted Services",31/10/2019 00:00:00,"30365674",5355.2,"AUTISM SPECIALISED CARE HOMES LTD"
"Bracknell Forest Council","http://opendatacommunities.org/id/unitary-authority/bracknell-forest","Bracknell Forest Council","00MA","Central Support Services - COF","Fleet","Integrated Transport Unit","Office Stationery",23/09/2019 00:00:00,"30364483",22.26,"COMMERCIAL LTD"
"Bracknell Forest Council","http://opendatacommunities.org/id/unitary-authority/bracknell-forest","Bracknell Forest Council","00MA","Services for Young People","Universal services for young people","Portman Close Running Costs","Office Stationery",23/09/2019 00:00:00,"30364483",35.27,"COMMERCIAL LTD"
"Bracknell Forest Council","http://opendatacommunities.org/id/unitary-authority/bracknell-forest","Bracknell Forest Council","00MA","Services for Young People","Universal services for young people","Portman Close Running Costs","Office Stationery",23/09/2019 00:00:00,"30364483",111,"COMMERCIAL LTD"
"Bracknell Forest Council","http://opendatacommunities.org/id/unitary-authority/bracknell-forest","Bracknell Forest Council","00MA","Services for Young People","Universal services for young people","Portman Close Running Costs","Office Stationery",23/09/2019 00:00:00,"30364483",0.94,"COMMERCIAL LTD"
"Bracknell Forest Council","http://opendatacommunities.org/id/unitary-authority/bracknell-forest","Bracknell Forest Council","00MA","Services for Young People","Universal services for young people","Portman Close Running Costs","Office Stationery",23/09/2019 00:00:00,"30364483",0.65,"COMMERCIAL LTD"
"Bracknell Forest Council","http://opendatacommunities.org/id/unitary-authority/bracknell-forest","Bracknell Forest Council","00MA","Culture and Heritage","Heritage Museums & Galleries","The Look Out","Office Stationery",23/09/2019 00:00:00,"30364483",44.52,"COMMERCIAL LTD"
"Bracknell Forest Council","http://opendatacommunities.org/id/unitary-authority/bracknell-forest","Bracknell Forest Council","00MA","Culture and Heritage","Heritage Museums & Galleries","The Look Out","Office Stationery",23/09/2019 00:00:00,"30364483",2.28,"COMMERCIAL LTD"
"Bracknell Forest Council","http://opendatacommunities.org/id/unitary-authority/bracknell-forest","Bracknell Forest Council","00MA","Culture and Heritage","Heritage Museums & Galleries","The Look Out","Office Stationery",23/09/2019 00:00:00,"30364483",4.75,"COMMERCIAL LTD"
"Bracknell Forest Council","http://opendatacommunities.org/id/unitary-authority/bracknell-forest","Bracknell Forest Council","00MA","Culture and Heritage","Heritage Museums & Galleries","The Look Out","Office Stationery",23/09/2019 00:00:00,"30364483",7.85,"COMMERCIAL LTD"
"Bracknell Forest Council","http://opendatacommunities.org/id/unitary-authority/bracknell-forest","Bracknell Forest Council","00MA","Culture and Heritage","Heritage Museums & Galleries","The Look Out","Office Stationery",23/09/2019 00:00:00,"30364483",15.9,"COMMERCIAL LTD"
"Bracknell Forest Council","http://opendatacommunities.org/id/unitary-authority/bracknell-forest","Bracknell Forest Council","00MA","Libraries","Branch Libraries","Libraries General Running Expenses","Office Stationery",23/09/2019 00:00:00,"30364483",4.56,"COMMERCIAL LTD"
"Bracknell Forest Council","http://opendatacommunities.org/id/unitary-authority/bracknell-forest","Bracknell Forest Council","00MA","Libraries","Branch Libraries","Libraries General Running Expenses","Office Stationery",23/09/2019 00:00:00,"30364483",1.32,"COMMERCIAL LTD"
"Bracknell Forest Council","http://opendatacommunities.org/id/unitary-authority/bracknell-forest","Bracknell Forest Council","00MA","Central Support Services - COF","Construction and Property","Time Square Office","Office Stationery",23/09/2019 00:00:00,"30364483",0.73,"COMMERCIAL LTD"
"Bracknell Forest Council","http://opendatacommunities.org/id/unitary-authority/bracknell-forest","Bracknell Forest Council","00MA","Central Support Services - COF","Construction and Property","Time Square Office","Office Stationery",23/09/2019 00:00:00,"30364483",3.19,"COMMERCIAL LTD"
"Bracknell Forest Council","http://opendatacommunities.org/id/unitary-authority/bracknell-forest","Bracknell Forest Council","00MA","Central Support Services - COF","Construction and Property","Time Square Office","Office Stationery",23/09/2019 00:00:00,"30364483",3.34,"COMMERCIAL LTD"
"Bracknell Forest Council","http://opendatacommunities.org/id/unitary-authority/bracknell-forest","Bracknell Forest Council","00MA","Adults (18-64)","Long term Support - Residential","LD Adults 18-64 Long Term Support - Residential","Contracted Services",28/11/2019 00:00:00,"30367269",5355.2,"AUTISM SPECIALISED CARE HOMES LTD"
"Bracknell Forest Council","http://opendatacommunities.org/id/unitary-authority/bracknell-forest","Bracknell Forest Council","00MA","Special Schools & Alternative Provision","Youth Services","Alternative Provision for Secondary Aged pupils without a statement","Voluntary Sector Service Providers",27/09/2019 00:00:00,"6690915",900,"AUTO SKILLS (READING) CIC"
"Bracknell Forest Council","http://opendatacommunities.org/id/unitary-authority/bracknell-forest","Bracknell Forest Council","00MA","Safeguarding Children and Young People's Services","Social Work","Children Aged Under 11","Other Support to Clients",04/10/2019 00:00:00,"6690807",1120,"AVA (AGAINST VIOLENCE AND ABUSE)"
"Bracknell Forest Council","http://opendatacommunities.org/id/unitary-authority/bracknell-forest","Bracknell Forest Council","00MA","Adults (18-64)","Long Term Support - Nursing","LD Adults 18-64 Long Term Support - Nursing","Contracted Services",03/10/2019 00:00:00,"30364189",3412.32,"AVALON NURSING HOME"
"Bracknell Forest Council","http://opendatacommunities.org/id/unitary-authority/bracknell-forest","Bracknell Forest Council","00MA","Adults (18-64)","Long Term Support - Nursing","LD Adults 18-64 Long Term Support - Nursing","Contracted Services",31/10/2019 00:00:00,"30365674",3412.32,"AVALON NURSING HOME"
"Bracknell Forest Council","http://opendatacommunities.org/id/unitary-authority/bracknell-forest","Bracknell Forest Council","00MA","Adults (18-64)","Long Term Support - Nursing","LD Adults 18-64 Long Term Support - Nursing","Contracted Services",28/11/2019 00:00:00,"30367269",3412.32,"AVALON NURSING HOME"
"Bracknell Forest Council","http://opendatacommunities.org/id/unitary-authority/bracknell-forest","Bracknell Forest Council","00MA","Adults (18-64)","Long term Support - Residential","LD Adults 18-64 Long Term Support - Residential","Contracted Services",03/10/2019 00:00:00,"30364189",6134.32,"AVON AUTISTIC FOUNDATION"
"Bracknell Forest Council","http://opendatacommunities.org/id/unitary-authority/bracknell-forest","Bracknell Forest Council","00MA","Adults (18-64)","Long term Support - Residential","LD Adults 18-64 Long Term Support - Residential","Contracted Services",31/10/2019 00:00:00,"30365674",6134.32,"AVON AUTISTIC FOUNDATION"
"Bracknell Forest Council","http://opendatacommunities.org/id/unitary-authority/bracknell-forest","Bracknell Forest Council","00MA","Adults (18-64)","Long term Support - Residential","LD Adults 18-64 Long Term Support - Residential","Contracted Services",28/11/2019 00:00:00,"30367269",6134.32,"AVON AUTISTIC FOUNDATION"
"Bracknell Forest Council","http://opendatacommunities.org/id/unitary-authority/bracknell-forest","Bracknell Forest Council","00MA","Children Looked After","Residential care","Children's Home Placements","Contracted Services",01/10/2019 00:00:00,"6691922",61775,"AVON PARK SCHOOL (A DIVISION OF WITHERSLACK GROUP LTD)"
"Bracknell Forest Council","http://opendatacommunities.org/id/unitary-authority/bracknell-forest","Bracknell Forest Council","00MA","Children Looked After","Other services for LAC","LAC - Semi Independent Living","Contracted Services",01/09/2019 00:00:00,"6691923",5022.6,"BACK TO BACK CARE"
"Bracknell Forest Council","http://opendatacommunities.org/id/unitary-authority/bracknell-forest","Bracknell Forest Council","00MA","Children Looked After","Other services for LAC","LAC - Under 11s Expenditure","Other Support to Clients",11/10/2019 00:00:00,"60015815",5144.02,"BACK TO BACK CARE"
"Bracknell Forest Council","http://opendatacommunities.org/id/unitary-authority/bracknell-forest","Bracknell Forest Council","00MA","Children Looked After","Other services for LAC","LAC - Semi Independent Living","Contracted Services",01/10/2019 00:00:00,"6693217",5294.02,"BACK TO BACK CARE"
"Bracknell Forest Council","http://opendatacommunities.org/id/unitary-authority/bracknell-forest","Bracknell Forest Council","00MA","Central Support Services - COF","Construction and Property","Time Square Office","Office Stationery",23/09/2019 00:00:00,"30364483",3.3,"COMMERCIAL LTD"
"Bracknell Forest Council","http://opendatacommunities.org/id/unitary-authority/bracknell-forest","Bracknell Forest Council","00MA","Central Support Services - COF","Construction and Property","Time Square Office","Office Stationery",23/09/2019 00:00:00,"30364483",13.23,"COMMERCIAL LTD"
"Bracknell Forest Council","http://opendatacommunities.org/id/unitary-authority/bracknell-forest","Bracknell Forest Council","00MA","Central Support Services - COF","Construction and Property","Time Square Office","Office Stationery",23/09/2019 00:00:00,"30364483",5.32,"COMMERCIAL LTD"
"Bracknell Forest Council","http://opendatacommunities.org/id/unitary-authority/bracknell-forest","Bracknell Forest Council","00MA","Central Support Services - COF","Construction and Property","Time Square Office","Office Stationery",23/09/2019 00:00:00,"30364483",2.16,"COMMERCIAL LTD"
"Bracknell Forest Council","http://opendatacommunities.org/id/unitary-authority/bracknell-forest","Bracknell Forest Council","00MA","Central Support Services - COF","Construction and Property","Time Square Office","Office Stationery",23/09/2019 00:00:00,"30364483",6.92,"COMMERCIAL LTD"
"Bracknell Forest Council","http://opendatacommunities.org/id/unitary-authority/bracknell-forest","Bracknell Forest Council","00MA","Central Support Services - COF","Construction and Property","Time Square Office","Office Stationery",23/09/2019 00:00:00,"30364483",1,"COMMERCIAL LTD"
"Bracknell Forest Council","http://opendatacommunities.org/id/unitary-authority/bracknell-forest","Bracknell Forest Council","00MA","Central Support Services - COF","Construction and Property","Time Square Office","Office Stationery",23/09/2019 00:00:00,"30364483",17.24,"COMMERCIAL LTD"
"Bracknell Forest Council","http://opendatacommunities.org/id/unitary-authority/bracknell-forest","Bracknell Forest Council","00MA","Central Support Services - COF","Construction and Property","Time Square Office","Office Stationery",23/09/2019 00:00:00,"30364483",2.26,"COMMERCIAL LTD"
"Bracknell Forest Council","http://opendatacommunities.org/id/unitary-authority/bracknell-forest","Bracknell Forest Council","00MA","Central Support Services - COF","Construction and Property","Time Square Office","Office Stationery",23/09/2019 00:00:00,"30364483",55.65,"COMMERCIAL LTD"
"Bracknell Forest Council","http://opendatacommunities.org/id/unitary-authority/bracknell-forest","Bracknell Forest Council","00MA","Central Support Services - COF","Construction and Property","Time Square Office","Office Stationery",23/09/2019 00:00:00,"30364483",4.46,"COMMERCIAL LTD"
"Bracknell Forest Council","http://opendatacommunities.org/id/unitary-authority/bracknell-forest","Bracknell Forest Council","00MA","Central Support Services - COF","Construction and Property","Time Square Office","Office Stationery",23/09/2019 00:00:00,"30364483",87.81,"COMMERCIAL LTD"
"Bracknell Forest Council","http://opendatacommunities.org/id/unitary-authority/bracknell-forest","Bracknell Forest Council","00MA","Central Support Services - COF","Construction and Property","Time Square Office","Office Stationery",23/09/2019 00:00:00,"30364483",3.7,"COMMERCIAL LTD"
"Bracknell Forest Council","http://opendatacommunities.org/id/unitary-authority/bracknell-forest","Bracknell Forest Council","00MA","Central Support Services - COF","Construction and Property","Time Square Office","Office Stationery",23/09/2019 00:00:00,"30364483",5.8,"COMMERCIAL LTD"
"Bracknell Forest Council","http://opendatacommunities.org/id/unitary-authority/bracknell-forest","Bracknell Forest Council","00MA","Central Support Services - COF","Construction and Property","Time Square Office","Office Stationery",23/09/2019 00:00:00,"30364483",19,"COMMERCIAL LTD"
"Bracknell Forest Council","http://opendatacommunities.org/id/unitary-authority/bracknell-forest","Bracknell Forest Council","00MA","Central Support Services - COF","Construction and Property","Time Square Office","Office Stationery",23/09/2019 00:00:00,"30364483",1.07,"COMMERCIAL LTD"
"Bracknell Forest Council","http://opendatacommunities.org/id/unitary-authority/bracknell-forest","Bracknell Forest Council","00MA","NHS Health Check Programme","NHS Health Check Programme","GP Health Checks","Contracted Services",10/10/2019 00:00:00,"6691328",500,"BALMORE PARK SURGERY"
"Bracknell Forest Council","http://opendatacommunities.org/id/unitary-authority/bracknell-forest","Bracknell Forest Council","00MA","Sexual Health Services","Contraception","GP LARC Payments","Contracted Services",10/10/2019 00:00:00,"6691328",4743,"BALMORE PARK SURGERY"
"Bracknell Forest Council","http://opendatacommunities.org/id/unitary-authority/bracknell-forest","Bracknell Forest Council","00MA","Other Education and Community Budget","Service strategy and other education functions","Standards and Effectiveness","Consultants Fees",23/07/2019 00:00:00,"6690671",3375,"BALTIMORE CONSULTING LTD"
"Bracknell Forest Council","http://opendatacommunities.org/id/unitary-authority/bracknell-forest","Bracknell Forest Council","00MA","Adults (18-64)","Long Term Support - Nursing","PS Adults 18-64 Long Term Support - Nursing","Contracted Services",03/10/2019 00:00:00,"30364189",4103.6,"BARCHESTER HEALTHCARE LTD"
"Bracknell Forest Council","http://opendatacommunities.org/id/unitary-authority/bracknell-forest","Bracknell Forest Council","00MA","Older People (65+)","Long Term Support - Nursing","PS Older People 65+ Long Term Support - Nursing","Contracted Services",03/10/2019 00:00:00,"30364189",2435.72,"BARCHESTER HEALTHCARE LTD"
"Bracknell Forest Council","http://opendatacommunities.org/id/unitary-authority/bracknell-forest","Bracknell Forest Council","00MA","Older People (65+)","Long Term Support - Nursing","PS Older People 65+ Long Term Support - Nursing","Contracted Services",03/10/2019 00:00:00,"30364189",2768.56,"BARCHESTER HEALTHCARE LTD"
"Bracknell Forest Council","http://opendatacommunities.org/id/unitary-authority/bracknell-forest","Bracknell Forest Council","00MA","Adults (18-64)","Long Term Support - Nursing","MC Adults 18-64 Long Term Support - Nursing","Contracted Services",03/10/2019 00:00:00,"30364189",3850.24,"BARCHESTER HEALTHCARE LTD"
"Bracknell Forest Council","http://opendatacommunities.org/id/unitary-authority/bracknell-forest","Bracknell Forest Council","00MA","Older People (65+)","Long Term Support - Nursing","MC Older People 65+ Long Term Support - Nursing","Contracted Services",03/10/2019 00:00:00,"30364189",3448.48,"BARCHESTER HEALTHCARE LTD"
"Bracknell Forest Council","http://opendatacommunities.org/id/unitary-authority/bracknell-forest","Bracknell Forest Council","00MA","Older People (65+)","Long Term Support - Nursing","MC Older People 65+ Long Term Support - Nursing","Contracted Services",03/10/2019 00:00:00,"30364189",1177.97,"BARCHESTER HEALTHCARE LTD"
"Bracknell Forest Council","http://opendatacommunities.org/id/unitary-authority/bracknell-forest","Bracknell Forest Council","00MA","Older People (65+)","Long Term Support - Nursing","MC Older People 65+ Long Term Support - Nursing","Contracted Services",03/10/2019 00:00:00,"30364189",3774.76,"BARCHESTER HEALTHCARE LTD"
"Bracknell Forest Council","http://opendatacommunities.org/id/unitary-authority/bracknell-forest","Bracknell Forest Council","00MA","Older People (65+)","Long Term Support - Nursing","MC Older People 65+ Long Term Support - Nursing","Contracted Services",03/10/2019 00:00:00,"30364189",4072,"BARCHESTER HEALTHCARE LTD"
"Bracknell Forest Council","http://opendatacommunities.org/id/unitary-authority/bracknell-forest","Bracknell Forest Council","00MA","Older People (65+)","Long Term Support - Nursing","MC Older People 65+ Long Term Support - Nursing","Contracted Services",03/10/2019 00:00:00,"30364189",3664.8,"BARCHESTER HEALTHCARE LTD"
"Bracknell Forest Council","http://opendatacommunities.org/id/unitary-authority/bracknell-forest","Bracknell Forest Council","00MA","Older People (65+)","Long Term Support - Nursing","PS Older People 65+ Long Term Support - Nursing","Contracted Services",03/10/2019 00:00:00,"30364189",3800,"BARCHESTER HEALTHCARE LTD"
"Bracknell Forest Council","http://opendatacommunities.org/id/unitary-authority/bracknell-forest","Bracknell Forest Council","00MA","Older People (65+)","Long Term Support - Nursing","MC Older People 65+ Long Term Support - Nursing","Contracted Services",03/10/2019 00:00:00,"30364189",3530.44,"BARCHESTER HEALTHCARE LTD"
"Bracknell Forest Council","http://opendatacommunities.org/id/unitary-authority/bracknell-forest","Bracknell Forest Council","00MA","Adults (18-64)","Long Term Support - Nursing","MC Adults 18-64 Long Term Support - Nursing","Contracted Services",31/10/2019 00:00:00,"30365674",3850.24,"BARCHESTER HEALTHCARE LTD"
"Bracknell Forest Council","http://opendatacommunities.org/id/unitary-authority/bracknell-forest","Bracknell Forest Council","00MA","Older People (65+)","Long Term Support - Nursing","MC Older People 65+ Long Term Support - Nursing","Contracted Services",31/10/2019 00:00:00,"30365674",3774.76,"BARCHESTER HEALTHCARE LTD"
"Bracknell Forest Council","http://opendatacommunities.org/id/unitary-authority/bracknell-forest","Bracknell Forest Council","00MA","Older People (65+)","Long Term Support - Nursing","MC Older People 65+ Long Term Support - Nursing","Contracted Services",31/10/2019 00:00:00,"30365674",4072,"BARCHESTER HEALTHCARE LTD"
"Bracknell Forest Council","http://opendatacommunities.org/id/unitary-authority/bracknell-forest","Bracknell Forest Council","00MA","Older People (65+)","Long Term Support - Nursing","PS Older People 65+ Long Term Support - Nursing","Contracted Services",31/10/2019 00:00:00,"30365674",3800,"BARCHESTER HEALTHCARE LTD"
"Bracknell Forest Council","http://opendatacommunities.org/id/unitary-authority/bracknell-forest","Bracknell Forest Council","00MA","Older People (65+)","Long Term Support - Nursing","MC Older People 65+ Long Term Support - Nursing","Contracted Services",31/10/2019 00:00:00,"30365674",4207.14,"BARCHESTER HEALTHCARE LTD"
"Bracknell Forest Council","http://opendatacommunities.org/id/unitary-authority/bracknell-forest","Bracknell Forest Council","00MA","Older People (65+)","Long Term Support - Nursing","MC Older People 65+ Long Term Support - Nursing","Contracted Services",31/10/2019 00:00:00,"30365674",3448.48,"BARCHESTER HEALTHCARE LTD"
"Bracknell Forest Council","http://opendatacommunities.org/id/unitary-authority/bracknell-forest","Bracknell Forest Council","00MA","Older People (65+)","Long Term Support - Nursing","MC Older People 65+ Long Term Support - Nursing","Contracted Services",31/10/2019 00:00:00,"30365674",3530.44,"BARCHESTER HEALTHCARE LTD"
"Bracknell Forest Council","http://opendatacommunities.org/id/unitary-authority/bracknell-forest","Bracknell Forest Council","00MA","Older People (65+)","Long Term Support - Nursing","MC Older People 65+ Long Term Support - Nursing","Contracted Services",31/10/2019 00:00:00,"30365674",3664.8,"BARCHESTER HEALTHCARE LTD"
"Bracknell Forest Council","http://opendatacommunities.org/id/unitary-authority/bracknell-forest","Bracknell Forest Council","00MA","Adults (18-64)","Long Term Support - Nursing","PS Adults 18-64 Long Term Support - Nursing","Contracted Services",31/10/2019 00:00:00,"30365674",4103.6,"BARCHESTER HEALTHCARE LTD"
"Bracknell Forest Council","http://opendatacommunities.org/id/unitary-authority/bracknell-forest","Bracknell Forest Council","00MA","Older People (65+)","Long Term Support - Nursing","PS Older People 65+ Long Term Support - Nursing","Contracted Services",31/10/2019 00:00:00,"30365674",2435.72,"BARCHESTER HEALTHCARE LTD"
"Bracknell Forest Council","http://opendatacommunities.org/id/unitary-authority/bracknell-forest","Bracknell Forest Council","00MA","Older People (65+)","Long Term Support - Nursing","PS Older People 65+ Long Term Support - Nursing","Contracted Services",31/10/2019 00:00:00,"30365674",2768.56,"BARCHESTER HEALTHCARE LTD"
"Bracknell Forest Council","http://opendatacommunities.org/id/unitary-authority/bracknell-forest","Bracknell Forest Council","00MA","Older People (65+)","Long Term Support - Nursing","PS Older People 65+ Long Term Support - Nursing","Contracted Services",28/11/2019 00:00:00,"30367269",2435.72,"BARCHESTER HEALTHCARE LTD"
"Bracknell Forest Council","http://opendatacommunities.org/id/unitary-authority/bracknell-forest","Bracknell Forest Council","00MA","Older People (65+)","Long Term Support - Nursing","PS Older People 65+ Long Term Support - Nursing","Contracted Services",28/11/2019 00:00:00,"30367269",2768.56,"BARCHESTER HEALTHCARE LTD"
"Bracknell Forest Council","http://opendatacommunities.org/id/unitary-authority/bracknell-forest","Bracknell Forest Council","00MA","Adults (18-64)","Long Term Support - Nursing","PS Adults 18-64 Long Term Support - Nursing","Contracted Services",28/11/2019 00:00:00,"30367269",4103.6,"BARCHESTER HEALTHCARE LTD"
"Bracknell Forest Council","http://opendatacommunities.org/id/unitary-authority/bracknell-forest","Bracknell Forest Council","00MA","Adults (18-64)","Long Term Support - Nursing","MC Adults 18-64 Long Term Support - Nursing","Contracted Services",28/11/2019 00:00:00,"30367269",3850.24,"BARCHESTER HEALTHCARE LTD"
"Bracknell Forest Council","http://opendatacommunities.org/id/unitary-authority/bracknell-forest","Bracknell Forest Council","00MA","Older People (65+)","Long Term Support - Nursing","MC Older People 65+ Long Term Support - Nursing","Contracted Services",28/11/2019 00:00:00,"30367269",12078.57,"BARCHESTER HEALTHCARE LTD"
"Bracknell Forest Council","http://opendatacommunities.org/id/unitary-authority/bracknell-forest","Bracknell Forest Council","00MA","Older People (65+)","Long Term Support - Nursing","PS Older People 65+ Long Term Support - Nursing","Contracted Services",28/11/2019 00:00:00,"30367269",3800,"BARCHESTER HEALTHCARE LTD"
"Bracknell Forest Council","http://opendatacommunities.org/id/unitary-authority/bracknell-forest","Bracknell Forest Council","00MA","Older People (65+)","Long Term Support - Nursing","MC Older People 65+ Long Term Support - Nursing","Contracted Services",28/11/2019 00:00:00,"30367269",3774.76,"BARCHESTER HEALTHCARE LTD"
"Bracknell Forest Council","http://opendatacommunities.org/id/unitary-authority/bracknell-forest","Bracknell Forest Council","00MA","Older People (65+)","Long Term Support - Nursing","MC Older People 65+ Long Term Support - Nursing","Contracted Services",28/11/2019 00:00:00,"30367269",3800,"BARCHESTER HEALTHCARE LTD"
"Bracknell Forest Council","http://opendatacommunities.org/id/unitary-authority/bracknell-forest","Bracknell Forest Council","00MA","Older People (65+)","Long Term Support - Nursing","MC Older People 65+ Long Term Support - Nursing","Contracted Services",28/11/2019 00:00:00,"30367269",238.88,"BARCHESTER HEALTHCARE LTD"
"Bracknell Forest Council","http://opendatacommunities.org/id/unitary-authority/bracknell-forest","Bracknell Forest Council","00MA","Older People (65+)","Long Term Support - Nursing","MC Older People 65+ Long Term Support - Nursing","Contracted Services",28/11/2019 00:00:00,"30367269",3530.44,"BARCHESTER HEALTHCARE LTD"
"Bracknell Forest Council","http://opendatacommunities.org/id/unitary-authority/bracknell-forest","Bracknell Forest Council","00MA","Older People (65+)","Long Term Support - Nursing","MC Older People 65+ Long Term Support - Nursing","Contracted Services",28/11/2019 00:00:00,"30367269",3448.48,"BARCHESTER HEALTHCARE LTD"
"Bracknell Forest Council","http://opendatacommunities.org/id/unitary-authority/bracknell-forest","Bracknell Forest Council","00MA","Older People (65+)","Long Term Support - Nursing","MC Older People 65+ Long Term Support - Nursing","Contracted Services",28/11/2019 00:00:00,"30367269",3664.8,"BARCHESTER HEALTHCARE LTD"
"Bracknell Forest Council","http://opendatacommunities.org/id/unitary-authority/bracknell-forest","Bracknell Forest Council","00MA","Older People (65+)","Long Term Support - Nursing","MC Older People 65+ Long Term Support - Nursing","Contracted Services",28/11/2019 00:00:00,"30367269",4072,"BARCHESTER HEALTHCARE LTD"
"Bracknell Forest Council","http://opendatacommunities.org/id/unitary-authority/bracknell-forest","Bracknell Forest Council","00MA","Management and Support Services - CYPL","Unallocated High Needs Related Expenditure","SEN Non LEA Provision Pre 16","Voluntary Sector Service Providers",28/08/2019 00:00:00,"6690885",7135,"BARNARDO SERVICES LTD"
"Bracknell Forest Council","http://opendatacommunities.org/id/unitary-authority/bracknell-forest","Bracknell Forest Council","00MA","Management and Support Services - CYPL","Unallocated High Needs Related Expenditure","SEN Non LEA Provision Pre 16","Voluntary Sector Service Providers",18/06/2019 00:00:00,"6693617",14268,"BARNARDO SERVICES LTD"
"Bracknell Forest Council","http://opendatacommunities.org/id/unitary-authority/bracknell-forest","Bracknell Forest Council","00MA","Central Support Services - COF","Information Technology","Information Technology - Management","Training Costs",18/10/2019 00:00:00,"6691489",900,"BAXTER THOMPSON LIMITED"
"Bracknell Forest Council","http://opendatacommunities.org/id/unitary-authority/bracknell-forest","Bracknell Forest Council","00MA","Adults (18-64)","Long Term Support - Nursing","PS Adults 18-64 Long Term Support - Nursing","Contracted Services",03/10/2019 00:00:00,"30364189",5942.8,"BEACHER HALL NURSING CENTRE"
"Bracknell Forest Council","http://opendatacommunities.org/id/unitary-authority/bracknell-forest","Bracknell Forest Council","00MA","Adults (18-64)","Long Term Support - Nursing","PS Adults 18-64 Long Term Support - Nursing","Contracted Services",31/10/2019 00:00:00,"30365674",5089.64,"BEACHER HALL NURSING CENTRE"
"Bracknell Forest Council","http://opendatacommunities.org/id/unitary-authority/bracknell-forest","Bracknell Forest Council","00MA","Adults (18-64)","Long Term Support - Nursing","PS Adults 18-64 Long Term Support - Nursing","Contracted Services",28/11/2019 00:00:00,"30367269",5089.64,"BEACHER HALL NURSING CENTRE"
"Bracknell Forest Council","http://opendatacommunities.org/id/unitary-authority/bracknell-forest","Bracknell Forest Council","00MA","Management and Support Services - CYPL","Unallocated High Needs Related Expenditure","SEN Non LEA Provision Pre 16","Voluntary Sector Service Providers",14/11/2019 00:00:00,"6693796",4765,"BEECH LODGE SCHOOL"
"Bracknell Forest Council","http://opendatacommunities.org/id/unitary-authority/bracknell-forest","Bracknell Forest Council","00MA","Management and Support Services - CYPL","Unallocated High Needs Related Expenditure","SEN Non LEA Provision Pre 16","Voluntary Sector Service Providers",01/07/2019 00:00:00,"6692525",10887,"BEECH LODGE SCHOOL"
"Bracknell Forest Council","http://opendatacommunities.org/id/unitary-authority/bracknell-forest","Bracknell Forest Council","00MA","Older People (65+)","Long term Support - Residential","PS Older People 65+ Long Term Support - Residential","Contracted Services",03/10/2019 00:00:00,"30364189",3200,"BELAMIE GABLES"
"Bracknell Forest Council","http://opendatacommunities.org/id/unitary-authority/bracknell-forest","Bracknell Forest Council","00MA","Older People (65+)","Long term Support - Residential","MH Older People 65+ Long Term Support - Residential","Contracted Services",03/10/2019 00:00:00,"30364189",2952.2,"BELAMIE GABLES"
"Bracknell Forest Council","http://opendatacommunities.org/id/unitary-authority/bracknell-forest","Bracknell Forest Council","00MA","Older People (65+)","Long term Support - Residential","MC Older People 65+ Long Term Support - Residential","Contracted Services",03/10/2019 00:00:00,"30364189",3400,"BELAMIE GABLES"
"Bracknell Forest Council","http://opendatacommunities.org/id/unitary-authority/bracknell-forest","Bracknell Forest Council","00MA","Older People (65+)","Long term Support - Residential","MC Older People 65+ Long Term Support - Residential","Contracted Services",03/10/2019 00:00:00,"30364189",2952.2,"BELAMIE GABLES"
"Bracknell Forest Council","http://opendatacommunities.org/id/unitary-authority/bracknell-forest","Bracknell Forest Council","00MA","Older People (65+)","Long term Support - Residential","MC Older People 65+ Long Term Support - Residential","Contracted Services",03/10/2019 00:00:00,"30364189",3634.28,"BELAMIE GABLES"
"Bracknell Forest Council","http://opendatacommunities.org/id/unitary-authority/bracknell-forest","Bracknell Forest Council","00MA","Older People (65+)","Long term Support - Residential","MC Older People 65+ Long Term Support - Residential","Contracted Services",03/10/2019 00:00:00,"30364189",3156.6,"BELAMIE GABLES"
"Bracknell Forest Council","http://opendatacommunities.org/id/unitary-authority/bracknell-forest","Bracknell Forest Council","00MA","Older People (65+)","Long term Support - Residential","MH Older People 65+ Long Term Support - Residential","Contracted Services",31/10/2019 00:00:00,"30365674",2952.2,"BELAMIE GABLES"
"Bracknell Forest Council","http://opendatacommunities.org/id/unitary-authority/bracknell-forest","Bracknell Forest Council","00MA","Older People (65+)","Long term Support - Residential","PS Older People 65+ Long Term Support - Residential","Contracted Services",31/10/2019 00:00:00,"30365674",3200,"BELAMIE GABLES"
"Bracknell Forest Council","http://opendatacommunities.org/id/unitary-authority/bracknell-forest","Bracknell Forest Council","00MA","Older People (65+)","Long term Support - Residential","MC Older People 65+ Long Term Support - Residential","Contracted Services",31/10/2019 00:00:00,"30365674",2952.2,"BELAMIE GABLES"
"Bracknell Forest Council","http://opendatacommunities.org/id/unitary-authority/bracknell-forest","Bracknell Forest Council","00MA","Older People (65+)","Long term Support - Residential","MC Older People 65+ Long Term Support - Residential","Contracted Services",31/10/2019 00:00:00,"30365674",3634.28,"BELAMIE GABLES"
"Bracknell Forest Council","http://opendatacommunities.org/id/unitary-authority/bracknell-forest","Bracknell Forest Council","00MA","Older People (65+)","Long term Support - Residential","MC Older People 65+ Long Term Support - Residential","Contracted Services",31/10/2019 00:00:00,"30365674",3400,"BELAMIE GABLES"
"Bracknell Forest Council","http://opendatacommunities.org/id/unitary-authority/bracknell-forest","Bracknell Forest Council","00MA","Older People (65+)","Long term Support - Residential","MC Older People 65+ Long Term Support - Residential","Contracted Services",31/10/2019 00:00:00,"30365674",3156.6,"BELAMIE GABLES"
"Bracknell Forest Council","http://opendatacommunities.org/id/unitary-authority/bracknell-forest","Bracknell Forest Council","00MA","Older People (65+)","Long term Support - Residential","PS Older People 65+ Long Term Support - Residential","Contracted Services",28/11/2019 00:00:00,"30367269",3200,"BELAMIE GABLES"
"Bracknell Forest Council","http://opendatacommunities.org/id/unitary-authority/bracknell-forest","Bracknell Forest Council","00MA","Older People (65+)","Long term Support - Residential","MC Older People 65+ Long Term Support - Residential","Contracted Services",28/11/2019 00:00:00,"30367269",3634.28,"BELAMIE GABLES"
"Bracknell Forest Council","http://opendatacommunities.org/id/unitary-authority/bracknell-forest","Bracknell Forest Council","00MA","Older People (65+)","Long term Support - Residential","MC Older People 65+ Long Term Support - Residential","Contracted Services",28/11/2019 00:00:00,"30367269",3400,"BELAMIE GABLES"
"Bracknell Forest Council","http://opendatacommunities.org/id/unitary-authority/bracknell-forest","Bracknell Forest Council","00MA","Older People (65+)","Long term Support - Residential","MH Older People 65+ Long Term Support - Residential","Contracted Services",28/11/2019 00:00:00,"30367269",2952.2,"BELAMIE GABLES"
"Bracknell Forest Council","http://opendatacommunities.org/id/unitary-authority/bracknell-forest","Bracknell Forest Council","00MA","Older People (65+)","Long term Support - Residential","MC Older People 65+ Long Term Support - Residential","Contracted Services",28/11/2019 00:00:00,"30367269",2952.2,"BELAMIE GABLES"
"Bracknell Forest Council","http://opendatacommunities.org/id/unitary-authority/bracknell-forest","Bracknell Forest Council","00MA","Older People (65+)","Long term Support - Residential","MC Older People 65+ Long Term Support - Residential","Contracted Services",28/11/2019 00:00:00,"30367269",3156.6,"BELAMIE GABLES"
"Bracknell Forest Council","http://opendatacommunities.org/id/unitary-authority/bracknell-forest","Bracknell Forest Council","00MA","Development Control","Applications - Development Control","Development Management","Consultants Fees",31/10/2019 00:00:00,"6692695",1500,"BELL CORNWELL LLP"
"Bracknell Forest Council","http://opendatacommunities.org/id/unitary-authority/bracknell-forest","Bracknell Forest Council","00MA","Development Control","Applications - Development Control","Development Management","Consultants Fees",31/10/2019 00:00:00,"6692695",3500,"BELL CORNWELL LLP"
"Bracknell Forest Council","http://opendatacommunities.org/id/unitary-authority/bracknell-forest","Bracknell Forest Council","00MA","Development Control","Applications - Development Control","Development Management","Consultants Fees",30/09/2019 00:00:00,"6691864",12697.88,"BELL CORNWELL LLP"
"Bracknell Forest Council","http://opendatacommunities.org/id/unitary-authority/bracknell-forest","Bracknell Forest Council","00MA","Business Support","Premises Development","Liscombe","Other Fees for Bought-in Services",01/10/2019 00:00:00,"6691357",585,"BENVILLE AND MARSH LTD"
"Bracknell Forest Council","http://opendatacommunities.org/id/unitary-authority/bracknell-forest","Bracknell Forest Council","00MA","Business Support","Premises Development","Market Street Units","R&M - Reactive",23/09/2019 00:00:00,"6691356",4310,"BENVILLE AND MARSH LTD"
"Bracknell Forest Council","http://opendatacommunities.org/id/unitary-authority/bracknell-forest","Bracknell Forest Council","00MA","Older People (65+)","Long Term Support - Community:Supported Living","LD Older People 65+ Long Term Support - Community:Supported Living","Contracted Services",17/10/2019 00:00:00,"30364912",2171.52,"BERKELEY HOME HEALTH LIMITED"
"Bracknell Forest Council","http://opendatacommunities.org/id/unitary-authority/bracknell-forest","Bracknell Forest Council","00MA","Older People (65+)","Long Term Support - Community:Supported Living","LD Older People 65+ Long Term Support - Community:Supported Living","Contracted Services",17/10/2019 00:00:00,"30364912",823.68,"BERKELEY HOME HEALTH LIMITED"
"Bracknell Forest Council","http://opendatacommunities.org/id/unitary-authority/bracknell-forest","Bracknell Forest Council","00MA","Management and Support Services - CYPL","De-Delegated Expenditure","Home to School Transport","Taxi Fares - Home/School Transport",01/11/2019 00:00:00,"6692615",550,"BERKSHIRE EDUCATION TRAVEL"
"Bracknell Forest Council","http://opendatacommunities.org/id/unitary-authority/bracknell-forest","Bracknell Forest Council","00MA","Management and Support Services - CYPL","De-Delegated Expenditure","Home to School Transport","Taxi Fares - Home/School Transport",04/10/2019 00:00:00,"6691139",630,"BERKSHIRE EDUCATION TRAVEL"
"Bracknell Forest Council","http://opendatacommunities.org/id/unitary-authority/bracknell-forest","Bracknell Forest Council","00MA","Management and Support Services - CYPL","De-Delegated Expenditure","Home to School Transport","Taxi Fares - Home/School Transport",04/10/2019 00:00:00,"6691139",720,"BERKSHIRE EDUCATION TRAVEL"
"Bracknell Forest Council","http://opendatacommunities.org/id/unitary-authority/bracknell-forest","Bracknell Forest Council","00MA","Central Support Services - COF","Fleet","R-Bus","Taxi Charges",01/11/2019 00:00:00,"6692845",722.6,"BERKSHIRE EDUCATION TRAVEL"
"Bracknell Forest Council","http://opendatacommunities.org/id/unitary-authority/bracknell-forest","Bracknell Forest Council","00MA","Management and Support Services - CYPL","De-Delegated Expenditure","Home to School Transport","Taxi Fares - Home/School Transport",04/10/2019 00:00:00,"6690707",770,"BERKSHIRE EDUCATION TRAVEL"
"Bracknell Forest Council","http://opendatacommunities.org/id/unitary-authority/bracknell-forest","Bracknell Forest Council","00MA","Management and Support Services - CYPL","De-Delegated Expenditure","Home to School Transport","Taxi Fares - Home/School Transport",04/10/2019 00:00:00,"6690706",864,"BERKSHIRE EDUCATION TRAVEL"
"Bracknell Forest Council","http://opendatacommunities.org/id/unitary-authority/bracknell-forest","Bracknell Forest Council","00MA","Management and Support Services - CYPL","De-Delegated Expenditure","Home to School Transport","Taxi Fares - Home/School Transport",04/10/2019 00:00:00,"6691139",1342.5,"BERKSHIRE EDUCATION TRAVEL"
"Bracknell Forest Council","http://opendatacommunities.org/id/unitary-authority/bracknell-forest","Bracknell Forest Council","00MA","Management and Support Services - CYPL","De-Delegated Expenditure","Home to School Transport","Taxi Fares - Home/School Transport",04/10/2019 00:00:00,"6690705",1433.75,"BERKSHIRE EDUCATION TRAVEL"
"Bracknell Forest Council","http://opendatacommunities.org/id/unitary-authority/bracknell-forest","Bracknell Forest Council","00MA","Management and Support Services - CYPL","De-Delegated Expenditure","Home to School Transport","Taxi Fares - Home/School Transport",04/10/2019 00:00:00,"6691139",1602.5,"BERKSHIRE EDUCATION TRAVEL"
"Bracknell Forest Council","http://opendatacommunities.org/id/unitary-authority/bracknell-forest","Bracknell Forest Council","00MA","Management and Support Services - CYPL","De-Delegated Expenditure","Home to School Transport","Taxi Fares - Home/School Transport",01/11/2019 00:00:00,"6692614",2200,"BERKSHIRE EDUCATION TRAVEL"
"Bracknell Forest Council","http://opendatacommunities.org/id/unitary-authority/bracknell-forest","Bracknell Forest Council","00MA","Management and Support Services - CYPL","De-Delegated Expenditure","Home to School Transport","Taxi Fares - Home/School Transport",04/10/2019 00:00:00,"6691139",2260,"BERKSHIRE EDUCATION TRAVEL"
"Bracknell Forest Council","http://opendatacommunities.org/id/unitary-authority/bracknell-forest","Bracknell Forest Council","00MA","Management and Support Services - CYPL","De-Delegated Expenditure","Home to School Transport","Taxi Fares - Home/School Transport",04/10/2019 00:00:00,"6690708",2280,"BERKSHIRE EDUCATION TRAVEL"
"Bracknell Forest Council","http://opendatacommunities.org/id/unitary-authority/bracknell-forest","Bracknell Forest Council","00MA","Management and Support Services - CYPL","De-Delegated Expenditure","Home to School Transport","Taxi Fares - Home/School Transport",01/11/2019 00:00:00,"6692616",2280,"BERKSHIRE EDUCATION TRAVEL"
"Bracknell Forest Council","http://opendatacommunities.org/id/unitary-authority/bracknell-forest","Bracknell Forest Council","00MA","Management and Support Services - CYPL","De-Delegated Expenditure","Home to School Transport","Taxi Fares - Home/School Transport",01/11/2019 00:00:00,"6692618",2530,"BERKSHIRE EDUCATION TRAVEL"
"Bracknell Forest Council","http://opendatacommunities.org/id/unitary-authority/bracknell-forest","Bracknell Forest Council","00MA","Management and Support Services - CYPL","De-Delegated Expenditure","Home to School Transport","Taxi Fares - Home/School Transport",01/11/2019 00:00:00,"6692617",2625,"BERKSHIRE EDUCATION TRAVEL"
"Bracknell Forest Council","http://opendatacommunities.org/id/unitary-authority/bracknell-forest","Bracknell Forest Council","00MA","Management and Support Services - CYPL","De-Delegated Expenditure","Home to School Transport","Taxi Fares - Home/School Transport",04/10/2019 00:00:00,"6690704",2950,"BERKSHIRE EDUCATION TRAVEL"
"Bracknell Forest Council","http://opendatacommunities.org/id/unitary-authority/bracknell-forest","Bracknell Forest Council","00MA","Management and Support Services - CYPL","De-Delegated Expenditure","Home to School Transport","Taxi Fares - Home/School Transport",01/11/2019 00:00:00,"6692614",2960,"BERKSHIRE EDUCATION TRAVEL"
"Bracknell Forest Council","http://opendatacommunities.org/id/unitary-authority/bracknell-forest","Bracknell Forest Council","00MA","Management and Support Services - CYPL","De-Delegated Expenditure","Home to School Transport","Taxi Fares - Home/School Transport",01/11/2019 00:00:00,"6692614",3180,"BERKSHIRE EDUCATION TRAVEL"
"Bracknell Forest Council","http://opendatacommunities.org/id/unitary-authority/bracknell-forest","Bracknell Forest Council","00MA","Management and Support Services - CYPL","De-Delegated Expenditure","Home to School Transport","Taxi Fares - Home/School Transport",04/10/2019 00:00:00,"6690706",4066,"BERKSHIRE EDUCATION TRAVEL"
"Bracknell Forest Council","http://opendatacommunities.org/id/unitary-authority/bracknell-forest","Bracknell Forest Council","00MA","Management and Support Services - CYPL","De-Delegated Expenditure","Home to School Transport","Taxi Fares - Home/School Transport",01/11/2019 00:00:00,"6692615",4485,"BERKSHIRE EDUCATION TRAVEL"
"Bracknell Forest Council","http://opendatacommunities.org/id/unitary-authority/bracknell-forest","Bracknell Forest Council","00MA","Management and Support Services - CYPL","De-Delegated Expenditure","Home to School Transport","Taxi Fares - Home/School Transport",04/10/2019 00:00:00,"6690707",4730,"BERKSHIRE EDUCATION TRAVEL"
"Bracknell Forest Council","http://opendatacommunities.org/id/unitary-authority/bracknell-forest","Bracknell Forest Council","00MA","Management and Support Services - CYPL","De-Delegated Expenditure","Home to School Transport","Taxi Fares - Home/School Transport",01/11/2019 00:00:00,"6692618",5320,"BERKSHIRE EDUCATION TRAVEL"
"Bracknell Forest Council","http://opendatacommunities.org/id/unitary-authority/bracknell-forest","Bracknell Forest Council","00MA","Management and Support Services - CYPL","De-Delegated Expenditure","Home to School Transport","Taxi Fares - Home/School Transport",01/11/2019 00:00:00,"6692619",5750,"BERKSHIRE EDUCATION TRAVEL"
"Bracknell Forest Council","http://opendatacommunities.org/id/unitary-authority/bracknell-forest","Bracknell Forest Council","00MA","Central Support Services - COF","Fleet","Transport Services","Taxi Charges",01/11/2019 00:00:00,"6692845",8351,"BERKSHIRE EDUCATION TRAVEL"
"Bracknell Forest Council","http://opendatacommunities.org/id/unitary-authority/bracknell-forest","Bracknell Forest Council","00MA","Central Support Services - COF","Fleet","Transport Services","Taxi Charges",04/10/2019 00:00:00,"6691250",8665.2,"BERKSHIRE EDUCATION TRAVEL"
"Bracknell Forest Council","http://opendatacommunities.org/id/unitary-authority/bracknell-forest","Bracknell Forest Council","00MA","Management and Support Services - CYPL","De-Delegated Expenditure","Home to School Transport","Taxi Fares - Home/School Transport",01/11/2019 00:00:00,"6692618",11155,"BERKSHIRE EDUCATION TRAVEL"
"Bracknell Forest Council","http://opendatacommunities.org/id/unitary-authority/bracknell-forest","Bracknell Forest Council","00MA","Management and Support Services - CYPL","De-Delegated Expenditure","Home to School Transport","Taxi Fares - Home/School Transport",04/10/2019 00:00:00,"6690704",11254.44,"BERKSHIRE EDUCATION TRAVEL"
"Bracknell Forest Council","http://opendatacommunities.org/id/unitary-authority/bracknell-forest","Bracknell Forest Council","00MA","Management and Support Services - CYPL","De-Delegated Expenditure","Home to School Transport","Taxi Fares - Home/School Transport",01/11/2019 00:00:00,"6692617",12365,"BERKSHIRE EDUCATION TRAVEL"
"Bracknell Forest Council","http://opendatacommunities.org/id/unitary-authority/bracknell-forest","Bracknell Forest Council","00MA","Management and Support Services - CYPL","De-Delegated Expenditure","Home to School Transport","Taxi Fares - Home/School Transport",01/11/2019 00:00:00,"6692616",13085,"BERKSHIRE EDUCATION TRAVEL"
"Bracknell Forest Council","http://opendatacommunities.org/id/unitary-authority/bracknell-forest","Bracknell Forest Council","00MA","Management and Support Services - CYPL","De-Delegated Expenditure","Home to School Transport","Taxi Fares - Home/School Transport",04/10/2019 00:00:00,"6690708",14820,"BERKSHIRE EDUCATION TRAVEL"
"Bracknell Forest Council","http://opendatacommunities.org/id/unitary-authority/bracknell-forest","Bracknell Forest Council","00MA","Management and Support Services - CYPL","De-Delegated Expenditure","Home to School Transport","Taxi Fares - Home/School Transport",01/11/2019 00:00:00,"6692498",15885,"BERKSHIRE EDUCATION TRAVEL"
"Bracknell Forest Council","http://opendatacommunities.org/id/unitary-authority/bracknell-forest","Bracknell Forest Council","00MA","Management and Support Services - CYPL","De-Delegated Expenditure","Home to School Transport","Taxi Fares - Home/School Transport",04/10/2019 00:00:00,"6690705",19293.75,"BERKSHIRE EDUCATION TRAVEL"
"Bracknell Forest Council","http://opendatacommunities.org/id/unitary-authority/bracknell-forest","Bracknell Forest Council","00MA","Management and Support Services - CYPL","De-Delegated Expenditure","Home to School Transport","Taxi Fares - Home/School Transport",01/11/2019 00:00:00,"6692499",20607.5,"BERKSHIRE EDUCATION TRAVEL"
"Bracknell Forest Council","http://opendatacommunities.org/id/unitary-authority/bracknell-forest","Bracknell Forest Council","00MA","Substance Misuse","Drug misuse in adults","SM Operational Costs","Contracted Services",14/10/2019 00:00:00,"6691493",777,"BERKSHIRE HEALTHCARE NHS FOUNDATION TRUST"
"Bracknell Forest Council","http://opendatacommunities.org/id/unitary-authority/bracknell-forest","Bracknell Forest Council","00MA","Sure Start Children's Centres","Centrally managed expenditure - children's centres","EH Children's Centres","Other Fees for Bought-in Services",24/10/2019 00:00:00,"6692221",2100,"BERKSHIRE HEALTHCARE NHS FOUNDATION TRUST"
"Bracknell Forest Council","http://opendatacommunities.org/id/unitary-authority/bracknell-forest","Bracknell Forest Council","00MA","Sure Start Children's Centres","Centrally managed expenditure - children's centres","EH Children's Centres","Other Fees for Bought-in Services",25/09/2019 00:00:00,"6692011",2100,"BERKSHIRE HEALTHCARE NHS FOUNDATION TRUST"
"Bracknell Forest Council","http://opendatacommunities.org/id/unitary-authority/bracknell-forest","Bracknell Forest Council","00MA","Sure Start Children's Centres","Centrally managed expenditure - children's centres","EH Children's Centres","Other Fees for Bought-in Services",23/08/2019 00:00:00,"6692012",2100,"BERKSHIRE HEALTHCARE NHS FOUNDATION TRUST"
"Bracknell Forest Council","http://opendatacommunities.org/id/unitary-authority/bracknell-forest","Bracknell Forest Council","00MA","Sure Start Children's Centres","Centrally managed expenditure - children's centres","EH Children's Centres","Other Fees for Bought-in Services",20/11/2019 00:00:00,"6693895",2100,"BERKSHIRE HEALTHCARE NHS FOUNDATION TRUST"
"Bracknell Forest Council","http://opendatacommunities.org/id/unitary-authority/bracknell-forest","Bracknell Forest Council","00MA","Social Care Activities","Social Care Activities","MC Management & Administration","Contracted Services",29/10/2019 00:00:00,"6692106",2758.65,"BERKSHIRE HEALTHCARE NHS FOUNDATION TRUST"
"Bracknell Forest Council","http://opendatacommunities.org/id/unitary-authority/bracknell-forest","Bracknell Forest Council","00MA","Social Care Activities","Social Care Activities","MC Management & Administration","Contracted Services",25/09/2019 00:00:00,"6690169",2758.65,"BERKSHIRE HEALTHCARE NHS FOUNDATION TRUST"
"Bracknell Forest Council","http://opendatacommunities.org/id/unitary-authority/bracknell-forest","Bracknell Forest Council","00MA","Management and Support Services - CYPL","Unallocated High Needs Related Expenditure","Occupational Therapy","Voluntary Sector Service Providers",13/11/2019 00:00:00,"6693230",3083.33,"BERKSHIRE HEALTHCARE NHS FOUNDATION TRUST"
"Bracknell Forest Council","http://opendatacommunities.org/id/unitary-authority/bracknell-forest","Bracknell Forest Council","00MA","Management and Support Services - CYPL","Unallocated High Needs Related Expenditure","Occupational Therapy","Voluntary Sector Service Providers",14/10/2019 00:00:00,"6691272",3083.36,"BERKSHIRE HEALTHCARE NHS FOUNDATION TRUST"
"Bracknell Forest Council","http://opendatacommunities.org/id/unitary-authority/bracknell-forest","Bracknell Forest Council","00MA","Sexual Health Services","Contraception","Sexual Health - Contraception (Bracknell)","Contracted Services",13/11/2019 00:00:00,"6693433",4666,"BERKSHIRE HEALTHCARE NHS FOUNDATION TRUST"
"Bracknell Forest Council","http://opendatacommunities.org/id/unitary-authority/bracknell-forest","Bracknell Forest Council","00MA","Sexual Health Services","Contraception","Sexual Health - Contraception (Bracknell)","Contracted Services",16/10/2019 00:00:00,"6691876",4666,"BERKSHIRE HEALTHCARE NHS FOUNDATION TRUST"
"Bracknell Forest Council","http://opendatacommunities.org/id/unitary-authority/bracknell-forest","Bracknell Forest Council","00MA","Management and Support Services - CYPL","CYPL Department Management Team","Management Team","Contracted Services",29/10/2019 00:00:00,"6692105",10180.19,"BERKSHIRE HEALTHCARE NHS FOUNDATION TRUST"
"Bracknell Forest Council","http://opendatacommunities.org/id/unitary-authority/bracknell-forest","Bracknell Forest Council","00MA","Management and Support Services - CYPL","Unallocated High Needs Related Expenditure","Speech and Language Services","Other Fees for Bought-in Services",20/11/2019 00:00:00,"6693895",17066.66,"BERKSHIRE HEALTHCARE NHS FOUNDATION TRUST"
"Bracknell Forest Council","http://opendatacommunities.org/id/unitary-authority/bracknell-forest","Bracknell Forest Council","00MA","Management and Support Services - CYPL","Unallocated High Needs Related Expenditure","Speech and Language Services","Other Fees for Bought-in Services",25/09/2019 00:00:00,"6692011",17066.66,"BERKSHIRE HEALTHCARE NHS FOUNDATION TRUST"
"Bracknell Forest Council","http://opendatacommunities.org/id/unitary-authority/bracknell-forest","Bracknell Forest Council","00MA","Management and Support Services - CYPL","Unallocated High Needs Related Expenditure","Speech and Language Services","Other Fees for Bought-in Services",23/08/2019 00:00:00,"6692012",17066.66,"BERKSHIRE HEALTHCARE NHS FOUNDATION TRUST"
"Bracknell Forest Council","http://opendatacommunities.org/id/unitary-authority/bracknell-forest","Bracknell Forest Council","00MA","Management and Support Services - CYPL","Unallocated High Needs Related Expenditure","Speech and Language Services","Other Fees for Bought-in Services",24/10/2019 00:00:00,"6692221",17066.66,"BERKSHIRE HEALTHCARE NHS FOUNDATION TRUST"
"Bracknell Forest Council","http://opendatacommunities.org/id/unitary-authority/bracknell-forest","Bracknell Forest Council","00MA","Sexual Health Services","Contraception","Sexual Health - Contraception (Bracknell)","Contracted Services",13/11/2019 00:00:00,"6693435",108333.33,"BERKSHIRE HEALTHCARE NHS FOUNDATION TRUST"
"Bracknell Forest Council","http://opendatacommunities.org/id/unitary-authority/bracknell-forest","Bracknell Forest Council","00MA","Sexual Health Services","STI testing and treatment","Sexual Health - STI Testing & Treatment (Berks)","Contracted Services",13/11/2019 00:00:00,"6693388",162187.68,"BERKSHIRE HEALTHCARE NHS FOUNDATION TRUST"
"Bracknell Forest Council","http://opendatacommunities.org/id/unitary-authority/bracknell-forest","Bracknell Forest Council","00MA","Sexual Health Services","STI testing and treatment","Sexual Health - STI Testing & Treatment (Berks)","Contracted Services",14/10/2019 00:00:00,"6693008",162187.68,"BERKSHIRE HEALTHCARE NHS FOUNDATION TRUST"
"Bracknell Forest Council","http://opendatacommunities.org/id/unitary-authority/bracknell-forest","Bracknell Forest Council","00MA","Other Education and Community Budget","Service strategy and other education functions","Sports Development","Other Fees for Bought-in Services",26/11/2019 00:00:00,"6693831",870,"BERKSHIRE LOWLAND SEARCH & RESCUE"
"Bracknell Forest Council","http://opendatacommunities.org/id/unitary-authority/bracknell-forest","Bracknell Forest Council","00MA","Homelessness","Accommodation within own Stock","BFC Properties","R&M - Reactive",04/11/2019 00:00:00,"6692663",600,"BERKSHIRE MECHANICAL SERVICES"
"Bracknell Forest Council","http://opendatacommunities.org/id/unitary-authority/bracknell-forest","Bracknell Forest Council","00MA","Homelessness","Accommodation within own Stock","BFC Properties","R&M - Reactive",17/10/2019 00:00:00,"6691441",600,"BERKSHIRE MECHANICAL SERVICES"
"Bracknell Forest Council","http://opendatacommunities.org/id/unitary-authority/bracknell-forest","Bracknell Forest Council","00MA","Homelessness","Discretionary Housing Payments","Private Sector Leased Accommodation","R&M - Reactive",17/10/2019 00:00:00,"6691449",625,"BERKSHIRE MECHANICAL SERVICES"
"Bracknell Forest Council","http://opendatacommunities.org/id/unitary-authority/bracknell-forest","Bracknell Forest Council","00MA","Homelessness","Accommodation within own Stock","BFC Properties","R&M - Reactive",30/09/2019 00:00:00,"6692374",640,"BERKSHIRE MECHANICAL SERVICES"
"Bracknell Forest Council","http://opendatacommunities.org/id/unitary-authority/bracknell-forest","Bracknell Forest Council","00MA","Other Council Property","Non HRA Council Property","LD Supported Accommodation","R&M - Reactive",04/11/2019 00:00:00,"6692664",640,"BERKSHIRE MECHANICAL SERVICES"
"Bracknell Forest Council","http://opendatacommunities.org/id/unitary-authority/bracknell-forest","Bracknell Forest Council","00MA","Homelessness","Accommodation within own Stock","BFC Properties","R&M - Reactive",10/11/2019 00:00:00,"6692957",643,"BERKSHIRE MECHANICAL SERVICES"
"Bracknell Forest Council","http://opendatacommunities.org/id/unitary-authority/bracknell-forest","Bracknell Forest Council","00MA","Homelessness","Accommodation within own Stock","Banbury - Homeless Accommodation","R&M - Reactive",17/10/2019 00:00:00,"6691446",645,"BERKSHIRE MECHANICAL SERVICES"
"Bracknell Forest Council","http://opendatacommunities.org/id/unitary-authority/bracknell-forest","Bracknell Forest Council","00MA","Homelessness","Discretionary Housing Payments","Private Sector Leased Accommodation","R&M - Reactive",30/09/2019 00:00:00,"6692363",660,"BERKSHIRE MECHANICAL SERVICES"
"Bracknell Forest Council","http://opendatacommunities.org/id/unitary-authority/bracknell-forest","Bracknell Forest Council","00MA","Homelessness","Accommodation within own Stock","BFC Properties","R&M - Reactive",04/11/2019 00:00:00,"6692663",700,"BERKSHIRE MECHANICAL SERVICES"
"Bracknell Forest Council","http://opendatacommunities.org/id/unitary-authority/bracknell-forest","Bracknell Forest Council","00MA","Homelessness","Discretionary Housing Payments","Private Sector Leased Accommodation","R&M - Reactive",30/09/2019 00:00:00,"6691438",775,"BERKSHIRE MECHANICAL SERVICES"
"Bracknell Forest Council","http://opendatacommunities.org/id/unitary-authority/bracknell-forest","Bracknell Forest Council","00MA","Homelessness","Accommodation within own Stock","BFC Properties","R&M - Reactive",04/11/2019 00:00:00,"6692812",800,"BERKSHIRE MECHANICAL SERVICES"
"Bracknell Forest Council","http://opendatacommunities.org/id/unitary-authority/bracknell-forest","Bracknell Forest Council","00MA","Homelessness","Discretionary Housing Payments","Private Sector Leased Accommodation","R&M - Reactive",30/09/2019 00:00:00,"6691438",800,"BERKSHIRE MECHANICAL SERVICES"
"Bracknell Forest Council","http://opendatacommunities.org/id/unitary-authority/bracknell-forest","Bracknell Forest Council","00MA","Other Council Property","Non HRA Council Property","LD Supported Accommodation","R&M - Reactive",30/09/2019 00:00:00,"6691296",860,"BERKSHIRE MECHANICAL SERVICES"
"Bracknell Forest Council","http://opendatacommunities.org/id/unitary-authority/bracknell-forest","Bracknell Forest Council","00MA","Recreation, Sports and Leisure","Community Centres","Community Centres Support","R&M - Reactive",26/07/2019 00:00:00,"6692651",960,"BERKSHIRE MECHANICAL SERVICES"
"Bracknell Forest Council","http://opendatacommunities.org/id/unitary-authority/bracknell-forest","Bracknell Forest Council","00MA","Homelessness","Accommodation within own Stock","BFC Properties","R&M - Reactive",17/10/2019 00:00:00,"6691454",1000,"BERKSHIRE MECHANICAL SERVICES"
"Bracknell Forest Council","http://opendatacommunities.org/id/unitary-authority/bracknell-forest","Bracknell Forest Council","00MA","Homelessness","Accommodation within own Stock","BFC Properties","R&M - Reactive",17/10/2019 00:00:00,"6691454",1035,"BERKSHIRE MECHANICAL SERVICES"
"Bracknell Forest Council","http://opendatacommunities.org/id/unitary-authority/bracknell-forest","Bracknell Forest Council","00MA","Homelessness","Accommodation within own Stock","BFC Properties","R&M - Reactive",10/11/2019 00:00:00,"6692957",1100,"BERKSHIRE MECHANICAL SERVICES"
"Bracknell Forest Council","http://opendatacommunities.org/id/unitary-authority/bracknell-forest","Bracknell Forest Council","00MA","Homelessness","Accommodation within own Stock","BFC Properties","R&M - Reactive",10/11/2019 00:00:00,"6692958",1425,"BERKSHIRE MECHANICAL SERVICES"
"Bracknell Forest Council","http://opendatacommunities.org/id/unitary-authority/bracknell-forest","Bracknell Forest Council","00MA","Homelessness","Accommodation within own Stock","BFC Properties","R&M - Reactive",17/10/2019 00:00:00,"6691441",1519,"BERKSHIRE MECHANICAL SERVICES"
"Bracknell Forest Council","http://opendatacommunities.org/id/unitary-authority/bracknell-forest","Bracknell Forest Council","00MA","Other Council Property","Non HRA Council Property","LD Supported Accommodation","R&M - Reactive",10/11/2019 00:00:00,"6692960",1645,"BERKSHIRE MECHANICAL SERVICES"
"Bracknell Forest Council","http://opendatacommunities.org/id/unitary-authority/bracknell-forest","Bracknell Forest Council","00MA","Homelessness","Discretionary Housing Payments","Private Sector Leased Accommodation","R&M - Reactive",30/09/2019 00:00:00,"6692363",1800,"BERKSHIRE MECHANICAL SERVICES"
"Bracknell Forest Council","http://opendatacommunities.org/id/unitary-authority/bracknell-forest","Bracknell Forest Council","00MA","Homelessness","Accommodation within own Stock","BFC Properties","R&M - Reactive",10/11/2019 00:00:00,"6692958",2000,"BERKSHIRE MECHANICAL SERVICES"
"Bracknell Forest Council","http://opendatacommunities.org/id/unitary-authority/bracknell-forest","Bracknell Forest Council","00MA","Other Council Property","Non HRA Council Property","LD Supported Accommodation","R&M - Reactive",10/11/2019 00:00:00,"6692960",3000,"BERKSHIRE MECHANICAL SERVICES"
"Bracknell Forest Council","http://opendatacommunities.org/id/unitary-authority/bracknell-forest","Bracknell Forest Council","00MA","","","Fox Hill Primary-MTC","Construction - Contract Payments",04/09/2019 00:00:00,"6693003",8488.15,"BERKSHIRE MECHANICAL SERVICES"
"Bracknell Forest Council","http://opendatacommunities.org/id/unitary-authority/bracknell-forest","Bracknell Forest Council","00MA","","","Fox Hill Primary-MTC","Construction - Contract Payments",04/09/2019 00:00:00,"6693003",35000,"BERKSHIRE MECHANICAL SERVICES"
"Bracknell Forest Council","http://opendatacommunities.org/id/unitary-authority/bracknell-forest","Bracknell Forest Council","00MA","","","Fox Hill Primary-MTC","Construction - Contract Payments",31/10/2019 00:00:00,"6692583",800,"BERKSHIRE MECHANICAL SERVICES"
"Bracknell Forest Council","http://opendatacommunities.org/id/unitary-authority/bracknell-forest","Bracknell Forest Council","00MA","","","Fox Hill Primary-MTC","Construction - Contract Payments",31/10/2019 00:00:00,"6692583",1251.17,"BERKSHIRE MECHANICAL SERVICES"
"Bracknell Forest Council","http://opendatacommunities.org/id/unitary-authority/bracknell-forest","Bracknell Forest Council","00MA","","","Planned Maintenance Fees","Construction - Contract Payments",02/11/2019 00:00:00,"6692591",1300,"BERKSHIRE MECHANICAL SERVICES"
"Bracknell Forest Council","http://opendatacommunities.org/id/unitary-authority/bracknell-forest","Bracknell Forest Council","00MA","","","Planned Maintenance Fees","Construction - Contract Payments",02/11/2019 00:00:00,"6692591",600,"BERKSHIRE MECHANICAL SERVICES"
"Bracknell Forest Council","http://opendatacommunities.org/id/unitary-authority/bracknell-forest","Bracknell Forest Council","00MA","","","Planned Maintenance Fees","Construction - Contract Payments",02/10/2019 00:00:00,"6693051",28611,"BERKSHIRE MECHANICAL SERVICES"
"Bracknell Forest Council","http://opendatacommunities.org/id/unitary-authority/bracknell-forest","Bracknell Forest Council","00MA","","","Planned Maintenance Fees","Construction - Contract Payments",02/10/2019 00:00:00,"6693051",8000,"BERKSHIRE MECHANICAL SERVICES"
"Bracknell Forest Council","http://opendatacommunities.org/id/unitary-authority/bracknell-forest","Bracknell Forest Council","00MA","Services for Young People","Universal services for young people","Great Hollands Youth Centre","Contracted Services",30/09/2019 00:00:00,"6691733",3625,"BERKSHIRE YOUTH - BERKSHIRE ASSOCIATION OF CLUBS FOR YOUNG PEOPLE"
"Bracknell Forest Council","http://opendatacommunities.org/id/unitary-authority/bracknell-forest","Bracknell Forest Council","00MA","Services for Young People","Targeted services for young people","The Wayz","Contracted Services",30/09/2019 00:00:00,"6691430",13845,"BERKSHIRE YOUTH - BERKSHIRE ASSOCIATION OF CLUBS FOR YOUNG PEOPLE"
"Bracknell Forest Council","http://opendatacommunities.org/id/unitary-authority/bracknell-forest","Bracknell Forest Council","00MA","Corporate Management COF","Dir of Corporate Services Support & Admin","EXECUTIVE DIRECTOR DELIVERY","Other Fees for Bought-in Services",04/10/2019 00:00:00,"6690734",950,"BETHAN EVANS (GOVERNANCE TRAINING AND CONSULTANCY)"
"Bracknell Forest Council","http://opendatacommunities.org/id/unitary-authority/bracknell-forest","Bracknell Forest Council","00MA","Culture and Heritage","Heritage Museums & Galleries","The Look Out - Catering","Cost of Goods Sold",27/09/2019 00:00:00,"30364519",16.58,"BFS GROUP LTD T/A BIDFOOD"
"Bracknell Forest Council","http://opendatacommunities.org/id/unitary-authority/bracknell-forest","Bracknell Forest Council","00MA","Culture and Heritage","Heritage Museums & Galleries","The Look Out - Catering","Cost of Goods Sold",27/09/2019 00:00:00,"30364519",68.17,"BFS GROUP LTD T/A BIDFOOD"
"Bracknell Forest Council","http://opendatacommunities.org/id/unitary-authority/bracknell-forest","Bracknell Forest Council","00MA","Culture and Heritage","Heritage Museums & Galleries","The Look Out - Catering","Cost of Goods Sold",04/10/2019 00:00:00,"30364519",69.99,"BFS GROUP LTD T/A BIDFOOD"
"Bracknell Forest Council","http://opendatacommunities.org/id/unitary-authority/bracknell-forest","Bracknell Forest Council","00MA","Culture and Heritage","Heritage Museums & Galleries","The Look Out - Catering","Cost of Goods Sold",04/10/2019 00:00:00,"30364519",72.71,"BFS GROUP LTD T/A BIDFOOD"
"Bracknell Forest Council","http://opendatacommunities.org/id/unitary-authority/bracknell-forest","Bracknell Forest Council","00MA","Culture and Heritage","Heritage Museums & Galleries","The Look Out - Catering","Cost of Goods Sold",11/10/2019 00:00:00,"30364861",10.49,"BFS GROUP LTD T/A BIDFOOD"
"Bracknell Forest Council","http://opendatacommunities.org/id/unitary-authority/bracknell-forest","Bracknell Forest Council","00MA","Culture and Heritage","Heritage Museums & Galleries","The Look Out - Catering","Cost of Goods Sold",11/10/2019 00:00:00,"30364861",73.56,"BFS GROUP LTD T/A BIDFOOD"
"Bracknell Forest Council","http://opendatacommunities.org/id/unitary-authority/bracknell-forest","Bracknell Forest Council","00MA","Culture and Heritage","Heritage Museums & Galleries","The Look Out - Catering","Cost of Goods Sold",18/10/2019 00:00:00,"30365666",115.28,"BFS GROUP LTD T/A BIDFOOD"
"Bracknell Forest Council","http://opendatacommunities.org/id/unitary-authority/bracknell-forest","Bracknell Forest Council","00MA","Culture and Heritage","Heritage Museums & Galleries","The Look Out - Catering","Cost of Goods Sold",18/10/2019 00:00:00,"30365666",10.35,"BFS GROUP LTD T/A BIDFOOD"
"Bracknell Forest Council","http://opendatacommunities.org/id/unitary-authority/bracknell-forest","Bracknell Forest Council","00MA","Culture and Heritage","Heritage Museums & Galleries","The Look Out - Catering","Cost of Goods Sold",25/10/2019 00:00:00,"30365666",140.54,"BFS GROUP LTD T/A BIDFOOD"
"Bracknell Forest Council","http://opendatacommunities.org/id/unitary-authority/bracknell-forest","Bracknell Forest Council","00MA","Culture and Heritage","Heritage Museums & Galleries","The Look Out - Catering","Cost of Goods Sold",25/10/2019 00:00:00,"30365666",117.36,"BFS GROUP LTD T/A BIDFOOD"
"Bracknell Forest Council","http://opendatacommunities.org/id/unitary-authority/bracknell-forest","Bracknell Forest Council","00MA","Culture and Heritage","Heritage Museums & Galleries","The Look Out - Catering","Cost of Goods Sold",25/10/2019 00:00:00,"30365666",26.44,"BFS GROUP LTD T/A BIDFOOD"
"Bracknell Forest Council","http://opendatacommunities.org/id/unitary-authority/bracknell-forest","Bracknell Forest Council","00MA","Culture and Heritage","Heritage Museums & Galleries","The Look Out - Catering","Cost of Goods Sold",01/11/2019 00:00:00,"30366220",24.32,"BFS GROUP LTD T/A BIDFOOD"
"Bracknell Forest Council","http://opendatacommunities.org/id/unitary-authority/bracknell-forest","Bracknell Forest Council","00MA","Culture and Heritage","Heritage Museums & Galleries","The Look Out - Catering","Cost of Goods Sold",01/11/2019 00:00:00,"30366220",38.41,"BFS GROUP LTD T/A BIDFOOD"
"Bracknell Forest Council","http://opendatacommunities.org/id/unitary-authority/bracknell-forest","Bracknell Forest Council","00MA","Culture and Heritage","Heritage Museums & Galleries","The Look Out - Catering","Cost of Goods Sold",08/11/2019 00:00:00,"30366925",115.86,"BFS GROUP LTD T/A BIDFOOD"
"Bracknell Forest Council","http://opendatacommunities.org/id/unitary-authority/bracknell-forest","Bracknell Forest Council","00MA","Culture and Heritage","Heritage Museums & Galleries","The Look Out - Catering","Cost of Goods Sold",08/11/2019 00:00:00,"30366925",87.58,"BFS GROUP LTD T/A BIDFOOD"
"Bracknell Forest Council","http://opendatacommunities.org/id/unitary-authority/bracknell-forest","Bracknell Forest Council","00MA","Culture and Heritage","Heritage Museums & Galleries","The Look Out - Catering","Cost of Goods Sold",08/11/2019 00:00:00,"30366925",94.89,"BFS GROUP LTD T/A BIDFOOD"
"Bracknell Forest Council","http://opendatacommunities.org/id/unitary-authority/bracknell-forest","Bracknell Forest Council","00MA","Culture and Heritage","Heritage Museums & Galleries","The Look Out - Catering","Cost of Goods Sold",08/11/2019 00:00:00,"30366925",3.79,"BFS GROUP LTD T/A BIDFOOD"
"Bracknell Forest Council","http://opendatacommunities.org/id/unitary-authority/bracknell-forest","Bracknell Forest Council","00MA","Culture and Heritage","Heritage Museums & Galleries","The Look Out - Catering","Cost of Goods Sold",15/11/2019 00:00:00,"30366925",53.77,"BFS GROUP LTD T/A BIDFOOD"
"Bracknell Forest Council","http://opendatacommunities.org/id/unitary-authority/bracknell-forest","Bracknell Forest Council","00MA","Culture and Heritage","Heritage Museums & Galleries","The Look Out - Catering","Cost of Goods Sold",29/11/2019 00:00:00,"30367770",55.82,"BFS GROUP LTD T/A BIDFOOD"
"Bracknell Forest Council","http://opendatacommunities.org/id/unitary-authority/bracknell-forest","Bracknell Forest Council","00MA","Culture and Heritage","Heritage Museums & Galleries","The Look Out - Catering","Cost of Goods Sold",29/11/2019 00:00:00,"30367770",126.01,"BFS GROUP LTD T/A BIDFOOD"
"Bracknell Forest Council","http://opendatacommunities.org/id/unitary-authority/bracknell-forest","Bracknell Forest Council","00MA","Management and Support Services - CYPL","Unallocated High Needs Related Expenditure","SEN Non LEA Provision Pre 16","Voluntary Sector Service Providers",11/09/2019 00:00:00,"6691144",16000,"BIG BEAR EDUCATION LIMITED"
"Bracknell Forest Council","http://opendatacommunities.org/id/unitary-authority/bracknell-forest","Bracknell Forest Council","00MA","Holding Accounts not in Budget Book - COF","General Holding Accounts","KGB Cleaning","Contract Cleaning",15/11/2019 00:00:00,"6693257",99401.09,"BIRKIN CLEANING SERVICES LIMITED"
"Bracknell Forest Council","http://opendatacommunities.org/id/unitary-authority/bracknell-forest","Bracknell Forest Council","00MA","Holding Accounts not in Budget Book - COF","General Holding Accounts","KGB Cleaning","Contract Cleaning",15/10/2019 00:00:00,"6691245",99401.09,"BIRKIN CLEANING SERVICES LIMITED"
"Bracknell Forest Council","http://opendatacommunities.org/id/unitary-authority/bracknell-forest","Bracknell Forest Council","00MA","Central Support Services - COF","Personnel","Personnel Services","Other Fees for Bought-in Services",27/05/2019 00:00:00,"6690994",7150,"BLACKBRIDGE COMMUNICATIONS LTD"
"Bracknell Forest Council","http://opendatacommunities.org/id/unitary-authority/bracknell-forest","Bracknell Forest Council","00MA","Sure Start Children's Centres","Children's centres - direct","The Oaks Family Hub","Minor Improvement Schemes",26/11/2019 00:00:00,"6693664",1253.5,"BLINDS AND AWNINGS LTD"
"Bracknell Forest Council","http://opendatacommunities.org/id/unitary-authority/bracknell-forest","Bracknell Forest Council","00MA","Sure Start Children's Centres","Children's centres - direct","The Rowans Family Hub","Furniture - Purchase",24/10/2019 00:00:00,"6691830",2873.83,"BLINDS AND AWNINGS LTD"
"Bracknell Forest Council","http://opendatacommunities.org/id/unitary-authority/bracknell-forest","Bracknell Forest Council","00MA","Special Schools & Alternative Provision","Youth Services","Alternative Provision for Secondary Aged pupils without a statement","Voluntary Sector Service Providers",17/09/2019 00:00:00,"6691621",500,"BMACTIVE"
"Bracknell Forest Council","http://opendatacommunities.org/id/unitary-authority/bracknell-forest","Bracknell Forest Council","00MA","Family Support Services","Targeted Family Support","C&F Section 17 Over 11's Team","Contracted Services",01/10/2019 00:00:00,"6690750",600,"BMACTIVE"
"Bracknell Forest Council","http://opendatacommunities.org/id/unitary-authority/bracknell-forest","Bracknell Forest Council","00MA","Family Support Services","Targeted Family Support","C&F Section 17 Over 11's Team","Translating & Interpreting",06/11/2019 00:00:00,"6692762",600,"BMACTIVE"
"Bracknell Forest Council","http://opendatacommunities.org/id/unitary-authority/bracknell-forest","Bracknell Forest Council","00MA","Special Schools & Alternative Provision","Youth Services","Alternative Provision for the Primary Aged pupils without a statement","Voluntary Sector Service Providers",25/10/2019 00:00:00,"6691627",675,"BMACTIVE"
"Bracknell Forest Council","http://opendatacommunities.org/id/unitary-authority/bracknell-forest","Bracknell Forest Council","00MA","Special Schools & Alternative Provision","Youth Services","Alternative Provision for Secondary Aged pupils without a statement","Voluntary Sector Service Providers",17/09/2019 00:00:00,"6691624",800,"BMACTIVE"
"Bracknell Forest Council","http://opendatacommunities.org/id/unitary-authority/bracknell-forest","Bracknell Forest Council","00MA","Children Looked After","Other services for LAC","LAC- Over 11s Expenditure","Other Support to Clients",17/09/2019 00:00:00,"6692761",850,"BMACTIVE"
"Bracknell Forest Council","http://opendatacommunities.org/id/unitary-authority/bracknell-forest","Bracknell Forest Council","00MA","Family Support Services","Targeted Family Support","C&F Section 17 Over 11's Team","Other Support to Clients",17/09/2019 00:00:00,"6691494",850,"BMACTIVE"
"Bracknell Forest Council","http://opendatacommunities.org/id/unitary-authority/bracknell-forest","Bracknell Forest Council","00MA","Children Looked After","Other services for LAC","LAC- Over 11s Expenditure","Contracted Services",01/10/2019 00:00:00,"6690749",896.3,"BMACTIVE"
"Bracknell Forest Council","http://opendatacommunities.org/id/unitary-authority/bracknell-forest","Bracknell Forest Council","00MA","Special Schools & Alternative Provision","Youth Services","Alternative Provision for Secondary Aged pupils without a statement","Voluntary Sector Service Providers",06/11/2019 00:00:00,"6693165",1000,"BMACTIVE"
"Bracknell Forest Council","http://opendatacommunities.org/id/unitary-authority/bracknell-forest","Bracknell Forest Council","00MA","Special Schools & Alternative Provision","Youth Services","Alternative Provision for Secondary Aged pupils without a statement","Voluntary Sector Service Providers",25/10/2019 00:00:00,"6691625",1000,"BMACTIVE"
"Bracknell Forest Council","http://opendatacommunities.org/id/unitary-authority/bracknell-forest","Bracknell Forest Council","00MA","Special Schools & Alternative Provision","Youth Services","Alternative Provision for the Primary Aged pupils without a statement","Voluntary Sector Service Providers",01/10/2019 00:00:00,"6690573",1100,"BMACTIVE"
"Bracknell Forest Council","http://opendatacommunities.org/id/unitary-authority/bracknell-forest","Bracknell Forest Council","00MA","Family Support Services","Targeted Family Support","C&F Section 17 Over 11's Team","Other Support to Clients",17/09/2019 00:00:00,"6690746",1200,"BMACTIVE"
"Bracknell Forest Council","http://opendatacommunities.org/id/unitary-authority/bracknell-forest","Bracknell Forest Council","00MA","Children Looked After","Other services for LAC","LAC- Over 11s Expenditure","Other Support to Clients",17/09/2019 00:00:00,"6690732",1450,"BMACTIVE"
"Bracknell Forest Council","http://opendatacommunities.org/id/unitary-authority/bracknell-forest","Bracknell Forest Council","00MA","Special Schools & Alternative Provision","Youth Services","Alternative Provision for the Primary Aged pupils without a statement","Voluntary Sector Service Providers",06/11/2019 00:00:00,"6693198",1500,"BMACTIVE"
"Bracknell Forest Council","http://opendatacommunities.org/id/unitary-authority/bracknell-forest","Bracknell Forest Council","00MA","Children Looked After","Other services for LAC","LAC- Over 11s Expenditure","Other Support to Clients",17/09/2019 00:00:00,"6690744",1586.3,"BMACTIVE"
"Bracknell Forest Council","http://opendatacommunities.org/id/unitary-authority/bracknell-forest","Bracknell Forest Council","00MA","Special Schools & Alternative Provision","Youth Services","Alternative Provision for Secondary Aged pupils without a statement","Voluntary Sector Service Providers",17/09/2019 00:00:00,"6692520",1750,"BMACTIVE"
"Bracknell Forest Council","http://opendatacommunities.org/id/unitary-authority/bracknell-forest","Bracknell Forest Council","00MA","Special Schools & Alternative Provision","Youth Services","Alternative Provision for Secondary Aged pupils without a statement","Voluntary Sector Service Providers",17/09/2019 00:00:00,"6692423",1750,"BMACTIVE"
"Bracknell Forest Council","http://opendatacommunities.org/id/unitary-authority/bracknell-forest","Bracknell Forest Council","00MA","Special Schools & Alternative Provision","Youth Services","Alternative Provision for Secondary Aged pupils without a statement","Voluntary Sector Service Providers",01/10/2019 00:00:00,"6690579",2000,"BMACTIVE"
"Bracknell Forest Council","http://opendatacommunities.org/id/unitary-authority/bracknell-forest","Bracknell Forest Council","00MA","Special Schools & Alternative Provision","Youth Services","Alternative Provision for Secondary Aged pupils without a statement","Voluntary Sector Service Providers",06/11/2019 00:00:00,"6693164",2500,"BMACTIVE"
"Bracknell Forest Council","http://opendatacommunities.org/id/unitary-authority/bracknell-forest","Bracknell Forest Council","00MA","Family Support Services","Targeted Family Support","C&F Section 17 Over 11's Team","Contracted Services",01/10/2019 00:00:00,"6690752",2550,"BMACTIVE"
"Bracknell Forest Council","http://opendatacommunities.org/id/unitary-authority/bracknell-forest","Bracknell Forest Council","00MA","Family Support Services","Targeted Family Support","C&F Section 17 Over 11's Team","Other Support to Clients",17/09/2019 00:00:00,"6690743",2750,"BMACTIVE"
"Bracknell Forest Council","http://opendatacommunities.org/id/unitary-authority/bracknell-forest","Bracknell Forest Council","00MA","Special Schools & Alternative Provision","Youth Services","Alternative Provision for Secondary Aged pupils without a statement","Voluntary Sector Service Providers",17/09/2019 00:00:00,"6692422",2800,"BMACTIVE"
"Bracknell Forest Council","http://opendatacommunities.org/id/unitary-authority/bracknell-forest","Bracknell Forest Council","00MA","Special Schools & Alternative Provision","Youth Services","Alternative Provision for the Primary Aged pupils without a statement","Voluntary Sector Service Providers",01/10/2019 00:00:00,"6690574",2850,"BMACTIVE"
"Bracknell Forest Council","http://opendatacommunities.org/id/unitary-authority/bracknell-forest","Bracknell Forest Council","00MA","Special Schools & Alternative Provision","Youth Services","Alternative Provision for Secondary Aged pupils without a statement","Voluntary Sector Service Providers",01/10/2019 00:00:00,"6690577",3087.5,"BMACTIVE"
"Bracknell Forest Council","http://opendatacommunities.org/id/unitary-authority/bracknell-forest","Bracknell Forest Council","00MA","Special Schools & Alternative Provision","Youth Services","Alternative Provision for Secondary Aged pupils without a statement","Voluntary Sector Service Providers",06/11/2019 00:00:00,"6693166",3500,"BMACTIVE"
"Bracknell Forest Council","http://opendatacommunities.org/id/unitary-authority/bracknell-forest","Bracknell Forest Council","00MA","Special Schools & Alternative Provision","Youth Services","Alternative Provision for the Primary Aged pupils without a statement","Voluntary Sector Service Providers",01/10/2019 00:00:00,"6690575",3750,"BMACTIVE"
"Bracknell Forest Council","http://opendatacommunities.org/id/unitary-authority/bracknell-forest","Bracknell Forest Council","00MA","Special Schools & Alternative Provision","Youth Services","Alternative Provision for Secondary Aged pupils without a statement","Voluntary Sector Service Providers",06/11/2019 00:00:00,"6693059",4000,"BMACTIVE"
"Bracknell Forest Council","http://opendatacommunities.org/id/unitary-authority/bracknell-forest","Bracknell Forest Council","00MA","Special Schools & Alternative Provision","Youth Services","Alternative Provision for Secondary Aged pupils without a statement","Voluntary Sector Service Providers",06/11/2019 00:00:00,"6693060",5000,"BMACTIVE"
"Bracknell Forest Council","http://opendatacommunities.org/id/unitary-authority/bracknell-forest","Bracknell Forest Council","00MA","Special Schools & Alternative Provision","Youth Services","Alternative Provision for Secondary Aged pupils without a statement","Voluntary Sector Service Providers",06/11/2019 00:00:00,"6693163",5568.75,"BMACTIVE"
"Bracknell Forest Council","http://opendatacommunities.org/id/unitary-authority/bracknell-forest","Bracknell Forest Council","00MA","Special Schools & Alternative Provision","Youth Services","Alternative Provision for Secondary Aged pupils without a statement","Voluntary Sector Service Providers",27/09/2019 00:00:00,"6690903",5850,"BMACTIVE"
"Bracknell Forest Council","http://opendatacommunities.org/id/unitary-authority/bracknell-forest","Bracknell Forest Council","00MA","Interest & Investment Income","Interest & Investment Income","Investment Management Fees","Banking Charges",30/09/2019 00:00:00,"6691268",-2693.67,"BOTTOMLINE TECHNOLOGIES LIMITED"
"Bracknell Forest Council","http://opendatacommunities.org/id/unitary-authority/bracknell-forest","Bracknell Forest Council","00MA","Children Looked After","Fostering services","Independent Fostering (Non BFBC)","Other Local Authorities",20/09/2019 00:00:00,"6690367",546.33,"BOURNEMOUTH CHRISTCHURCH AND POOLE COUNCIL"
"Bracknell Forest Council","http://opendatacommunities.org/id/unitary-authority/bracknell-forest","Bracknell Forest Council","00MA","Children Looked After","Fostering services","Independent Fostering (Non BFBC)","Other Local Authorities",15/11/2019 00:00:00,"6693445",1917,"BOURNEMOUTH CHRISTCHURCH AND POOLE COUNCIL"
"Bracknell Forest Council","http://opendatacommunities.org/id/unitary-authority/bracknell-forest","Bracknell Forest Council","00MA","Management and Support Services - CYPL","Unallocated High Needs Related Expenditure","SEN Non LEA Provision Pre 16","Voluntary Sector Service Providers",03/07/2019 00:00:00,"6691076",1990,"BOWDEN HOUSE SCHOOL"
"Bracknell Forest Council","http://opendatacommunities.org/id/unitary-authority/bracknell-forest","Bracknell Forest Council","00MA","Older People (65+)","Long Term Support - Community:Supported Living","LD Older People 65+ Long Term Support - Community:Supported Living","Contracted Services",17/10/2019 00:00:00,"30364912",2261.35,"BOYN GROVE COMMUNITY RESOURCE CENTRE"
"Bracknell Forest Council","http://opendatacommunities.org/id/unitary-authority/bracknell-forest","Bracknell Forest Council","00MA","Substance Misuse","Drug misuse in adults","SM Operational Costs","Other Fees for Bought-in Services",18/10/2019 00:00:00,"6691599",2081.56,"BPC - BERKSHIRE PRIMARY CARE LTD"
"Bracknell Forest Council","http://opendatacommunities.org/id/unitary-authority/bracknell-forest","Bracknell Forest Council","00MA","Substance Misuse","Drug misuse in adults","SM Operational Costs","Other Fees for Bought-in Services",18/10/2019 00:00:00,"6691598",2115.16,"BPC - BERKSHIRE PRIMARY CARE LTD"
"Bracknell Forest Council","http://opendatacommunities.org/id/unitary-authority/bracknell-forest","Bracknell Forest Council","00MA","Substance Misuse","Drug misuse in adults","SM Operational Costs","Other Fees for Bought-in Services",02/09/2019 00:00:00,"6691001",2171.16,"BPC - BERKSHIRE PRIMARY CARE LTD"
"Bracknell Forest Council","http://opendatacommunities.org/id/unitary-authority/bracknell-forest","Bracknell Forest Council","00MA","Substance Misuse","Drug misuse in adults","SM Operational Costs","Other Fees for Bought-in Services",02/09/2019 00:00:00,"6691000",2462.36,"BPC - BERKSHIRE PRIMARY CARE LTD"
"Bracknell Forest Council","http://opendatacommunities.org/id/unitary-authority/bracknell-forest","Bracknell Forest Council","00MA","Management and Support Services - CYPL","Schools Block Centrally Managed","LMS Contingency - centrally managed","Contracted Services",07/10/2019 00:00:00,"6690665",3780,"BRACKENHALE ACADEMY"
"Bracknell Forest Council","http://opendatacommunities.org/id/unitary-authority/bracknell-forest","Bracknell Forest Council","00MA","Management and Support Services - CYPL","Unallocated High Needs Related Expenditure","Mainstream - Element 3 top up BFC Academy pre 16","Contracted Services",07/10/2019 00:00:00,"6690665",6140.18,"BRACKENHALE ACADEMY"
"Bracknell Forest Council","http://opendatacommunities.org/id/unitary-authority/bracknell-forest","Bracknell Forest Council","00MA","Culture and Heritage","Heritage Museums & Galleries","The Look Out - Catering","R&M - Service Contracts",29/04/2019 00:00:00,"6693019",514.69,"BRACKNELL PERSONNEL SERVICES"
"Bracknell Forest Council","http://opendatacommunities.org/id/unitary-authority/bracknell-forest","Bracknell Forest Council","00MA","Culture and Heritage","Heritage Museums & Galleries","The Look Out - Catering","R&M - Service Contracts",13/05/2019 00:00:00,"6693022",573.33,"BRACKNELL PERSONNEL SERVICES"
"Bracknell Forest Council","http://opendatacommunities.org/id/unitary-authority/bracknell-forest","Bracknell Forest Council","00MA","Culture and Heritage","Heritage Museums & Galleries","The Look Out - Catering","R&M - Service Contracts",01/07/2019 00:00:00,"6693024",736.2,"BRACKNELL PERSONNEL SERVICES"
"Bracknell Forest Council","http://opendatacommunities.org/id/unitary-authority/bracknell-forest","Bracknell Forest Council","00MA","Culture and Heritage","Heritage Museums & Galleries","The Look Out - Catering","R&M - Service Contracts",16/08/2019 00:00:00,"6693035",833.92,"BRACKNELL PERSONNEL SERVICES"
"Bracknell Forest Council","http://opendatacommunities.org/id/unitary-authority/bracknell-forest","Bracknell Forest Council","00MA","Culture and Heritage","Heritage Museums & Galleries","The Look Out - Catering","Cost of Goods Sold",26/09/2019 00:00:00,"30364519",38.2,"BRAKES BROS FOODSERVICE LTD"
"Bracknell Forest Council","http://opendatacommunities.org/id/unitary-authority/bracknell-forest","Bracknell Forest Council","00MA","Culture and Heritage","Heritage Museums & Galleries","The Look Out - Catering","Cost of Goods Sold",03/10/2019 00:00:00,"30364519",106.61,"BRAKES BROS FOODSERVICE LTD"
"Bracknell Forest Council","http://opendatacommunities.org/id/unitary-authority/bracknell-forest","Bracknell Forest Council","00MA","Culture and Heritage","Heritage Museums & Galleries","The Look Out - Catering","Cost of Goods Sold",10/10/2019 00:00:00,"30365345",73.1,"BRAKES BROS FOODSERVICE LTD"
"Bracknell Forest Council","http://opendatacommunities.org/id/unitary-authority/bracknell-forest","Bracknell Forest Council","00MA","Culture and Heritage","Heritage Museums & Galleries","The Look Out - Catering","Cost of Goods Sold",17/10/2019 00:00:00,"30365666",85.87,"BRAKES BROS FOODSERVICE LTD"
"Bracknell Forest Council","http://opendatacommunities.org/id/unitary-authority/bracknell-forest","Bracknell Forest Council","00MA","Culture and Heritage","Heritage Museums & Galleries","The Look Out - Catering","Cost of Goods Sold",22/10/2019 00:00:00,"30365666",69.09,"BRAKES BROS FOODSERVICE LTD"
"Bracknell Forest Council","http://opendatacommunities.org/id/unitary-authority/bracknell-forest","Bracknell Forest Council","00MA","Culture and Heritage","Heritage Museums & Galleries","The Look Out - Catering","Cost of Goods Sold",24/10/2019 00:00:00,"30365666",62.99,"BRAKES BROS FOODSERVICE LTD"
"Bracknell Forest Council","http://opendatacommunities.org/id/unitary-authority/bracknell-forest","Bracknell Forest Council","00MA","Culture and Heritage","Heritage Museums & Galleries","The Look Out - Catering","Cost of Goods Sold",29/10/2019 00:00:00,"30366220",91.74,"BRAKES BROS FOODSERVICE LTD"
"Bracknell Forest Council","http://opendatacommunities.org/id/unitary-authority/bracknell-forest","Bracknell Forest Council","00MA","Culture and Heritage","Heritage Museums & Galleries","The Look Out - Catering","Cost of Goods Sold",31/10/2019 00:00:00,"30366220",88.36,"BRAKES BROS FOODSERVICE LTD"
"Bracknell Forest Council","http://opendatacommunities.org/id/unitary-authority/bracknell-forest","Bracknell Forest Council","00MA","Culture and Heritage","Heritage Museums & Galleries","The Look Out - Catering","Cost of Goods Sold",07/11/2019 00:00:00,"30366925",95.45,"BRAKES BROS FOODSERVICE LTD"
"Bracknell Forest Council","http://opendatacommunities.org/id/unitary-authority/bracknell-forest","Bracknell Forest Council","00MA","Culture and Heritage","Heritage Museums & Galleries","The Look Out - Catering","Cost of Goods Sold",14/11/2019 00:00:00,"30366925",77.74,"BRAKES BROS FOODSERVICE LTD"
"Bracknell Forest Council","http://opendatacommunities.org/id/unitary-authority/bracknell-forest","Bracknell Forest Council","00MA","Culture and Heritage","Heritage Museums & Galleries","The Look Out - Catering","Cost of Goods Sold",19/11/2019 00:00:00,"30367770",14.74,"BRAKES BROS FOODSERVICE LTD"
"Bracknell Forest Council","http://opendatacommunities.org/id/unitary-authority/bracknell-forest","Bracknell Forest Council","00MA","Culture and Heritage","Heritage Museums & Galleries","The Look Out - Catering","Cost of Goods Sold",28/11/2019 00:00:00,"30367770",112.75,"BRAKES BROS FOODSERVICE LTD"
"Bracknell Forest Council","http://opendatacommunities.org/id/unitary-authority/bracknell-forest","Bracknell Forest Council","00MA","Older People (65+)","Long term Support - Community:Homecare","MC Older People 65+ Long Term Support - Community:Homecare","Contracted Services",15/10/2019 00:00:00,"30364847",665.76,"BRIGHT SPARK CARE LIMITED"
"Bracknell Forest Council","http://opendatacommunities.org/id/unitary-authority/bracknell-forest","Bracknell Forest Council","00MA","Adults (18-64)","Long term Support - Community:Homecare","MH Adults 18-64 Long Term Support - Community:Homecare","Contracted Services",17/10/2019 00:00:00,"30364912",1112.52,"BRIGHT SPARK CARE LIMITED"
"Bracknell Forest Council","http://opendatacommunities.org/id/unitary-authority/bracknell-forest","Bracknell Forest Council","00MA","Adults (18-64)","Long term Support - Community:Homecare","MH Adults 18-64 Long Term Support - Community:Homecare","Contracted Services",17/10/2019 00:00:00,"30364912",340.56,"BRIGHT SPARK CARE LIMITED"
"Bracknell Forest Council","http://opendatacommunities.org/id/unitary-authority/bracknell-forest","Bracknell Forest Council","00MA","Older People (65+)","Long term Support - Community:Homecare","PS Older People 65+ Long Term Support - Community:Homecare","Contracted Services",17/10/2019 00:00:00,"30364912",416.1,"BRIGHT SPARK CARE LIMITED"
"Bracknell Forest Council","http://opendatacommunities.org/id/unitary-authority/bracknell-forest","Bracknell Forest Council","00MA","Older People (65+)","Long term Support - Community:Homecare","PS Older People 65+ Long Term Support - Community:Homecare","Contracted Services",17/10/2019 00:00:00,"30364912",700.8,"BRIGHT SPARK CARE LIMITED"
"Bracknell Forest Council","http://opendatacommunities.org/id/unitary-authority/bracknell-forest","Bracknell Forest Council","00MA","Older People (65+)","Long term Support - Community:Homecare","PS Older People 65+ Long Term Support - Community:Homecare","Contracted Services",17/10/2019 00:00:00,"30364912",735.84,"BRIGHT SPARK CARE LIMITED"
"Bracknell Forest Council","http://opendatacommunities.org/id/unitary-authority/bracknell-forest","Bracknell Forest Council","00MA","Adults (18-64)","Long term Support - Community:Homecare","PS Adults 18-64 Long Term Support - Community:Homecare","Contracted Services",17/10/2019 00:00:00,"30364912",2207.52,"BRIGHT SPARK CARE LIMITED"
"Bracknell Forest Council","http://opendatacommunities.org/id/unitary-authority/bracknell-forest","Bracknell Forest Council","00MA","Adults (18-64)","Long term Support - Community:Homecare","PS Adults 18-64 Long Term Support - Community:Homecare","Contracted Services",17/10/2019 00:00:00,"30364912",1962.24,"BRIGHT SPARK CARE LIMITED"
"Bracknell Forest Council","http://opendatacommunities.org/id/unitary-authority/bracknell-forest","Bracknell Forest Council","00MA","Older People (65+)","Long term Support - Community:Homecare","LD Older People 65+ Long Term Support - Community:Homecare","Contracted Services",17/10/2019 00:00:00,"30364912",560.64,"BRIGHT SPARK CARE LIMITED"
"Bracknell Forest Council","http://opendatacommunities.org/id/unitary-authority/bracknell-forest","Bracknell Forest Council","00MA","Adults (18-64)","Long term Support - Community:Homecare","LD Adults 18-64 Long Term Support - Community:Homecare","Contracted Services",17/10/2019 00:00:00,"30364912",718.32,"BRIGHT SPARK CARE LIMITED"
"Bracknell Forest Council","http://opendatacommunities.org/id/unitary-authority/bracknell-forest","Bracknell Forest Council","00MA","Older People (65+)","Long term Support - Community:Homecare","MC Older People 65+ Long Term Support - Community:Homecare","Contracted Services",17/10/2019 00:00:00,"30364912",613.2,"BRIGHT SPARK CARE LIMITED"
"Bracknell Forest Council","http://opendatacommunities.org/id/unitary-authority/bracknell-forest","Bracknell Forest Council","00MA","Older People (65+)","Long term Support - Community:Homecare","MC Older People 65+ Long Term Support - Community:Homecare","Contracted Services",17/10/2019 00:00:00,"30364912",981.12,"BRIGHT SPARK CARE LIMITED"
"Bracknell Forest Council","http://opendatacommunities.org/id/unitary-authority/bracknell-forest","Bracknell Forest Council","00MA","Older People (65+)","Long term Support - Community:Homecare","MC Older People 65+ Long Term Support - Community:Homecare","Contracted Services",17/10/2019 00:00:00,"30364912",1077.72,"BRIGHT SPARK CARE LIMITED"
"Bracknell Forest Council","http://opendatacommunities.org/id/unitary-authority/bracknell-forest","Bracknell Forest Council","00MA","Older People (65+)","Long term Support - Community:Homecare","PS Older People 65+ Long Term Support - Community:Homecare","Contracted Services",17/10/2019 00:00:00,"30364912",613.2,"BRIGHT SPARK CARE LIMITED"
"Bracknell Forest Council","http://opendatacommunities.org/id/unitary-authority/bracknell-forest","Bracknell Forest Council","00MA","Older People (65+)","Long term Support - Community:Homecare","MC Older People 65+ Long Term Support - Community:Homecare","Contracted Services",31/10/2019 00:00:00,"30365673",981.12,"BRIGHT SPARK CARE LIMITED"
"Bracknell Forest Council","http://opendatacommunities.org/id/unitary-authority/bracknell-forest","Bracknell Forest Council","00MA","Older People (65+)","Long term Support - Community:Homecare","MC Older People 65+ Long Term Support - Community:Homecare","Contracted Services",31/10/2019 00:00:00,"30365673",1038.06,"BRIGHT SPARK CARE LIMITED"
"Bracknell Forest Council","http://opendatacommunities.org/id/unitary-authority/bracknell-forest","Bracknell Forest Council","00MA","Older People (65+)","Long term Support - Community:Homecare","MC Older People 65+ Long Term Support - Community:Homecare","Contracted Services",31/10/2019 00:00:00,"30365673",468.48,"BRIGHT SPARK CARE LIMITED"
"Bracknell Forest Council","http://opendatacommunities.org/id/unitary-authority/bracknell-forest","Bracknell Forest Council","00MA","Older People (65+)","Long term Support - Community:Homecare","MC Older People 65+ Long Term Support - Community:Homecare","Contracted Services",31/10/2019 00:00:00,"30365673",477.24,"BRIGHT SPARK CARE LIMITED"
"Bracknell Forest Council","http://opendatacommunities.org/id/unitary-authority/bracknell-forest","Bracknell Forest Council","00MA","Older People (65+)","Long term Support - Community:Homecare","MC Older People 65+ Long Term Support - Community:Homecare","Contracted Services",31/10/2019 00:00:00,"30365673",468.48,"BRIGHT SPARK CARE LIMITED"
"Bracknell Forest Council","http://opendatacommunities.org/id/unitary-authority/bracknell-forest","Bracknell Forest Council","00MA","Older People (65+)","Long term Support - Community:Homecare","MC Older People 65+ Long Term Support - Community:Homecare","Contracted Services",31/10/2019 00:00:00,"30365673",481.62,"BRIGHT SPARK CARE LIMITED"
"Bracknell Forest Council","http://opendatacommunities.org/id/unitary-authority/bracknell-forest","Bracknell Forest Council","00MA","Older People (65+)","Long term Support - Community:Homecare","MC Older People 65+ Long Term Support - Community:Homecare","Contracted Services",31/10/2019 00:00:00,"30365673",468.48,"BRIGHT SPARK CARE LIMITED"
"Bracknell Forest Council","http://opendatacommunities.org/id/unitary-authority/bracknell-forest","Bracknell Forest Council","00MA","Older People (65+)","Long term Support - Community:Homecare","PS Older People 65+ Long Term Support - Community:Homecare","Contracted Services",14/11/2019 00:00:00,"30366591",700.8,"BRIGHT SPARK CARE LIMITED"
"Bracknell Forest Council","http://opendatacommunities.org/id/unitary-authority/bracknell-forest","Bracknell Forest Council","00MA","Older People (65+)","Long term Support - Community:Homecare","PS Older People 65+ Long Term Support - Community:Homecare","Contracted Services",14/11/2019 00:00:00,"30366591",551.88,"BRIGHT SPARK CARE LIMITED"
"Bracknell Forest Council","http://opendatacommunities.org/id/unitary-authority/bracknell-forest","Bracknell Forest Council","00MA","Older People (65+)","Long term Support - Community:Homecare","PS Older People 65+ Long Term Support - Community:Homecare","Contracted Services",14/11/2019 00:00:00,"30366591",613.2,"BRIGHT SPARK CARE LIMITED"
"Bracknell Forest Council","http://opendatacommunities.org/id/unitary-authority/bracknell-forest","Bracknell Forest Council","00MA","Older People (65+)","Long term Support - Community:Homecare","LD Older People 65+ Long Term Support - Community:Homecare","Contracted Services",14/11/2019 00:00:00,"30366591",876,"BRIGHT SPARK CARE LIMITED"
"Bracknell Forest Council","http://opendatacommunities.org/id/unitary-authority/bracknell-forest","Bracknell Forest Council","00MA","Adults (18-64)","Long term Support - Community:Homecare","LD Adults 18-64 Long Term Support - Community:Homecare","Contracted Services",14/11/2019 00:00:00,"30366591",805.92,"BRIGHT SPARK CARE LIMITED"
"Bracknell Forest Council","http://opendatacommunities.org/id/unitary-authority/bracknell-forest","Bracknell Forest Council","00MA","Adults (18-64)","Long term Support - Community:Homecare","MH Adults 18-64 Long Term Support - Community:Homecare","Contracted Services",14/11/2019 00:00:00,"30366591",438,"BRIGHT SPARK CARE LIMITED"
"Bracknell Forest Council","http://opendatacommunities.org/id/unitary-authority/bracknell-forest","Bracknell Forest Council","00MA","Adults (18-64)","Long term Support - Community:Homecare","MH Adults 18-64 Long Term Support - Community:Homecare","Contracted Services",14/11/2019 00:00:00,"30366591",1121.28,"BRIGHT SPARK CARE LIMITED"
"Bracknell Forest Council","http://opendatacommunities.org/id/unitary-authority/bracknell-forest","Bracknell Forest Council","00MA","Adults (18-64)","Long term Support - Community:Homecare","PS Adults 18-64 Long Term Support - Community:Homecare","Contracted Services",14/11/2019 00:00:00,"30366591",1699.44,"BRIGHT SPARK CARE LIMITED"
"Bracknell Forest Council","http://opendatacommunities.org/id/unitary-authority/bracknell-forest","Bracknell Forest Council","00MA","Adults (18-64)","Long term Support - Community:Homecare","PS Adults 18-64 Long Term Support - Community:Homecare","Contracted Services",14/11/2019 00:00:00,"30366591",2207.52,"BRIGHT SPARK CARE LIMITED"
"Bracknell Forest Council","http://opendatacommunities.org/id/unitary-authority/bracknell-forest","Bracknell Forest Council","00MA","Older People (65+)","Long term Support - Community:Homecare","MC Older People 65+ Long Term Support - Community:Homecare","Contracted Services",14/11/2019 00:00:00,"30366591",323.46,"BRIGHT SPARK CARE LIMITED"
"Bracknell Forest Council","http://opendatacommunities.org/id/unitary-authority/bracknell-forest","Bracknell Forest Council","00MA","Older People (65+)","Long term Support - Community:Homecare","MC Older People 65+ Long Term Support - Community:Homecare","Contracted Services",14/11/2019 00:00:00,"30366591",1077.72,"BRIGHT SPARK CARE LIMITED"
"Bracknell Forest Council","http://opendatacommunities.org/id/unitary-authority/bracknell-forest","Bracknell Forest Council","00MA","Older People (65+)","Long term Support - Community:Homecare","MC Older People 65+ Long Term Support - Community:Homecare","Contracted Services",14/11/2019 00:00:00,"30366591",981.12,"BRIGHT SPARK CARE LIMITED"
"Bracknell Forest Council","http://opendatacommunities.org/id/unitary-authority/bracknell-forest","Bracknell Forest Council","00MA","Older People (65+)","Long term Support - Community:Homecare","MC Older People 65+ Long Term Support - Community:Homecare","Contracted Services",21/11/2019 00:00:00,"30366942",337.26,"BRIGHT SPARK CARE LIMITED"
"Bracknell Forest Council","http://opendatacommunities.org/id/unitary-authority/bracknell-forest","Bracknell Forest Council","00MA","Older People (65+)","Long term Support - Community:Homecare","PS Older People 65+ Long Term Support - Community:Homecare","Contracted Services",21/11/2019 00:00:00,"30366942",315.36,"BRIGHT SPARK CARE LIMITED"
"Bracknell Forest Council","http://opendatacommunities.org/id/unitary-authority/bracknell-forest","Bracknell Forest Council","00MA","Older People (65+)","Long term Support - Community:Homecare","PS Older People 65+ Long Term Support - Community:Homecare","Contracted Services",21/11/2019 00:00:00,"30366942",1103.76,"BRIGHT SPARK CARE LIMITED"
"Bracknell Forest Council","http://opendatacommunities.org/id/unitary-authority/bracknell-forest","Bracknell Forest Council","00MA","Older People (65+)","Long term Support - Community:Homecare","MC Older People 65+ Long Term Support - Community:Homecare","Contracted Services",28/11/2019 00:00:00,"30367270",1725.72,"BRIGHT SPARK CARE LIMITED"
"Bracknell Forest Council","http://opendatacommunities.org/id/unitary-authority/bracknell-forest","Bracknell Forest Council","00MA","Children Looked After","Fostering services","Independent Fostering (Non BFBC)","Contracted Services",01/11/2019 00:00:00,"6693219",3257.1,"BRIGHTER FUTURES FOSTER CARE LTD"
"Bracknell Forest Council","http://opendatacommunities.org/id/unitary-authority/bracknell-forest","Bracknell Forest Council","00MA","Children Looked After","Fostering services","Independent Fostering (Non BFBC)","Contracted Services",01/10/2019 00:00:00,"6691170",3365.67,"BRIGHTER FUTURES FOSTER CARE LTD"
"Bracknell Forest Council","http://opendatacommunities.org/id/unitary-authority/bracknell-forest","Bracknell Forest Council","00MA","Children Looked After","Fostering services","Independent Fostering (Non BFBC)","Contracted Services",01/07/2019 00:00:00,"6693212",3365.67,"BRIGHTER FUTURES FOSTER CARE LTD"
"Bracknell Forest Council","http://opendatacommunities.org/id/unitary-authority/bracknell-forest","Bracknell Forest Council","00MA","Children Looked After","Fostering services","Independent Fostering (Non BFBC)","Contracted Services",01/08/2019 00:00:00,"6693213",3365.67,"BRIGHTER FUTURES FOSTER CARE LTD"
"Bracknell Forest Council","http://opendatacommunities.org/id/unitary-authority/bracknell-forest","Bracknell Forest Council","00MA","Children Looked After","Other services for LAC","LAC - Semi Independent Living","Contracted Services",04/11/2019 00:00:00,"6693170",1729,"BRIGHTER STEPS LTD"
"Bracknell Forest Council","http://opendatacommunities.org/id/unitary-authority/bracknell-forest","Bracknell Forest Council","00MA","Children Looked After","Other services for LAC","LAC - Semi Independent Living","Contracted Services",28/10/2019 00:00:00,"6692742",1733.5,"BRIGHTER STEPS LTD"
"Bracknell Forest Council","http://opendatacommunities.org/id/unitary-authority/bracknell-forest","Bracknell Forest Council","00MA","Children Looked After","Other services for LAC","LAC - Semi Independent Living","Contracted Services",11/11/2019 00:00:00,"6693137",1784,"BRIGHTER STEPS LTD"
"Bracknell Forest Council","http://opendatacommunities.org/id/unitary-authority/bracknell-forest","Bracknell Forest Council","00MA","Children Looked After","Other services for LAC","LAC - Semi Independent Living","Contracted Services",10/10/2019 00:00:00,"6691192",1788,"BRIGHTER STEPS LTD"
"Bracknell Forest Council","http://opendatacommunities.org/id/unitary-authority/bracknell-forest","Bracknell Forest Council","00MA","Children Looked After","Other services for LAC","LAC - Semi Independent Living","Contracted Services",30/09/2019 00:00:00,"6691116",1839,"BRIGHTER STEPS LTD"
"Bracknell Forest Council","http://opendatacommunities.org/id/unitary-authority/bracknell-forest","Bracknell Forest Council","00MA","Children Looked After","Other services for LAC","LAC - Semi Independent Living","Contracted Services",14/10/2019 00:00:00,"6692041",2039,"BRIGHTER STEPS LTD"
"Bracknell Forest Council","http://opendatacommunities.org/id/unitary-authority/bracknell-forest","Bracknell Forest Council","00MA","Children Looked After","Other services for LAC","LAC - Semi Independent Living","Contracted Services",21/10/2019 00:00:00,"6692468",2090,"BRIGHTER STEPS LTD"
"Bracknell Forest Council","http://opendatacommunities.org/id/unitary-authority/bracknell-forest","Bracknell Forest Council","00MA","Older People (65+)","Long Term Support - Nursing","MC Older People 65+ Long Term Support - Nursing","Contracted Services",03/10/2019 00:00:00,"30364189",3530.44,"BRIGHTERKIND/THE BERKSHIRE CARE HOME"
"Bracknell Forest Council","http://opendatacommunities.org/id/unitary-authority/bracknell-forest","Bracknell Forest Council","00MA","Older People (65+)","Long Term Support - Nursing","PS Older People 65+ Long Term Support - Nursing","Contracted Services",03/10/2019 00:00:00,"30364189",3422.44,"BRIGHTERKIND/THE BERKSHIRE CARE HOME"
"Bracknell Forest Council","http://opendatacommunities.org/id/unitary-authority/bracknell-forest","Bracknell Forest Council","00MA","Older People (65+)","Long Term Support - Nursing","PS Older People 65+ Long Term Support - Nursing","Contracted Services",03/10/2019 00:00:00,"30364189",3530.44,"BRIGHTERKIND/THE BERKSHIRE CARE HOME"
"Bracknell Forest Council","http://opendatacommunities.org/id/unitary-authority/bracknell-forest","Bracknell Forest Council","00MA","Older People (65+)","Long Term Support - Nursing","PS Older People 65+ Long Term Support - Nursing","Contracted Services",03/10/2019 00:00:00,"30364189",2435.72,"BRIGHTERKIND/THE BERKSHIRE CARE HOME"
"Bracknell Forest Council","http://opendatacommunities.org/id/unitary-authority/bracknell-forest","Bracknell Forest Council","00MA","Older People (65+)","Long Term Support - Nursing","PS Older People 65+ Long Term Support - Nursing","Contracted Services",03/10/2019 00:00:00,"30364189",2994.64,"BRIGHTERKIND/THE BERKSHIRE CARE HOME"
"Bracknell Forest Council","http://opendatacommunities.org/id/unitary-authority/bracknell-forest","Bracknell Forest Council","00MA","Older People (65+)","Long Term Support - Nursing","PS Older People 65+ Long Term Support - Nursing","Contracted Services",03/10/2019 00:00:00,"30364189",3530.44,"BRIGHTERKIND/THE BERKSHIRE CARE HOME"
"Bracknell Forest Council","http://opendatacommunities.org/id/unitary-authority/bracknell-forest","Bracknell Forest Council","00MA","Older People (65+)","Long Term Support - Nursing","PS Older People 65+ Long Term Support - Nursing","Contracted Services",31/10/2019 00:00:00,"30365674",2994.64,"BRIGHTERKIND/THE BERKSHIRE CARE HOME"
"Bracknell Forest Council","http://opendatacommunities.org/id/unitary-authority/bracknell-forest","Bracknell Forest Council","00MA","Older People (65+)","Long Term Support - Nursing","PS Older People 65+ Long Term Support - Nursing","Contracted Services",31/10/2019 00:00:00,"30365674",3422.44,"BRIGHTERKIND/THE BERKSHIRE CARE HOME"
"Bracknell Forest Council","http://opendatacommunities.org/id/unitary-authority/bracknell-forest","Bracknell Forest Council","00MA","Older People (65+)","Long Term Support - Nursing","PS Older People 65+ Long Term Support - Nursing","Contracted Services",31/10/2019 00:00:00,"30365674",3530.44,"BRIGHTERKIND/THE BERKSHIRE CARE HOME"
"Bracknell Forest Council","http://opendatacommunities.org/id/unitary-authority/bracknell-forest","Bracknell Forest Council","00MA","Older People (65+)","Long Term Support - Nursing","PS Older People 65+ Long Term Support - Nursing","Contracted Services",31/10/2019 00:00:00,"30365674",2435.72,"BRIGHTERKIND/THE BERKSHIRE CARE HOME"
"Bracknell Forest Council","http://opendatacommunities.org/id/unitary-authority/bracknell-forest","Bracknell Forest Council","00MA","Older People (65+)","Long Term Support - Nursing","MC Older People 65+ Long Term Support - Nursing","Contracted Services",31/10/2019 00:00:00,"30365674",3530.44,"BRIGHTERKIND/THE BERKSHIRE CARE HOME"
"Bracknell Forest Council","http://opendatacommunities.org/id/unitary-authority/bracknell-forest","Bracknell Forest Council","00MA","Older People (65+)","Long Term Support - Nursing","PS Older People 65+ Long Term Support - Nursing","Contracted Services",31/10/2019 00:00:00,"30365674",3530.44,"BRIGHTERKIND/THE BERKSHIRE CARE HOME"
"Bracknell Forest Council","http://opendatacommunities.org/id/unitary-authority/bracknell-forest","Bracknell Forest Council","00MA","Older People (65+)","Long Term Support - Nursing","PS Older People 65+ Long Term Support - Nursing","Contracted Services",28/11/2019 00:00:00,"30367269",3530.44,"BRIGHTERKIND/THE BERKSHIRE CARE HOME"
"Bracknell Forest Council","http://opendatacommunities.org/id/unitary-authority/bracknell-forest","Bracknell Forest Council","00MA","Older People (65+)","Long Term Support - Nursing","PS Older People 65+ Long Term Support - Nursing","Contracted Services",28/11/2019 00:00:00,"30367269",2435.72,"BRIGHTERKIND/THE BERKSHIRE CARE HOME"
"Bracknell Forest Council","http://opendatacommunities.org/id/unitary-authority/bracknell-forest","Bracknell Forest Council","00MA","Older People (65+)","Long Term Support - Nursing","PS Older People 65+ Long Term Support - Nursing","Contracted Services",28/11/2019 00:00:00,"30367269",3530.44,"BRIGHTERKIND/THE BERKSHIRE CARE HOME"
"Bracknell Forest Council","http://opendatacommunities.org/id/unitary-authority/bracknell-forest","Bracknell Forest Council","00MA","Older People (65+)","Long Term Support - Nursing","PS Older People 65+ Long Term Support - Nursing","Contracted Services",28/11/2019 00:00:00,"30367269",3422.44,"BRIGHTERKIND/THE BERKSHIRE CARE HOME"
"Bracknell Forest Council","http://opendatacommunities.org/id/unitary-authority/bracknell-forest","Bracknell Forest Council","00MA","Older People (65+)","Long Term Support - Nursing","PS Older People 65+ Long Term Support - Nursing","Contracted Services",28/11/2019 00:00:00,"30367269",1925.13,"BRIGHTERKIND/THE BERKSHIRE CARE HOME"
"Bracknell Forest Council","http://opendatacommunities.org/id/unitary-authority/bracknell-forest","Bracknell Forest Council","00MA","Older People (65+)","Long Term Support - Nursing","MC Older People 65+ Long Term Support - Nursing","Contracted Services",28/11/2019 00:00:00,"30367269",3530.44,"BRIGHTERKIND/THE BERKSHIRE CARE HOME"
"Bracknell Forest Council","http://opendatacommunities.org/id/unitary-authority/bracknell-forest","Bracknell Forest Council","00MA","Culture and Heritage","Heritage Museums & Galleries","The Look Out","Cost of Goods Sold",03/09/2019 00:00:00,"6690122",901.6,"BRITISH FOSSILS"
"Bracknell Forest Council","http://opendatacommunities.org/id/unitary-authority/bracknell-forest","Bracknell Forest Council","00MA","Homelessness","Directly with a Private Sector Landlord","Yorktown Road","Gas",18/11/2019 00:00:00,"6693509",868.44,"BRITISH GAS"
"Bracknell Forest Council","http://opendatacommunities.org/id/unitary-authority/bracknell-forest","Bracknell Forest Council","00MA","Homelessness","Directly with a Private Sector Landlord","Yorktown Road","Electricity",02/12/2019 00:00:00,"6693807",869.48,"BRITISH GAS"
"Bracknell Forest Council","http://opendatacommunities.org/id/unitary-authority/bracknell-forest","Bracknell Forest Council","00MA","Homelessness","Directly with a Private Sector Landlord","Yorktown Road","Electricity",02/08/2019 00:00:00,"6692592",869.47,"BRITISH GAS BUSINESS"
"Bracknell Forest Council","http://opendatacommunities.org/id/unitary-authority/bracknell-forest","Bracknell Forest Council","00MA","Services for Young People","Targeted services for young people","The Wayz","Electricity",10/10/2019 00:00:00,"30364885",148.22,"BRITISH GAS BUSINESS"
"Bracknell Forest Council","http://opendatacommunities.org/id/unitary-authority/bracknell-forest","Bracknell Forest Council","00MA","Management and Support Services - CYPL","Holding Codes - net nil","Ranelagh Academy","Electricity",10/10/2019 00:00:00,"30364885",214.07,"BRITISH GAS BUSINESS"
"Bracknell Forest Council","http://opendatacommunities.org/id/unitary-authority/bracknell-forest","Bracknell Forest Council","00MA","Management and Support Services - CYPL","Holding Codes - net nil","Ranelagh Academy","Electricity",10/10/2019 00:00:00,"30364885",75.59,"BRITISH GAS BUSINESS"
"Bracknell Forest Council","http://opendatacommunities.org/id/unitary-authority/bracknell-forest","Bracknell Forest Council","00MA","Management and Support Services - CYPL","Holding Codes - net nil","Ranelagh Academy","Electricity",10/10/2019 00:00:00,"30364885",624.34,"BRITISH GAS BUSINESS"
"Bracknell Forest Council","http://opendatacommunities.org/id/unitary-authority/bracknell-forest","Bracknell Forest Council","00MA","Secondary Schools","Delegated Primary School Budgets","The Pines School","Electricity",10/10/2019 00:00:00,"30364885",443.66,"BRITISH GAS BUSINESS"
"Bracknell Forest Council","http://opendatacommunities.org/id/unitary-authority/bracknell-forest","Bracknell Forest Council","00MA","Secondary Schools","Delegated Primary School Budgets","The Pines School","Electricity",10/10/2019 00:00:00,"30364885",997.51,"BRITISH GAS BUSINESS"
"Bracknell Forest Council","http://opendatacommunities.org/id/unitary-authority/bracknell-forest","Bracknell Forest Council","00MA","Open Spaces","Community Parks & Open Spaces","Lily Hill Park Maintenance","Electricity",10/10/2019 00:00:00,"30364885",39.44,"BRITISH GAS BUSINESS"
"Bracknell Forest Council","http://opendatacommunities.org/id/unitary-authority/bracknell-forest","Bracknell Forest Council","00MA","Libraries","Branch Libraries","Binfield Library","Electricity",10/10/2019 00:00:00,"30364885",573.47,"BRITISH GAS BUSINESS"
"Bracknell Forest Council","http://opendatacommunities.org/id/unitary-authority/bracknell-forest","Bracknell Forest Council","00MA","Libraries","Branch Libraries","Birch Hill Library","Electricity",10/10/2019 00:00:00,"30364885",161.02,"BRITISH GAS BUSINESS"
"Bracknell Forest Council","http://opendatacommunities.org/id/unitary-authority/bracknell-forest","Bracknell Forest Council","00MA","Libraries","Branch Libraries","Crowthorne Library","Electricity",10/10/2019 00:00:00,"30364885",293.19,"BRITISH GAS BUSINESS"
"Bracknell Forest Council","http://opendatacommunities.org/id/unitary-authority/bracknell-forest","Bracknell Forest Council","00MA","Secondary Schools","Delegated Primary School Budgets","St Michael's (Easthampstead) - Primary","Electricity",10/10/2019 00:00:00,"30364885",568.98,"BRITISH GAS BUSINESS"
"Bracknell Forest Council","http://opendatacommunities.org/id/unitary-authority/bracknell-forest","Bracknell Forest Council","00MA","Secondary Schools","Delegated Primary School Budgets","St Michael's (Easthampstead) - Primary","Electricity",10/10/2019 00:00:00,"30364885",254.52,"BRITISH GAS BUSINESS"
"Bracknell Forest Council","http://opendatacommunities.org/id/unitary-authority/bracknell-forest","Bracknell Forest Council","00MA","Secondary Schools","Delegated Primary School Budgets","St Michael's (Easthampstead) - Primary","Electricity",10/10/2019 00:00:00,"30364885",115.23,"BRITISH GAS BUSINESS"
"Bracknell Forest Council","http://opendatacommunities.org/id/unitary-authority/bracknell-forest","Bracknell Forest Council","00MA","Secondary Schools","Delegated Primary School Budgets","Cranbourne - Primary","Electricity",10/10/2019 00:00:00,"30364885",751.64,"BRITISH GAS BUSINESS"
"Bracknell Forest Council","http://opendatacommunities.org/id/unitary-authority/bracknell-forest","Bracknell Forest Council","00MA","Secondary Schools","Delegated Primary School Budgets","Cranbourne - Primary","Electricity",10/10/2019 00:00:00,"30364885",65.79,"BRITISH GAS BUSINESS"
"Bracknell Forest Council","http://opendatacommunities.org/id/unitary-authority/bracknell-forest","Bracknell Forest Council","00MA","Business Support","Premises Development","Liscombe - Service Charges","Electricity",10/10/2019 00:00:00,"30364885",273.99,"BRITISH GAS BUSINESS"
"Bracknell Forest Council","http://opendatacommunities.org/id/unitary-authority/bracknell-forest","Bracknell Forest Council","00MA","Recreation, Sports and Leisure","Indoor Sports & Recreation Facilities","Recreation Staff Accommodation","Electricity",10/10/2019 00:00:00,"30364885",11.82,"BRITISH GAS BUSINESS"
"Bracknell Forest Council","http://opendatacommunities.org/id/unitary-authority/bracknell-forest","Bracknell Forest Council","00MA","Culture and Heritage","Heritage Museums & Galleries","The Look Out - Car Parking","Electricity",10/10/2019 00:00:00,"30364885",33.92,"BRITISH GAS BUSINESS"
"Bracknell Forest Council","http://opendatacommunities.org/id/unitary-authority/bracknell-forest","Bracknell Forest Council","00MA","Libraries","Branch Libraries","Great Hollands Library","Electricity",10/10/2019 00:00:00,"30364885",93.91,"BRITISH GAS BUSINESS"
"Bracknell Forest Council","http://opendatacommunities.org/id/unitary-authority/bracknell-forest","Bracknell Forest Council","00MA","Libraries","Branch Libraries","Great Hollands Library","Electricity",10/10/2019 00:00:00,"30364885",40.41,"BRITISH GAS BUSINESS"
"Bracknell Forest Council","http://opendatacommunities.org/id/unitary-authority/bracknell-forest","Bracknell Forest Council","00MA","Libraries","Branch Libraries","Great Hollands Library","Electricity",10/10/2019 00:00:00,"30364885",74.92,"BRITISH GAS BUSINESS"
"Bracknell Forest Council","http://opendatacommunities.org/id/unitary-authority/bracknell-forest","Bracknell Forest Council","00MA","Libraries","Branch Libraries","Great Hollands Library","Electricity",10/10/2019 00:00:00,"30364885",7.88,"BRITISH GAS BUSINESS"
"Bracknell Forest Council","http://opendatacommunities.org/id/unitary-authority/bracknell-forest","Bracknell Forest Council","00MA","Libraries","Branch Libraries","Great Hollands Library","Electricity",10/10/2019 00:00:00,"30364885",95.08,"BRITISH GAS BUSINESS"
"Bracknell Forest Council","http://opendatacommunities.org/id/unitary-authority/bracknell-forest","Bracknell Forest Council","00MA","Management and Support Services - CYPL","Holding Codes - net nil","Great Hollands Academy","Electricity",10/10/2019 00:00:00,"30364885",1006.46,"BRITISH GAS BUSINESS"
"Bracknell Forest Council","http://opendatacommunities.org/id/unitary-authority/bracknell-forest","Bracknell Forest Council","00MA","Management and Support Services - CYPL","Holding Codes - net nil","Great Hollands Academy","Electricity",10/10/2019 00:00:00,"30364885",674.87,"BRITISH GAS BUSINESS"
"Bracknell Forest Council","http://opendatacommunities.org/id/unitary-authority/bracknell-forest","Bracknell Forest Council","00MA","Special Schools & Alternative Provision","Delegated Special and Alternative Provision Budgets","Kennel Lane","Electricity",10/10/2019 00:00:00,"30364885",894.79,"BRITISH GAS BUSINESS"
"Bracknell Forest Council","http://opendatacommunities.org/id/unitary-authority/bracknell-forest","Bracknell Forest Council","00MA","Services for Young People","Universal services for young people","Portman Close Running Costs","Electricity",10/10/2019 00:00:00,"30364885",1066.33,"BRITISH GAS BUSINESS"
"Bracknell Forest Council","http://opendatacommunities.org/id/unitary-authority/bracknell-forest","Bracknell Forest Council","00MA","Libraries","Branch Libraries","Harmans Water Library","Electricity",10/10/2019 00:00:00,"30364885",22.6,"BRITISH GAS BUSINESS"
"Bracknell Forest Council","http://opendatacommunities.org/id/unitary-authority/bracknell-forest","Bracknell Forest Council","00MA","Recreation, Sports and Leisure","Indoor Sports & Recreation Facilities","Recreation Staff Accommodation","Electricity",10/10/2019 00:00:00,"30364885",59.27,"BRITISH GAS BUSINESS"
"Bracknell Forest Council","http://opendatacommunities.org/id/unitary-authority/bracknell-forest","Bracknell Forest Council","00MA","Recreation, Sports and Leisure","Indoor Sports & Recreation Facilities","Recreation Staff Accommodation","Electricity",10/10/2019 00:00:00,"30364885",61.71,"BRITISH GAS BUSINESS"
"Bracknell Forest Council","http://opendatacommunities.org/id/unitary-authority/bracknell-forest","Bracknell Forest Council","00MA","Culture and Heritage","Heritage Museums & Galleries","The Look Out - Car Parking","Electricity",10/10/2019 00:00:00,"30364885",982.85,"BRITISH GAS BUSINESS"
"Bracknell Forest Council","http://opendatacommunities.org/id/unitary-authority/bracknell-forest","Bracknell Forest Council","00MA","Special Schools","Delegated Secondary Schools Budgets","Sandhurst - Secondary","Electricity",10/10/2019 00:00:00,"30364885",212.15,"BRITISH GAS BUSINESS"
"Bracknell Forest Council","http://opendatacommunities.org/id/unitary-authority/bracknell-forest","Bracknell Forest Council","00MA","Secondary Schools","Delegated Primary School Budgets","Uplands - Primary","Electricity",10/10/2019 00:00:00,"30364885",729.81,"BRITISH GAS BUSINESS"
"Bracknell Forest Council","http://opendatacommunities.org/id/unitary-authority/bracknell-forest","Bracknell Forest Council","00MA","Secondary Schools","Delegated Primary School Budgets","Harmans Water - Primary","Electricity",10/10/2019 00:00:00,"30364885",298.75,"BRITISH GAS BUSINESS"
"Bracknell Forest Council","http://opendatacommunities.org/id/unitary-authority/bracknell-forest","Bracknell Forest Council","00MA","Secondary Schools","Delegated Primary School Budgets","Harmans Water - Primary","Electricity",10/10/2019 00:00:00,"30364885",1444.69,"BRITISH GAS BUSINESS"
"Bracknell Forest Council","http://opendatacommunities.org/id/unitary-authority/bracknell-forest","Bracknell Forest Council","00MA","Sure Start Children's Centres","Children's centres - direct","The Rowans Family Hub","Electricity",10/10/2019 00:00:00,"30364885",446.15,"BRITISH GAS BUSINESS"
"Bracknell Forest Council","http://opendatacommunities.org/id/unitary-authority/bracknell-forest","Bracknell Forest Council","00MA","Services for Young People","Universal services for young people","Coopers Hill Youth Centre","Electricity",10/10/2019 00:00:00,"30364885",366.59,"BRITISH GAS BUSINESS"
"Bracknell Forest Council","http://opendatacommunities.org/id/unitary-authority/bracknell-forest","Bracknell Forest Council","00MA","Special Schools","Delegated Secondary Schools Budgets","Garth Hill ASD Unit","Electricity",10/10/2019 00:00:00,"30364885",766.88,"BRITISH GAS BUSINESS"
"Bracknell Forest Council","http://opendatacommunities.org/id/unitary-authority/bracknell-forest","Bracknell Forest Council","00MA","Secondary Schools","Delegated Primary School Budgets","Meadow Vale - Primary","Electricity",10/10/2019 00:00:00,"30364885",1233.99,"BRITISH GAS BUSINESS"
"Bracknell Forest Council","http://opendatacommunities.org/id/unitary-authority/bracknell-forest","Bracknell Forest Council","00MA","Secondary Schools","Delegated Primary School Budgets","St Joseph's - Catholic Primary","Electricity",10/10/2019 00:00:00,"30364885",296.47,"BRITISH GAS BUSINESS"
"Bracknell Forest Council","http://opendatacommunities.org/id/unitary-authority/bracknell-forest","Bracknell Forest Council","00MA","Business Support","Premises Development","Bus/Rail Interchange","Electricity",10/10/2019 00:00:00,"30364885",526.66,"BRITISH GAS BUSINESS"
"Bracknell Forest Council","http://opendatacommunities.org/id/unitary-authority/bracknell-forest","Bracknell Forest Council","00MA","Secondary Schools","Delegated Primary School Budgets","Fox Hill - Primary","Electricity",10/10/2019 00:00:00,"30364885",767.17,"BRITISH GAS BUSINESS"
"Bracknell Forest Council","http://opendatacommunities.org/id/unitary-authority/bracknell-forest","Bracknell Forest Council","00MA","Sure Start Children's Centres","Children's centres - direct","The Willows Family Hub","Electricity",10/10/2019 00:00:00,"30364885",130.7,"BRITISH GAS BUSINESS"
"Bracknell Forest Council","http://opendatacommunities.org/id/unitary-authority/bracknell-forest","Bracknell Forest Council","00MA","Libraries","Branch Libraries","Sandhurst Library","Electricity",10/10/2019 00:00:00,"30364885",261.25,"BRITISH GAS BUSINESS"
"Bracknell Forest Council","http://opendatacommunities.org/id/unitary-authority/bracknell-forest","Bracknell Forest Council","00MA","Secondary Schools","Delegated Primary School Budgets","Owlsmoor - Primary","Electricity",10/10/2019 00:00:00,"30364885",1352.08,"BRITISH GAS BUSINESS"
"Bracknell Forest Council","http://opendatacommunities.org/id/unitary-authority/bracknell-forest","Bracknell Forest Council","00MA","Management and Support Services - CYPL","Holding Codes - net nil","Edgbarrow Academy","Electricity",10/10/2019 00:00:00,"30364885",219.99,"BRITISH GAS BUSINESS"
"Bracknell Forest Council","http://opendatacommunities.org/id/unitary-authority/bracknell-forest","Bracknell Forest Council","00MA","Management and Support Services - CYPL","Holding Codes - net nil","Edgbarrow Academy","Electricity",10/10/2019 00:00:00,"30364885",236.16,"BRITISH GAS BUSINESS"
"Bracknell Forest Council","http://opendatacommunities.org/id/unitary-authority/bracknell-forest","Bracknell Forest Council","00MA","Street Lighting (including Energy Costs)","Street Lighting","Lighting","Electricity",10/10/2019 00:00:00,"30364885",22.86,"BRITISH GAS BUSINESS"
"Bracknell Forest Council","http://opendatacommunities.org/id/unitary-authority/bracknell-forest","Bracknell Forest Council","00MA","Street Lighting (including Energy Costs)","Street Lighting","Lighting","Electricity",10/10/2019 00:00:00,"30364885",38.32,"BRITISH GAS BUSINESS"
"Bracknell Forest Council","http://opendatacommunities.org/id/unitary-authority/bracknell-forest","Bracknell Forest Council","00MA","Street Lighting (including Energy Costs)","Street Lighting","Lighting","Electricity",10/10/2019 00:00:00,"30364885",16.23,"BRITISH GAS BUSINESS"
"Bracknell Forest Council","http://opendatacommunities.org/id/unitary-authority/bracknell-forest","Bracknell Forest Council","00MA","Street Lighting (including Energy Costs)","Street Lighting","Lighting","Electricity",10/10/2019 00:00:00,"30364885",64.98,"BRITISH GAS BUSINESS"
"Bracknell Forest Council","http://opendatacommunities.org/id/unitary-authority/bracknell-forest","Bracknell Forest Council","00MA","Street Lighting (including Energy Costs)","Street Lighting","Lighting","Electricity",10/10/2019 00:00:00,"30364885",29.21,"BRITISH GAS BUSINESS"
"Bracknell Forest Council","http://opendatacommunities.org/id/unitary-authority/bracknell-forest","Bracknell Forest Council","00MA","Street Lighting (including Energy Costs)","Street Lighting","Lighting","Electricity",10/10/2019 00:00:00,"30364885",31.15,"BRITISH GAS BUSINESS"
"Bracknell Forest Council","http://opendatacommunities.org/id/unitary-authority/bracknell-forest","Bracknell Forest Council","00MA","Street Lighting (including Energy Costs)","Street Lighting","Lighting","Electricity",10/10/2019 00:00:00,"30364885",36.68,"BRITISH GAS BUSINESS"
"Bracknell Forest Council","http://opendatacommunities.org/id/unitary-authority/bracknell-forest","Bracknell Forest Council","00MA","Regulatory Services","Public Conveniences","Public Conveniences","Electricity",10/10/2019 00:00:00,"30364885",176.7,"BRITISH GAS BUSINESS"
"Bracknell Forest Council","http://opendatacommunities.org/id/unitary-authority/bracknell-forest","Bracknell Forest Council","00MA","Winter Service","Winter Maintenance","Preliminaries - Other Roads","Electricity",10/10/2019 00:00:00,"30364885",205.24,"BRITISH GAS BUSINESS"
"Bracknell Forest Council","http://opendatacommunities.org/id/unitary-authority/bracknell-forest","Bracknell Forest Council","00MA","Street Lighting (including Energy Costs)","Street Lighting","Lighting","Electricity",10/10/2019 00:00:00,"30364885",48.41,"BRITISH GAS BUSINESS"
"Bracknell Forest Council","http://opendatacommunities.org/id/unitary-authority/bracknell-forest","Bracknell Forest Council","00MA","Economic Development","Economic Development","Easthampstead House Meanwhile Use","Electricity",10/10/2019 00:00:00,"30364885",8.5,"BRITISH GAS BUSINESS"
"Bracknell Forest Council","http://opendatacommunities.org/id/unitary-authority/bracknell-forest","Bracknell Forest Council","00MA","Family Support Services","Targeted Family Support","Family Centre Running Costs","Electricity",10/10/2019 00:00:00,"30364885",127.42,"BRITISH GAS BUSINESS"
"Bracknell Forest Council","http://opendatacommunities.org/id/unitary-authority/bracknell-forest","Bracknell Forest Council","00MA","Family Support Services","Targeted Family Support","Family Centre Running Costs","Electricity",10/10/2019 00:00:00,"30364885",14.21,"BRITISH GAS BUSINESS"
"Bracknell Forest Council","http://opendatacommunities.org/id/unitary-authority/bracknell-forest","Bracknell Forest Council","00MA","Regulatory Services","Public Conveniences","Public Conveniences","Electricity",10/10/2019 00:00:00,"30364885",192.23,"BRITISH GAS BUSINESS"
"Bracknell Forest Council","http://opendatacommunities.org/id/unitary-authority/bracknell-forest","Bracknell Forest Council","00MA","Internal Services","Internal Services","Waymead - Short Stay","Electricity",10/10/2019 00:00:00,"30364885",564.98,"BRITISH GAS BUSINESS"
"Bracknell Forest Council","http://opendatacommunities.org/id/unitary-authority/bracknell-forest","Bracknell Forest Council","00MA","Children Looked After","Short breaks for LAC","Larchwood Running Costs","Electricity",10/10/2019 00:00:00,"30364885",422.81,"BRITISH GAS BUSINESS"
"Bracknell Forest Council","http://opendatacommunities.org/id/unitary-authority/bracknell-forest","Bracknell Forest Council","00MA","Cemeteries, Crematoria & Mortuary Services","Cemeteries & Crematorium","Easthampstead Park Cemetery & Crematorium","Electricity",10/10/2019 00:00:00,"30364885",26.87,"BRITISH GAS BUSINESS"
"Bracknell Forest Council","http://opendatacommunities.org/id/unitary-authority/bracknell-forest","Bracknell Forest Council","00MA","Secondary Schools","Delegated Primary School Budgets","Winkfield St Mary's - Primary","Electricity",10/10/2019 00:00:00,"30364885",522.18,"BRITISH GAS BUSINESS"
"Bracknell Forest Council","http://opendatacommunities.org/id/unitary-authority/bracknell-forest","Bracknell Forest Council","00MA","Secondary Schools","Delegated Primary School Budgets","Sandy Lane Primary School","Electricity",10/10/2019 00:00:00,"30364885",1333.33,"BRITISH GAS BUSINESS"
"Bracknell Forest Council","http://opendatacommunities.org/id/unitary-authority/bracknell-forest","Bracknell Forest Council","00MA","Libraries","Branch Libraries","Whitegrove Library","Electricity",10/10/2019 00:00:00,"30364885",439.85,"BRITISH GAS BUSINESS"
"Bracknell Forest Council","http://opendatacommunities.org/id/unitary-authority/bracknell-forest","Bracknell Forest Council","00MA","Business Support","Premises Development","Longshot Lane  - Service Charges","Electricity",10/10/2019 00:00:00,"30364885",23.11,"BRITISH GAS BUSINESS"
"Bracknell Forest Council","http://opendatacommunities.org/id/unitary-authority/bracknell-forest","Bracknell Forest Council","00MA","Libraries","Branch Libraries","Ascot Library","Electricity",10/10/2019 00:00:00,"30364885",244.83,"BRITISH GAS BUSINESS"
"Bracknell Forest Council","http://opendatacommunities.org/id/unitary-authority/bracknell-forest","Bracknell Forest Council","00MA","Secondary Schools","Delegated Primary School Budgets","Ascot Heath Primary","Electricity",10/10/2019 00:00:00,"30364885",-168.77,"BRITISH GAS BUSINESS"
"Bracknell Forest Council","http://opendatacommunities.org/id/unitary-authority/bracknell-forest","Bracknell Forest Council","00MA","Secondary Schools","Delegated Primary School Budgets","Ascot Heath Primary","Electricity",10/10/2019 00:00:00,"30364885",-191.04,"BRITISH GAS BUSINESS"
"Bracknell Forest Council","http://opendatacommunities.org/id/unitary-authority/bracknell-forest","Bracknell Forest Council","00MA","Secondary Schools","Delegated Primary School Budgets","Ascot Heath Primary","Electricity",10/10/2019 00:00:00,"30364885",25.15,"BRITISH GAS BUSINESS"
"Bracknell Forest Council","http://opendatacommunities.org/id/unitary-authority/bracknell-forest","Bracknell Forest Council","00MA","Secondary Schools","Delegated Primary School Budgets","Ascot Heath Primary","Electricity",10/10/2019 00:00:00,"30364885",20.22,"BRITISH GAS BUSINESS"
"Bracknell Forest Council","http://opendatacommunities.org/id/unitary-authority/bracknell-forest","Bracknell Forest Council","00MA","Secondary Schools","Delegated Primary School Budgets","Ascot Heath Primary","Electricity",10/10/2019 00:00:00,"30364885",21.56,"BRITISH GAS BUSINESS"
"Bracknell Forest Council","http://opendatacommunities.org/id/unitary-authority/bracknell-forest","Bracknell Forest Council","00MA","Secondary Schools","Delegated Primary School Budgets","Crowthorne - Primary","Electricity",10/10/2019 00:00:00,"30364885",576.02,"BRITISH GAS BUSINESS"
"Bracknell Forest Council","http://opendatacommunities.org/id/unitary-authority/bracknell-forest","Bracknell Forest Council","00MA","Secondary Schools","Delegated Primary School Budgets","College Town Primary School","Electricity",10/10/2019 00:00:00,"30364885",875.3,"BRITISH GAS BUSINESS"
"Bracknell Forest Council","http://opendatacommunities.org/id/unitary-authority/bracknell-forest","Bracknell Forest Council","00MA","Secondary Schools","Delegated Primary School Budgets","New Scotland Hill - Primary","Electricity",10/10/2019 00:00:00,"30364885",938.02,"BRITISH GAS BUSINESS"
"Bracknell Forest Council","http://opendatacommunities.org/id/unitary-authority/bracknell-forest","Bracknell Forest Council","00MA","Secondary Schools","Delegated Primary School Budgets","New Scotland Hill - Primary","Electricity",10/10/2019 00:00:00,"30364885",8.84,"BRITISH GAS BUSINESS"
"Bracknell Forest Council","http://opendatacommunities.org/id/unitary-authority/bracknell-forest","Bracknell Forest Council","00MA","Secondary Schools","Delegated Primary School Budgets","St Michael's (Sandhurst) - Primary","Electricity",10/10/2019 00:00:00,"30364885",615.51,"BRITISH GAS BUSINESS"
"Bracknell Forest Council","http://opendatacommunities.org/id/unitary-authority/bracknell-forest","Bracknell Forest Council","00MA","Business Support","Premises Development","Forest Park - Service Charges","Electricity",10/10/2019 00:00:00,"30364885",37.77,"BRITISH GAS BUSINESS"
"Bracknell Forest Council","http://opendatacommunities.org/id/unitary-authority/bracknell-forest","Bracknell Forest Council","00MA","Management and Support Services - CYPL","Holding Codes - net nil","Edgbarrow Academy","Electricity",10/10/2019 00:00:00,"30364885",109.57,"BRITISH GAS BUSINESS"
"Bracknell Forest Council","http://opendatacommunities.org/id/unitary-authority/bracknell-forest","Bracknell Forest Council","00MA","Management and Support Services - CYPL","Holding Codes - net nil","Great Hollands Academy","Electricity",10/10/2019 00:00:00,"30364885",32.12,"BRITISH GAS BUSINESS"
"Bracknell Forest Council","http://opendatacommunities.org/id/unitary-authority/bracknell-forest","Bracknell Forest Council","00MA","Open Spaces","Community Parks & Open Spaces","Pitches/Courts/Pavilion","Electricity",10/10/2019 00:00:00,"30364885",143.1,"BRITISH GAS BUSINESS"
"Bracknell Forest Council","http://opendatacommunities.org/id/unitary-authority/bracknell-forest","Bracknell Forest Council","00MA","Secondary Schools","Delegated Primary School Budgets","College Town Primary School","Electricity",10/10/2019 00:00:00,"30364885",212.01,"BRITISH GAS BUSINESS"
"Bracknell Forest Council","http://opendatacommunities.org/id/unitary-authority/bracknell-forest","Bracknell Forest Council","00MA","Special Schools & Alternative Provision","Pre-School Education","College Hall PRU","Electricity",10/10/2019 00:00:00,"30364885",472.96,"BRITISH GAS BUSINESS"
"Bracknell Forest Council","http://opendatacommunities.org/id/unitary-authority/bracknell-forest","Bracknell Forest Council","00MA","Management and Support Services - CYPL","Holding Codes - net nil","Jennetts Park Academy","Electricity",10/10/2019 00:00:00,"30364885",1114.45,"BRITISH GAS BUSINESS"
"Bracknell Forest Council","http://opendatacommunities.org/id/unitary-authority/bracknell-forest","Bracknell Forest Council","00MA","Secondary Schools","Delegated Primary School Budgets","Crowthorne - Primary","Electricity",10/10/2019 00:00:00,"30364885",13.54,"BRITISH GAS BUSINESS"
"Bracknell Forest Council","http://opendatacommunities.org/id/unitary-authority/bracknell-forest","Bracknell Forest Council","00MA","Secondary Schools","Delegated Primary School Budgets","Wildridings - Primary","Electricity",10/10/2019 00:00:00,"30364885",685.56,"BRITISH GAS BUSINESS"
"Bracknell Forest Council","http://opendatacommunities.org/id/unitary-authority/bracknell-forest","Bracknell Forest Council","00MA","Secondary Schools","Delegated Primary School Budgets","Wildridings - Primary","Electricity",10/10/2019 00:00:00,"30364885",660.07,"BRITISH GAS BUSINESS"
"Bracknell Forest Council","http://opendatacommunities.org/id/unitary-authority/bracknell-forest","Bracknell Forest Council","00MA","Secondary Schools","Delegated Primary School Budgets","Wildridings - Primary","Electricity",10/10/2019 00:00:00,"30364885",617.11,"BRITISH GAS BUSINESS"
"Bracknell Forest Council","http://opendatacommunities.org/id/unitary-authority/bracknell-forest","Bracknell Forest Council","00MA","Management and Support Services - CYPL","Holding Codes - net nil","St Margaret Clitherow Academy","Electricity",10/10/2019 00:00:00,"30364885",7.16,"BRITISH GAS BUSINESS"
"Bracknell Forest Council","http://opendatacommunities.org/id/unitary-authority/bracknell-forest","Bracknell Forest Council","00MA","Management and Support Services - CYPL","Holding Codes - net nil","St Margaret Clitherow Academy","Electricity",10/10/2019 00:00:00,"30364885",784.89,"BRITISH GAS BUSINESS"
"Bracknell Forest Council","http://opendatacommunities.org/id/unitary-authority/bracknell-forest","Bracknell Forest Council","00MA","Management and Support Services - CYPL","Holding Codes - net nil","Edgbarrow Academy","Electricity",10/10/2019 00:00:00,"30364885",1468.79,"BRITISH GAS BUSINESS"
